Workbook

Sheet Main
B10: 2020-06-22
B12: Sheet No. | C12: Template Name | D12: Summary
B13: 1 | C13: Future Intra | D13: For Intraday trading in F&O segment
B14: 2 | C14: Cash Intra | D14: For Intraday trading in cash market segment
B15: 3 | C15: Mid-cap Intra | D15: For Intraday trading in Mid-cap stocks
B16: 4 | C16: Bulk Deals | D16: Reveals Bulk Deals carried on NSE & BSE
B17: 5 | C17: Call Tracker
K27: `

Sheet Future Intra
M5: Back to Main Page
A6: FOR INTRA DAY TRADING | L6: =Main!B10 -> 2020-06-22
A9: Sr.no | B9: Sector | C9: Scrip | D9: CLOSE RATE | E9: Pivot Point | F9: Supports | I9: Resistances
B10: Sector | D10: Point | E10: Point | F10: S1 | G10: S2 | H10: S3 | I10: R1 | J10: R2 | K10: R3 | L10: HIGH | M10: LOW | N10: OI | O10: % Change in OI
A11: 1 | B11: Index | C11: BANKNIFTY | D11: 21308.85 | E11: 21199.68 | F11: 20935.17 | G11: 20561.48 | H11: 20296.97 | I11: 21573.37 | J11: 21837.88 | K11: 22211.57 | L11: 21464.2 | M11: 20826 | N11: 2039510 | O11: -6.36%
A12: 2 | B12: Index | C12: NIFTY | D12: 10235.55 | E12: 10179.52 | F12: 10107.03 | G12: 9978.52 | H12: 9906.03 | I12: 10308.03 | J12: 10380.52 | K12: 10509.03 | L12: 10252 | M12: 10051 | N12: 11505000 | O12: 3.03%
A13: 3 | B13: Index | C13: NIFTYIT | D13: 14451.00 | E13: 14478.00 | F13: 14373.00 | G13: 14295.00 | H13: 14190.00 | I13: 14556.00 | J13: 14661.00 | K13: 14739.00 | L13: 14583 | M13: 14400 | N13: 950 | O13: -24.00%
A14: 4 | B14: Cement | C14: ACC | D14: 1274.15 | E14: 1269.63 | F14: 1252.87 | G14: 1231.58 | H14: 1214.82 | I14: 1290.92 | J14: 1307.68 | K14: 1328.97 | L14: 1286.4 | M14: 1248.35 | N14: 2250300 | O14: 4.86%
A15: 5 | B15: Others | C15: ADANIENT | D15: 152.10 | E15: 151.58 | F15: 149.22 | G15: 146.33 | H15: 143.97 | I15: 154.47 | J15: 156.83 | K15: 159.72 | L15: 153.95 | M15: 148.7 | N15: 18096000 | O15: -5.40%
A16: 6 | B16: Others | C16: ADANIPORTS | D16: 349.75 | E16: 348.78 | F16: 343.22 | G16: 336.68 | H16: 331.12 | I16: 355.32 | J16: 360.88 | K16: 367.42 | L16: 354.35 | M16: 342.25 | N16: 32762500 | O16: 2.41%
A17: 7 | B17: Power | C17: ADANIPOWER | D17: 38.00 | E17: 38.05 | F17: 37.60 | G17: 37.20 | H17: 36.75 | I17: 38.45 | J17: 38.90 | K17: 39.30 | L17: 38.5 | M17: 37.65 | N17: 31590000 | O17: -2.92%
A18: 8 | B18: Automobile | C18: AMARAJABAT | D18: 675.00 | E18: 677.67 | F18: 670.33 | G18: 665.67 | H18: 658.33 | I18: 682.33 | J18: 689.67 | K18: 694.33 | L18: 685 | M18: 673 | N18: 1423800 | O18: 6.21%
A19: 9 | B19: Cement | C19: AMBUJACEM | D19: 191.35 | E19: 191.07 | F19: 187.88 | G19: 184.42 | H19: 181.23 | I19: 194.53 | J19: 197.72 | K19: 201.18 | L19: 194.25 | M19: 187.6 | N19: 18671500 | O19: 7.99%
A20: 10 | B20: Others | C20: APOLLOHOSP | D20: 1373.20 | E20: 1370.40 | F20: 1354.85 | G20: 1336.50 | H20: 1320.95 | I20: 1388.75 | J20: 1404.30 | K20: 1422.65 | L20: 1385.95 | M20: 1352.05 | N20: 998500 | O20: 0.96%
A21: 11 | B21: Automobile | C21: APOLLOTYRE | D21: 109.25 | E21: 108.50 | F21: 106.80 | G21: 104.35 | H21: 102.65 | I21: 110.95 | J21: 112.65 | K21: 115.10 | L21: 110.2 | M21: 106.05 | N21: 10926000 | O21: 26.81%
A22: 12 | B22: Automobile | C22: ASHOKLEY | D22: 54.40 | E22: 53.50 | F22: 52.05 | G22: 49.70 | H22: 48.25 | I22: 55.85 | J22: 57.30 | K22: 59.65 | L22: 54.95 | M22: 51.15 | N22: 42829000 | O22: 4.62%
A23: 13 | B23: FMCG | C23: ASIANPAINT | D23: 1621.25 | E23: 1612.32 | F23: 1597.63 | G23: 1574.02 | H23: 1559.33 | I23: 1635.93 | J23: 1650.62 | K23: 1674.23 | L23: 1627 | M23: 1588.7 | N23: 5186400 | O23: -0.67%
A24: 14 | B24: Pharma | C24: AUROPHARMA | D24: 784.95 | E24: 787.32 | F24: 779.13 | G24: 773.32 | H24: 765.13 | I24: 793.13 | J24: 801.32 | K24: 807.13 | L24: 795.5 | M24: 781.5 | N24: 10276600 | O24: 1.28%
A25: 15 | B25: Banking | C25: AXISBANK | D25: 417.25 | E25: 415.78 | F25: 408.67 | G25: 400.08 | H25: 392.97 | I25: 424.37 | J25: 431.48 | K25: 440.07 | L25: 422.9 | M25: 407.2 | N25: 68955600 | O25: -0.15%
A26: 16 | B26: Automobile | C26: BAJAJ-AUTO | D26: 2679.00 | E26: 2684.28 | F26: 2654.72 | G26: 2630.43 | H26: 2600.87 | I26: 2708.57 | J26: 2738.13 | K26: 2762.42 | L26: 2713.85 | M26: 2660 | N26: 1995000 | O26: 6.53%
A27: 17 | B27: Finance | C27: BAJAJFINSV | D27: 5892.05 | E27: 5766.03 | F27: 5571.07 | G27: 5250.08 | H27: 5055.12 | I27: 6087.02 | J27: 6281.98 | K27: 6602.97 | L27: 5961 | M27: 5445.05 | N27: 806000 | O27: -4.52%
A28: 18 | B28: Finance | C28: BAJFINANCE | D28: 2699.25 | E28: 2655.83 | F28: 2598.02 | G28: 2496.78 | H28: 2438.97 | I28: 2757.07 | J28: 2814.88 | K28: 2916.12 | L28: 2713.65 | M28: 2554.6 | N28: 7093000 | O28: 5.40%
A29: 19 | B29: Automobile | C29: BALKRISIND | D29: 1215.65 | E29: 1220.42 | F29: 1201.23 | G29: 1186.82 | H29: 1167.63 | I29: 1234.83 | J29: 1254.02 | K29: 1268.43 | L29: 1239.6 | M29: 1206 | N29: 1697600 | O29: 6.85%
A30: 20 | B30: Banking | C30: BANDHANBNK | D30: 291.65 | E30: 286.68 | F30: 278.37 | G30: 265.08 | H30: 256.77 | I30: 299.97 | J30: 308.28 | K30: 321.57 | L30: 295 | M30: 273.4 | N30: 11120400 | O30: -1.79%
A31: 21 | B31: Banking | C31: BANKBARODA | D31: 47.20 | E31: 46.93 | F31: 46.17 | G31: 45.13 | H31: 44.37 | I31: 47.97 | J31: 48.73 | K31: 49.77 | L31: 47.7 | M31: 45.9 | N31: 59286200 | O31: 6.25%
A32: 22 | B32: FMCG | C32: BATAINDIA | D32: 1342.35 | E32: 1339.13 | F32: 1322.27 | G32: 1302.18 | H32: 1285.32 | I32: 1359.22 | J32: 1376.08 | K32: 1396.17 | L32: 1356 | M32: 1319.05 | N32: 1430550 | O32: 1.09%
A33: 23 | B33: Capital_Goods | C33: BEL | D33: 80.05 | E33: 79.27 | F33: 77.18 | G33: 74.32 | H33: 72.23 | I33: 82.13 | J33: 84.22 | K33: 87.08 | L33: 81.35 | M33: 76.4 | N33: 23381200 | O33: 7.28%
A34: 24 | B34: FMCG | C34: BERGEPAINT | D34: 501.05 | E34: 502.68 | F34: 494.37 | G34: 487.68 | H34: 479.37 | I34: 509.37 | J34: 517.68 | K34: 524.37 | L34: 511 | M34: 496 | N34: 4198700 | O34: 2.17%
A35: 25 | B35: Automobile | C35: BHARATFORG | D35: 376.15 | E35: 372.25 | F35: 364.75 | G35: 353.35 | H35: 345.85 | I35: 383.65 | J35: 391.15 | K35: 402.55 | L35: 379.75 | M35: 360.85 | N35: 6056900 | O35: -6.75%
A36: 26 | B36: Telecom | C36: BHARTIARTL | D36: 571.90 | E36: 569.22 | F36: 562.53 | G36: 553.17 | H36: 546.48 | I36: 578.58 | J36: 585.27 | K36: 594.63 | L36: 575.9 | M36: 559.85 | N36: 82893333 | O36: -2.02%
A37: 27 | B37: Capital_Goods | C37: BHEL | D37: 32.45 | E37: 32.32 | F37: 31.73 | G37: 31.02 | H37: 30.43 | I37: 33.03 | J37: 33.62 | K37: 34.33 | L37: 32.9 | M37: 31.6 | N37: 61378800 | O37: -15.33%
A38: 28 | B38: Pharma | C38: BIOCON | D38: 382.00 | E38: 386.67 | F38: 376.23 | G38: 370.47 | H38: 360.03 | I38: 392.43 | J38: 402.87 | K38: 408.63 | L38: 397.1 | M38: 380.9 | N38: 17270700 | O38: 2.88%
A39: 29 | B39: Automobile | C39: BOSCHLTD | D39: 10989.60 | E39: 10914.95 | F39: 10742.65 | G39: 10495.70 | H39: 10323.40 | I39: 11161.90 | J39: 11334.20 | K39: 11581.15 | L39: 11087.25 | M39: 10668 | N39: 134550 | O39: -1.21%
A40: 30 | B40: Oil_Gas | C40: BPCL | D40: 381.10 | E40: 378.67 | F40: 372.58 | G40: 364.07 | H40: 357.98 | I40: 387.18 | J40: 393.27 | K40: 401.78 | L40: 384.75 | M40: 370.15 | N40: 19429200 | O40: 0.66%
A41: 31 | B41: FMCG | C41: BRITANNIA | D41: 3436.65 | E41: 3421.57 | F41: 3398.13 | G41: 3359.62 | H41: 3336.18 | I41: 3460.08 | J41: 3483.52 | K41: 3522.03 | L41: 3445 | M41: 3383.05 | N41: 1827800 | O41: -0.02%
A42: 32 | B42: Pharma | C42: CADILAHC | D42: 362.55 | E42: 364.05 | F42: 358.60 | G42: 354.65 | H42: 349.20 | I42: 368.00 | J42: 373.45 | K42: 377.40 | L42: 369.5 | M42: 360.1 | N42: 7807800 | O42: 10.05%
A43: 33 | B43: Banking | C43: CANBK | D43: 107.65 | E43: 106.68 | F43: 104.62 | G43: 101.58 | H43: 99.52 | I43: 109.72 | J43: 111.78 | K43: 114.82 | L43: 108.75 | M43: 103.65 | N43: 14366600 | O43: 16.72%
A44: 34 | B44: Textile | C44: CENTURYTEX | D44: 318.80 | E44: 315.25 | F44: 308.80 | G44: 298.80 | H44: 292.35 | I44: 325.25 | J44: 331.70 | K44: 341.70 | L44: 321.7 | M44: 305.25 | N44: 3029600 | O44: 4.14%
A45: 35 | B45: Finance | C45: CHOLAFIN | D45: 194.20 | E45: 190.68 | F45: 181.72 | G45: 169.23 | H45: 160.27 | I45: 203.17 | J45: 212.13 | K45: 224.62 | L45: 199.65 | M45: 178.2 | N45: 7172500 | O45: -0.93%
A46: 36 | B46: Pharma | C46: CIPLA | D46: 637.50 | E46: 639.63 | F46: 630.87 | G46: 624.23 | H46: 615.47 | I46: 646.27 | J46: 655.03 | K46: 661.67 | L46: 648.4 | M46: 633 | N46: 12135900 | O46: 5.80%
A47: 37 | B47: Others | C47: COALINDIA | D47: 137.15 | E47: 137.28 | F47: 134.87 | G47: 132.58 | H47: 130.17 | I47: 139.57 | J47: 141.98 | K47: 144.27 | L47: 139.7 | M47: 135 | N47: 37323300 | O47: -1.72%
A48: 38 | B48: FMCG | C48: COLPAL | D48: 1358.25 | E48: 1359.23 | F48: 1350.47 | G48: 1342.68 | H48: 1333.92 | I48: 1367.02 | J48: 1375.78 | K48: 1383.57 | L48: 1368 | M48: 1351.45 | N48: 1787800 | O48: -3.22%
A49: 39 | B49: Others | C49: CONCOR | D49: 408.55 | E49: 406.10 | F49: 400.65 | G49: 392.75 | H49: 387.30 | I49: 414.00 | J49: 419.45 | K49: 427.35 | L49: 411.55 | M49: 398.2 | N49: 5775285 | O49: -2.38%
A50: 40 | B50: Capital_Goods | C50: CUMMINSIND | D50: 375.85 | E50: 373.88 | F50: 370.77 | G50: 365.68 | H50: 362.57 | I50: 378.97 | J50: 382.08 | K50: 387.17 | L50: 377 | M50: 368.8 | N50: 1411200 | O50: -0.99%
A51: 41 | B51: FMCG | C51: DABUR | D51: 444.10 | E51: 445.48 | F51: 441.47 | G51: 438.83 | H51: 434.82 | I51: 448.12 | J51: 452.13 | K51: 454.77 | L51: 449.5 | M51: 442.85 | N51: 14513750 | O51: 2.79%
A52: 42 | B52: Pharma | C52: DIVISLAB | D52: 2307.45 | E52: 2308.55 | F52: 2287.10 | G52: 2266.75 | H52: 2245.30 | I52: 2328.90 | J52: 2350.35 | K52: 2370.70 | L52: 2330 | M52: 2288.2 | N52: 3406400 | O52: 2.32%
A53: 43 | B53: Realty | C53: DLF | D53: 161.90 | E53: 157.92 | F53: 152.83 | G53: 143.77 | H53: 138.68 | I53: 166.98 | J53: 172.07 | K53: 181.13 | L53: 163 | M53: 148.85 | N53: 30492000 | O53: 7.07%
A54: 44 | B54: Pharma | C54: DRREDDY | D54: 4009.95 | E54: 4018.27 | F54: 3986.68 | G54: 3963.42 | H54: 3931.83 | I54: 4041.53 | J54: 4073.12 | K54: 4096.38 | L54: 4049.85 | M54: 3995 | N54: 3176000 | O54: 0.40%
A55: 45 | B55: Automobile | C55: EICHERMOT | D55: 17361.75 | E55: 17259.97 | F55: 16969.93 | G55: 16578.12 | H55: 16288.08 | I55: 17651.78 | J55: 17941.82 | K55: 18333.63 | L55: 17550 | M55: 16868.15 | N55: 282825 | O55: -2.36%
A56: 46 | B56: Finance | C56: EQUITAS | D56: 53.00 | E56: 51.93 | F56: 50.57 | G56: 48.13 | H56: 46.77 | I56: 54.37 | J56: 55.73 | K56: 58.17 | L56: 53.3 | M56: 49.5 | N56: 17644900 | O56: 28.31%
A57: 47 | B57: Automobile | C57: ESCORTS | D57: 995.60 | E57: 991.25 | F57: 982.95 | G57: 970.30 | H57: 962.00 | I57: 1003.90 | J57: 1012.20 | K57: 1024.85 | L57: 999.55 | M57: 978.6 | N57: 3077800 | O57: -5.02%
A58: 48 | B58: Automobile | C58: EXIDEIND | D58: 152.00 | E58: 151.67 | F58: 149.43 | G58: 146.87 | H58: 144.63 | I58: 154.23 | J58: 156.47 | K58: 159.03 | L58: 153.9 | M58: 149.1 | N58: 10368800 | O58: 9.79%
A59: 49 | B59: Banking | C59: FEDERALBNK | D59: 51.15 | E59: 50.18 | F59: 48.87 | G59: 46.58 | H59: 45.27 | I59: 52.47 | J59: 53.78 | K59: 56.07 | L59: 51.5 | M59: 47.9 | N59: 74222000 | O59: 17.04%
A60: 50 | B60: Oil_Gas | C60: GAIL | D60: 99.70 | E60: 99.17 | F60: 98.13 | G60: 96.57 | H60: 95.53 | I60: 100.73 | J60: 101.77 | K60: 103.33 | L60: 100.2 | M60: 97.6 | N60: 31989042 | O60: -4.87%
A61: 51 | B61: Pharma | C61: GLENMARK | D61: 409.95 | E61: 411.70 | F61: 406.40 | G61: 402.85 | H61: 397.55 | I61: 415.25 | J61: 420.55 | K61: 424.10 | L61: 417 | M61: 408.15 | N61: 4892000 | O61: 5.21%
A62: 52 | B62: Infrastructure | C62: GMRINFRA | D62: 21.70 | E62: 21.33 | F62: 20.72 | G62: 19.73 | H62: 19.12 | I62: 22.32 | J62: 22.93 | K62: 23.92 | L62: 21.95 | M62: 20.35 | N62: 90540000 | O62: 19.41%
A63: 53 | B63: FMCG | C63: GODREJCP | D63: 651.40 | E63: 648.12 | F63: 641.23 | G63: 631.07 | H63: 624.18 | I63: 658.28 | J63: 665.17 | K63: 675.33 | L63: 655 | M63: 637.95 | N63: 6701800 | O63: -0.36%
A64: 54 | B64: Others | C64: GODREJPROP | D64: 890.50 | E64: 873.17 | F64: 846.33 | G64: 802.17 | H64: 775.33 | I64: 917.33 | J64: 944.17 | K64: 988.33 | L64: 900 | M64: 829 | N64: 575250 | O64: 35.94%
A65: 55 | B65: Cement | C65: GRASIM | D65: 601.75 | E65: 600.23 | F65: 596.12 | G65: 590.48 | H65: 586.37 | I65: 605.87 | J65: 609.98 | K65: 615.62 | L65: 604.35 | M65: 594.6 | N65: 18997800 | O65: 0.62%
A66: 56 | B66: Others | C66: HAVELLS | D66: 566.65 | E66: 562.28 | F66: 549.57 | G66: 532.48 | H66: 519.77 | I66: 579.37 | J66: 592.08 | K66: 609.17 | L66: 575 | M66: 545.2 | N66: 5654000 | O66: 1.02%
A67: 57 | B67: Technology | C67: HCLTECH | D67: 571.10 | E67: 572.33 | F67: 567.42 | G67: 563.73 | H67: 558.82 | I67: 576.02 | J67: 580.93 | K67: 584.62 | L67: 577.25 | M67: 568.65 | N67: 21060200 | O67: 1.81%
A68: 58 | B68: Finance | C68: HDFC | D68: 1836.65 | E68: 1838.63 | F68: 1812.27 | G68: 1787.88 | H68: 1761.52 | I68: 1863.02 | J68: 1889.38 | K68: 1913.77 | L68: 1865 | M68: 1814.25 | N68: 30156950 | O68: 5.16%
A69: 59 | B69: Banking | C69: HDFCBANK | D69: 1030.25 | E69: 1027.42 | F69: 1012.18 | G69: 994.12 | H69: 978.88 | I69: 1045.48 | J69: 1060.72 | K69: 1078.78 | L69: 1042.65 | M69: 1009.35 | N69: 37485200 | O69: 3.96%
A70: 60 | B70: Finance | C70: HDFCLIFE | D70: 521.95 | E70: 520.15 | F70: 515.85 | G70: 509.75 | H70: 505.45 | I70: 526.25 | J70: 530.55 | K70: 536.65 | L70: 524.45 | M70: 514.05 | N70: 18692800 | O70: -1.58%
A71: 61 | B71: Automobile | C71: HEROMOTOCO | D71: 2362.40 | E71: 2358.93 | F71: 2332.47 | G71: 2302.53 | H71: 2276.07 | I71: 2388.87 | J71: 2415.33 | K71: 2445.27 | L71: 2385.4 | M71: 2329 | N71: 3125900 | O71: 39.09%
A72: 62 | B72: Metals | C72: HINDALCO | D72: 150.85 | E72: 150.63 | F72: 148.77 | G72: 146.68 | H72: 144.82 | I72: 152.72 | J72: 154.58 | K72: 156.67 | L72: 152.5 | M72: 148.55 | N72: 34582100 | O72: 0.01%
A73: 63 | B73: Oil_Gas | C73: HINDPETRO | D73: 223.55 | E73: 222.90 | F73: 219.75 | G73: 215.95 | H73: 212.80 | I73: 226.70 | J73: 229.85 | K73: 233.65 | L73: 226.05 | M73: 219.1 | N73: 19834500 | O73: 4.94%
A74: 64 | B74: FMCG | C74: HINDUNILVR | D74: 2092.60 | E74: 2081.85 | F74: 2063.70 | G74: 2034.80 | H74: 2016.65 | I74: 2110.75 | J74: 2128.90 | K74: 2157.80 | L74: 2100 | M74: 2052.95 | N74: 19458600 | O74: -0.87%
A75: 65 | B75: Finance | C75: IBULHSGFIN | D75: 202.05 | E75: 188.97 | F75: 169.83 | G75: 137.62 | H75: 118.48 | I75: 221.18 | J75: 240.32 | K75: 272.53 | L75: 208.1 | M75: 156.75 | N75: 16322700 | O75: 7.93%
A76: 66 | B76: Banking | C76: ICICIBANK | D76: 363.40 | E76: 359.03 | F76: 353.17 | G76: 342.93 | H76: 337.07 | I76: 369.27 | J76: 375.13 | K76: 385.37 | L76: 364.9 | M76: 348.8 | N76: 118361375 | O76: -3.50%
A77: 67 | B77: Finance | C77: ICICIPRULI | D77: 389.70 | E77: 389.77 | F77: 383.48 | G77: 377.27 | H77: 370.98 | I77: 395.98 | J77: 402.27 | K77: 408.48 | L77: 396.05 | M77: 383.55 | N77: 9648000 | O77: 12.37%
A78: 68 | B78: Telecom | C78: IDEA | D78: 9.10 | E78: 9.25 | F78: 8.90 | G78: 8.70 | H78: 8.35 | I78: 9.45 | J78: 9.80 | K78: 10.00 | L78: 9.6 | M78: 9.05 | N78: 221130000 | O78: -5.09%
A79: 69 | B79: Banking | C79: IDFCFIRSTB | D79: 25.95 | E79: 26.00 | F79: 25.65 | G79: 25.35 | H79: 25.00 | I79: 26.30 | J79: 26.65 | K79: 26.95 | L79: 26.35 | M79: 25.7 | N79: 134900000 | O79: -2.87%
A80: 70 | B80: Oil_Gas | C80: IGL | D80: 447.95 | E80: 448.68 | F80: 443.12 | G80: 438.28 | H80: 432.72 | I80: 453.52 | J80: 459.08 | K80: 463.92 | L80: 454.25 | M80: 443.85 | N80: 9004875 | O80: -0.43%
A81: 71 | B81: Others | C81: INDIGO | D81: 1027.95 | E81: 1030.82 | F81: 1013.63 | G81: 999.32 | H81: 982.13 | I81: 1045.13 | J81: 1062.32 | K81: 1076.63 | L81: 1048 | M81: 1016.5 | N81: 3134200 | O81: -2.21%
A82: 72 | B82: Banking | C82: INDUSINDBK | D82: 485.15 | E82: 489.83 | F82: 468.72 | G82: 452.28 | H82: 431.17 | I82: 506.27 | J82: 527.38 | K82: 543.82 | L82: 510.95 | M82: 473.4 | N82: 27924400 | O82: 5.11%
A83: 73 | B83: Telecom | C83: INFRATEL | D83: 219.15 | E83: 216.30 | F83: 212.15 | G83: 205.15 | H83: 201.00 | I83: 223.30 | J83: 227.45 | K83: 234.45 | L83: 220.45 | M83: 209.3 | N83: 12762000 | O83: -0.69%
A84: 74 | B84: Technology | C84: INFY | D84: 706.15 | E84: 705.37 | F84: 700.78 | G84: 695.42 | H84: 690.83 | I84: 710.73 | J84: 715.32 | K84: 720.68 | L84: 709.95 | M84: 700 | N84: 50365200 | O84: 0.78%
A85: 75 | B85: Oil_Gas | C85: IOC | D85: 85.45 | E85: 85.42 | F85: 84.68 | G85: 83.92 | H85: 83.18 | I85: 86.18 | J85: 86.92 | K85: 87.68 | L85: 86.15 | M85: 84.65 | N85: 55973000 | O85: 5.74%
A86: 76 | B86: FMCG | C86: ITC | D86: 184.25 | E86: 185.40 | F86: 182.50 | G86: 180.75 | H86: 177.85 | I86: 187.15 | J86: 190.05 | K86: 191.80 | L86: 188.3 | M86: 183.65 | N86: 72780800 | O86: 2.29%
A87: 77 | B87: Metals | C87: JINDALSTEL | D87: 146.35 | E87: 146.62 | F87: 144.73 | G87: 143.12 | H87: 141.23 | I87: 148.23 | J87: 150.12 | K87: 151.73 | L87: 148.5 | M87: 145 | N87: 18405000 | O87: -1.50%
A88: 78 | B88: Metals | C88: JSWSTEEL | D88: 194.50 | E88: 194.97 | F88: 192.23 | G88: 189.97 | H88: 187.23 | I88: 197.23 | J88: 199.97 | K88: 202.23 | L88: 197.7 | M88: 192.7 | N88: 38453100 | O88: 5.94%
A89: 79 | B89: Others | C89: JUBLFOOD | D89: 1689.85 | E89: 1692.50 | F89: 1668.45 | G89: 1647.05 | H89: 1623.00 | I89: 1713.90 | J89: 1737.95 | K89: 1759.35 | L89: 1716.55 | M89: 1671.1 | N89: 2595000 | O89: -2.43%
A90: 80 | B90: Others | C90: JUSTDIAL | D90: 362.35 | E90: 366.12 | F90: 348.23 | G90: 334.12 | H90: 316.23 | I90: 380.23 | J90: 398.12 | K90: 412.23 | L90: 384 | M90: 352 | N90: 2108400 | O90: -1.63%
A91: 81 | B91: Banking | C91: KOTAKBANK | D91: 1302.75 | E91: 1299.07 | F91: 1283.78 | G91: 1264.82 | H91: 1249.53 | I91: 1318.03 | J91: 1333.32 | K91: 1352.28 | L91: 1314.35 | M91: 1280.1 | N91: 11101600 | O91: 0.37%
A92: 82 | B92: Finance | C92: L&TFH | D92: 67.75 | E92: 66.88 | F92: 65.27 | G92: 62.78 | H92: 61.17 | I92: 69.37 | J92: 70.98 | K92: 73.47 | L92: 68.5 | M92: 64.4 | N92: 32417600 | O92: 11.84%
A93: 83 | B93: Finance | C93: LICHSGFIN | D93: 285.60 | E93: 284.72 | F93: 281.53 | G93: 277.47 | H93: 274.28 | I93: 288.78 | J93: 291.97 | K93: 296.03 | L93: 287.9 | M93: 280.65 | N93: 7991500 | O93: 6.51%
A94: 84 | B94: Capital_Goods | C94: LT | D94: 899.75 | E94: 904.25 | F94: 891.00 | G94: 882.25 | H94: 869.00 | I94: 913.00 | J94: 926.25 | K94: 935.00 | L94: 917.5 | M94: 895.5 | N94: 13307600 | O94: 3.59%
A95: 85 | B95: Pharma | C95: LUPIN | D95: 917.30 | E95: 920.13 | F95: 912.27 | G95: 907.23 | H95: 899.37 | I95: 925.17 | J95: 933.03 | K95: 938.07 | L95: 928 | M95: 915.1 | N95: 7973450 | O95: 0.89%
A96: 86 | B96: Automobile | C96: M&M | D96: 500.55 | E96: 501.45 | F96: 495.45 | G96: 490.35 | H96: 484.35 | I96: 506.55 | J96: 512.55 | K96: 517.65 | L96: 507.45 | M96: 496.35 | N96: 16758000 | O96: -0.37%
A97: 87 | B97: Finance | C97: M&MFIN | D97: 174.90 | E97: 173.65 | F97: 169.10 | G97: 163.30 | H97: 158.75 | I97: 179.45 | J97: 184.00 | K97: 189.80 | L97: 178.2 | M97: 167.85 | N97: 14998200 | O97: 5.47%
A98: 88 | B98: Finance | C98: MANAPPURAM | D98: 151.85 | E98: 151.68 | F98: 149.32 | G98: 146.78 | H98: 144.42 | I98: 154.22 | J98: 156.58 | K98: 159.12 | L98: 154.05 | M98: 149.15 | N98: 18666000 | O98: 0.32%
A99: 89 | B99: FMCG | C99: MARICO | D99: 332.25 | E99: 332.93 | F99: 330.37 | G99: 328.48 | H99: 325.92 | I99: 334.82 | J99: 337.38 | K99: 339.27 | L99: 335.5 | M99: 331.05 | N99: 10875400 | O99: 0.66%
A100: 90 | B100: Automobile | C100: MARUTI | D100: 5904.45 | E100: 5854.52 | F100: 5760.03 | G100: 5615.62 | H100: 5521.13 | I100: 5998.93 | J100: 6093.42 | K100: 6237.83 | L100: 5949 | M100: 5710.1 | N100: 3140300 | O100: 0.94%
A101: 91 | B101: FMCG | C101: MCDOWELL-N | D101: 618.85 | E101: 620.40 | F101: 608.40 | G101: 597.95 | H101: 585.95 | I101: 630.85 | J101: 642.85 | K101: 653.30 | L101: 632.4 | M101: 609.95 | N101: 13320000 | O101: 3.92%
A102: 92 | B102: Finance | C102: MFSL | D102: 498.05 | E102: 496.28 | F102: 486.77 | G102: 475.48 | H102: 465.97 | I102: 507.57 | J102: 517.08 | K102: 528.37 | L102: 505.8 | M102: 485 | N102: 2041000 | O102: 2.61%
A103: 93 | B103: Oil_Gas | C103: MGL | D103: 1071.55 | E103: 1074.92 | F103: 1055.88 | G103: 1040.22 | H103: 1021.18 | I103: 1090.58 | J103: 1109.62 | K103: 1125.28 | L103: 1093.95 | M103: 1059.25 | N103: 936600 | O103: -9.45%
A104: 94 | B104: Technology | C104: MINDTREE | D104: 916.90 | E104: 914.97 | F104: 895.93 | G104: 874.97 | H104: 855.93 | I104: 935.93 | J104: 954.97 | K104: 975.93 | L104: 934 | M104: 894 | N104: 1768800 | O104: 6.55%
A105: 95 | B105: Automobile | C105: MOTHERSUMI | D105: 97.50 | E105: 97.50 | F105: 96.00 | G105: 94.50 | H105: 93.00 | I105: 99.00 | J105: 100.50 | K105: 102.00 | L105: 99 | M105: 96 | N105: 23830000 | O105: 0.53%
A106: 96 | B106: Automobile | C106: MRF | D106: 63049.85 | E106: 63159.80 | F106: 62639.60 | G106: 62229.35 | H106: 61709.15 | I106: 63570.05 | J106: 64090.25 | K106: 64500.50 | L106: 63680 | M106: 62749.55 | N106: 15730 | O106: -1.32%
A107: 97 | B107: Finance | C107: MUTHOOTFIN | D107: 1180.75 | E107: 1187.53 | F107: 1130.07 | G107: 1079.38 | H107: 1021.92 | I107: 1238.22 | J107: 1295.68 | K107: 1346.37 | L107: 1245 | M107: 1136.85 | N107: 3466500 | O107: -8.07%
A108: 98 | B108: Metals | C108: NATIONALUM | D108: 30.85 | E108: 30.90 | F108: 30.40 | G108: 29.95 | H108: 29.45 | I108: 31.35 | J108: 31.85 | K108: 32.30 | L108: 31.4 | M108: 30.45 | N108: 40154000 | O108: 9.42%
A109: 99 | B109: Others | C109: NAUKRI | D109: 2681.70 | E109: 2705.70 | F109: 2606.40 | G109: 2531.10 | H109: 2431.80 | I109: 2781.00 | J109: 2880.30 | K109: 2955.60 | L109: 2805 | M109: 2630.4 | N109: 793100 | O109: 0.16%
A110: 100 | B110: Infrastructure | C110: NCC | D110: 31.45 | E110: 30.93 | F110: 29.97 | G110: 28.48 | H110: 27.52 | I110: 32.42 | J110: 33.38 | K110: 34.87 | L110: 31.9 | M110: 29.45 | N110: 29883000 | O110: 18.98%
A111: 101 | B111: FMCG | C111: NESTLEIND | D111: 16127.60 | E111: 16168.67 | F111: 16037.33 | G111: 15947.07 | H111: 15815.73 | I111: 16258.93 | J111: 16390.27 | K111: 16480.53 | L111: 16300 | M111: 16078.4 | N111: 512450 | O111: 4.10%
A112: 102 | B112: Technology | C112: NIITTECH | D112: 1334.80 | E112: 1348.93 | F112: 1310.97 | G112: 1287.13 | H112: 1249.17 | I112: 1372.77 | J112: 1410.73 | K112: 1434.57 | L112: 1386.9 | M112: 1325.1 | N112: 519000 | O112: 17.09%
A113: 103 | B113: Metals | C113: NMDC | D113: 82.60 | E113: 82.85 | F113: 81.75 | G113: 80.90 | H113: 79.80 | I113: 83.70 | J113: 84.80 | K113: 85.65 | L113: 83.95 | M113: 82 | N113: 27712200 | O113: 0.11%
A114: 104 | B114: Power | C114: NTPC | D114: 93.15 | E114: 93.22 | F114: 92.43 | G114: 91.72 | H114: 90.93 | I114: 93.93 | J114: 94.72 | K114: 95.43 | L114: 94 | M114: 92.5 | N114: 55836300 | O114: 2.79%
A115: 105 | B115: Oil_Gas | C115: ONGC | D115: 85.80 | E115: 85.53 | F115: 84.62 | G115: 83.43 | H115: 82.52 | I115: 86.72 | J115: 87.63 | K115: 88.82 | L115: 86.45 | M115: 84.35 | N115: 54292500 | O115: -0.35%
A116: 106 | B116: Textile | C116: PAGEIND | D116: 18085.75 | E116: 18068.52 | F116: 17837.23 | G116: 17588.72 | H116: 17357.43 | I116: 18317.03 | J116: 18548.32 | K116: 18796.83 | L116: 18299.8 | M116: 17820 | N116: 155200 | O116: 10.32%
A117: 107 | B117: Pharma | C117: PEL | D117: 1167.65 | E117: 1136.35 | F117: 1077.30 | G117: 986.95 | H117: 927.90 | I117: 1226.70 | J117: 1285.75 | K117: 1376.10 | L117: 1195.4 | M117: 1046 | N117: 4097242 | O117: 3.90%
A118: 108 | B118: Oil_Gas | C118: PETRONET | D118: 260.75 | E118: 260.67 | F118: 258.18 | G118: 255.62 | H118: 253.13 | I118: 263.23 | J118: 265.72 | K118: 268.28 | L118: 263.15 | M118: 258.1 | N118: 11877000 | O118: 0.79%
A119: 109 | B119: Finance | C119: PFC | D119: 85.40 | E119: 85.75 | F119: 84.60 | G119: 83.80 | H119: 82.65 | I119: 86.55 | J119: 87.70 | K119: 88.50 | L119: 86.9 | M119: 84.95 | N119: 50554800 | O119: 2.15%
A120: 110 | B120: FMCG | C120: PIDILITIND | D120: 1399.90 | E120: 1400.63 | F120: 1383.22 | G120: 1366.53 | H120: 1349.12 | I120: 1417.32 | J120: 1434.73 | K120: 1451.42 | L120: 1418.05 | M120: 1383.95 | N120: 3266000 | O120: -0.18%
A121: 111 | B121: Banking | C121: PNB | D121: 34.65 | E121: 34.38 | F121: 33.97 | G121: 33.28 | H121: 32.87 | I121: 35.07 | J121: 35.48 | K121: 36.17 | L121: 34.8 | M121: 33.7 | N121: 70591200 | O121: -9.13%
A122: 112 | B122: Power | C122: POWERGRID | D122: 171.15 | E122: 169.28 | F122: 166.67 | G122: 162.18 | H122: 159.57 | I122: 173.77 | J122: 176.38 | K122: 180.87 | L122: 171.9 | M122: 164.8 | N122: 37224000 | O122: -3.24%
A123: 113 | B123: Media | C123: PVR | D123: 1015.15 | E123: 1006.93 | F123: 994.32 | G123: 973.48 | H123: 960.87 | I123: 1027.77 | J123: 1040.38 | K123: 1061.22 | L123: 1019.55 | M123: 986.1 | N123: 1601600 | O123: -1.04%
A124: 114 | B124: Cement | C124: RAMCOCEM | D124: 641.60 | E124: 639.88 | F124: 621.77 | G124: 601.93 | H124: 583.82 | I124: 659.72 | J124: 677.83 | K124: 697.67 | L124: 658 | M124: 620.05 | N124: 998750 | O124: 18.42%
A125: 115 | B125: Banking | C125: RBLBANK | D125: 169.20 | E125: 168.25 | F125: 163.85 | G125: 158.50 | H125: 154.10 | I125: 173.60 | J125: 178.00 | K125: 183.35 | L125: 172.65 | M125: 162.9 | N125: 21448700 | O125: -2.62%
A126: 116 | B126: Power | C126: RECLTD | D126: 106.80 | E126: 106.45 | F126: 104.40 | G126: 102.00 | H126: 99.95 | I126: 108.85 | J126: 110.90 | K126: 113.30 | L126: 108.5 | M126: 104.05 | N126: 19140000 | O126: 4.69%
A127: 117 | B127: Oil_Gas | C127: RELIANCE | D127: 1760.35 | E127: 1734.95 | F127: 1685.00 | G127: 1609.65 | H127: 1559.70 | I127: 1810.30 | J127: 1860.25 | K127: 1935.60 | L127: 1784.9 | M127: 1659.6 | N127: 33936505 | O127: 8.35%
A128: 118 | B128: Metals | C128: SAIL | D128: 30.15 | E128: 30.17 | F128: 29.73 | G128: 29.32 | H128: 28.88 | I128: 30.58 | J128: 31.02 | K128: 31.43 | L128: 30.6 | M128: 29.75 | N128: 49349000 | O128: -14.34%
A129: 119 | B129: Finance | C129: SBILIFE | D129: 776.95 | E129: 775.47 | F129: 769.43 | G129: 761.92 | H129: 755.88 | I129: 782.98 | J129: 789.02 | K129: 796.53 | L129: 781.5 | M129: 767.95 | N129: 5396250 | O129: -1.73%
A130: 120 | B130: Banking | C130: SBIN | D130: 184.90 | E130: 183.27 | F130: 181.18 | G130: 177.47 | H130: 175.38 | I130: 186.98 | J130: 189.07 | K130: 192.78 | L130: 185.35 | M130: 179.55 | N130: 115746000 | O130: -7.70%
A131: 121 | B131: Cement | C131: SHREECEM | D131: 21714.80 | E131: 21769.45 | F131: 21596.90 | G131: 21479.00 | H131: 21306.45 | I131: 21887.35 | J131: 22059.90 | K131: 22177.80 | L131: 21942 | M131: 21651.55 | N131: 143150 | O131: -0.90%
A132: 122 | B132: Capital_Goods | C132: SIEMENS | D132: 1068.95 | E132: 1063.48 | F132: 1049.92 | G132: 1030.88 | H132: 1017.32 | I132: 1082.52 | J132: 1096.08 | K132: 1115.12 | L132: 1077.05 | M132: 1044.45 | N132: 2301200 | O132: 0.43%
A133: 123 | B133: Textile | C133: SRF | D133: 3618.40 | E133: 3631.48 | F133: 3589.97 | G133: 3561.53 | H133: 3520.02 | I133: 3659.92 | J133: 3701.43 | K133: 3729.87 | L133: 3673 | M133: 3603.05 | N133: 600750 | O133: 4.21%
A134: 124 | B134: Finance | C134: SRTRANSFIN | D134: 661.35 | E134: 671.28 | F134: 647.67 | G134: 633.98 | H134: 610.37 | I134: 684.97 | J134: 708.58 | K134: 722.27 | L134: 694.9 | M134: 657.6 | N134: 3416350 | O134: 16.55%
A135: 125 | B135: Pharma | C135: SUNPHARMA | D135: 487.95 | E135: 487.72 | F135: 483.73 | G135: 479.52 | H135: 475.53 | I135: 491.93 | J135: 495.92 | K135: 500.13 | L135: 491.7 | M135: 483.5 | N135: 33533900 | O135: -1.41%
A136: 126 | B136: Media | C136: SUNTV | D136: 399.55 | E136: 400.52 | F136: 390.73 | G136: 381.92 | H136: 372.13 | I136: 409.33 | J136: 419.12 | K136: 427.93 | L136: 410.3 | M136: 391.7 | N136: 4855200 | O136: 5.16%
A137: 127 | B137: Fertilisers | C137: TATACHEM | D137: 303.70 | E137: 303.75 | F137: 301.00 | G137: 298.30 | H137: 295.55 | I137: 306.45 | J137: 309.20 | K137: 311.90 | L137: 306.5 | M137: 301.05 | N137: 1987800 | O137: -0.70%
A138: 128 | B138: Others | C138: TATACONSUM | D138: 377.50 | E138: 377.08 | F138: 374.32 | G138: 371.13 | H138: 368.37 | I138: 380.27 | J138: 383.03 | K138: 386.22 | L138: 379.85 | M138: 373.9 | N138: 12179700 | O138: -1.33%
A139: 129 | B139: Automobile | C139: TATAMOTORS | D139: 102.60 | E139: 100.73 | F139: 97.32 | G139: 92.03 | H139: 88.62 | I139: 106.02 | J139: 109.43 | K139: 114.72 | L139: 104.15 | M139: 95.45 | N139: 95796400 | O139: 1.12%
A140: 130 | B140: Power | C140: TATAPOWER | D140: 43.35 | E140: 43.42 | F140: 42.78 | G140: 42.22 | H140: 41.58 | I140: 43.98 | J140: 44.62 | K140: 45.18 | L140: 44.05 | M140: 42.85 | N140: 57672000 | O140: 1.25%
A141: 131 | B141: Metals | C141: TATASTEEL | D141: 320.35 | E141: 320.85 | F141: 316.30 | G141: 312.25 | H141: 307.70 | I141: 324.90 | J141: 329.45 | K141: 333.50 | L141: 325.4 | M141: 316.8 | N141: 22080700 | O141: -3.76%
A142: 132 | B142: Technology | C142: TCS | D142: 2049.05 | E142: 2054.97 | F142: 2022.48 | G142: 1995.92 | H142: 1963.43 | I142: 2081.53 | J142: 2114.02 | K142: 2140.58 | L142: 2087.45 | M142: 2028.4 | N142: 14326850 | O142: 1.63%
A143: 133 | B143: Technology | C143: TECHM | D143: 538.35 | E143: 537.08 | F143: 531.82 | G143: 525.28 | H143: 520.02 | I143: 543.62 | J143: 548.88 | K143: 555.42 | L143: 542.35 | M143: 530.55 | N143: 16933200 | O143: -1.28%
A144: 134 | B144: FMCG | C144: TITAN | D144: 977.10 | E144: 981.37 | F144: 969.78 | G144: 962.47 | H144: 950.88 | I144: 988.68 | J144: 1000.27 | K144: 1007.58 | L144: 992.95 | M144: 974.05 | N144: 7167750 | O144: 0.78%
A145: 135 | B145: Pharma | C145: TORNTPHARM | D145: 2539.15 | E145: 2542.72 | F145: 2519.43 | G145: 2499.72 | H145: 2476.43 | I145: 2562.43 | J145: 2585.72 | K145: 2605.43 | L145: 2566 | M145: 2523 | N145: 1110500 | O145: 2.78%
A146: 136 | B146: Power | C146: TORNTPOWER | D146: 321.55 | E146: 322.13 | F146: 319.27 | G146: 316.98 | H146: 314.12 | I146: 324.42 | J146: 327.28 | K146: 329.57 | L146: 325 | M146: 319.85 | N146: 1725000 | O146: -1.37%
A147: 137 | B147: Automobile | C147: TVSMOTOR | D147: 367.50 | E147: 366.13 | F147: 361.22 | G147: 354.93 | H147: 350.02 | I147: 372.42 | J147: 377.33 | K147: 383.62 | L147: 371.05 | M147: 359.85 | N147: 4719250 | O147: 4.58%
A148: 138 | B148: FMCG | C148: UBL | D148: 1022.40 | E148: 1030.83 | F148: 1007.72 | G148: 993.03 | H148: 969.92 | I148: 1045.52 | J148: 1068.63 | K148: 1083.32 | L148: 1053.95 | M148: 1016.15 | N148: 1059800 | O148: 3.91%
A149: 139 | B149: Finance | C149: UJJIVAN | D149: 213.40 | E149: 212.43 | F149: 205.32 | G149: 197.23 | H149: 190.12 | I149: 220.52 | J149: 227.63 | K149: 235.72 | L149: 219.55 | M149: 204.35 | N149: 3766600 | O149: 16.80%
A150: 140 | B150: Cement | C150: ULTRACEMCO | D150: 3843.90 | E150: 3855.47 | F150: 3813.48 | G150: 3783.07 | H150: 3741.08 | I150: 3885.88 | J150: 3927.87 | K150: 3958.28 | L150: 3897.45 | M150: 3825.05 | N150: 2464800 | O150: 1.36%
A151: 141 | B151: Fertilisers | C151: UPL | D151: 437.25 | E151: 435.32 | F151: 429.98 | G151: 422.72 | H151: 417.38 | I151: 442.58 | J151: 447.92 | K151: 455.18 | L151: 440.65 | M151: 428.05 | N151: 9919300 | O151: -6.47%
A152: 142 | B152: Metals | C152: VEDL | D152: 105.50 | E152: 106.52 | F152: 103.78 | G152: 102.07 | H152: 99.33 | I152: 108.23 | J152: 110.97 | K152: 112.68 | L152: 109.25 | M152: 104.8 | N152: 108838000 | O152: 3.52%
A153: 143 | B153: Capital_Goods | C153: VOLTAS | D153: 550.00 | E153: 547.42 | F153: 543.13 | G153: 536.27 | H153: 531.98 | I153: 554.28 | J153: 558.57 | K153: 565.43 | L153: 551.7 | M153: 540.55 | N153: 3854000 | O153: 1.37%
A154: 144 | B154: Technology | C154: WIPRO | D154: 221.90 | E154: 220.07 | F154: 216.63 | G154: 211.37 | H154: 207.93 | I154: 225.33 | J154: 228.77 | K154: 234.03 | L154: 223.5 | M154: 214.8 | N154: 27619200 | O154: 1.03%
A155: 145 | B155: Media | C155: ZEEL | D155: 173.25 | E155: 173.60 | F155: 169.05 | G155: 164.85 | H155: 160.30 | I155: 177.80 | J155: 182.35 | K155: 186.55 | L155: 178.15 | M155: 169.4 | N155: 33211400 | O155: 0.30%
A156: 146
A157: 147
A175: Pivot Point: This is trigger point for intra day buy/sell based on the price range of the previous day
A176: As per the tool,the trader should take BUY position just above Pivot and keep the stop loss of pivot point and the first target would be Resistance 1(R1)
A177: If R1 is crossed then R2 becomes the next target with stop loss of at R1
A178: Similarly if price goes below pivot point then the trader should sell and keep a stop loss of pivot point and the first target would be S1
A179: If S1 is crossed then S2 becomes the next target with stop loss of at S1
A181: Disclaimer:
A182: This document has been prepared by the Retail Research Desk of Asit C Mehta
A183: Investment Intermediates Ltd. and is meant for use of the recipient only
A184: and is not for circulation. This document is not to be reported or
A185: copied or made available to others. It should not be considered to be
A186: taken as an offer to sell or a solicitation to buy any security. The
A187: information contained herein is from sources believed reliable. We do
A188: not represent that it is accurate or complete and it should not be
A189: relied upon as such. We may from time to time have positions in and buy
A190: and sell securities referred to herein

Sheet Cash Intra
M5: Back to Main Page
A6: FOR INTRA DAY TRADING | K6: =Main!B10 -> 2020-06-22
A8: Sr.no | B8: Scrip | C8: CLOSE RATE | D8: Pivot Point | E8: Supports | H8: Resistances
C9: Point | E9: S1 | F9: S2 | G9: S3 | H9: R1 | I9: R2 | J9: R3 | K9: HIGH | L9: LOW | M9: Total Trade Quanity in Lakhs
A10: 1 | B10: Nifty 50 | C10: 10244.4 | D10: 10196.48 | E10: 10120.57 | F10: 9996.73 | G10: 9920.82 | H10: 10320.32 | I10: 10396.23 | J10: 10520.07 | K10: 10272.4 | L10: 10072.65
A11: 2 | B11: Nifty Bank | C11: 21338.1 | D11: 21228.00 | E11: 20988.35 | F11: 20638.60 | G11: 20398.95 | H11: 21577.75 | I11: 21817.40 | J11: 22167.15 | K11: 21467.65 | L11: 20878.25
A12: 3 | B12: Nifty CPSE | C12: 1450.2 | D12: 1444.85 | E12: 1435.10 | F12: 1420.00 | G12: 1410.25 | H12: 1459.95 | I12: 1469.70 | J12: 1484.80 | K12: 1454.6 | L12: 1429.75
A13: 4 | B13: Nifty Infra | C13: 3038.65 | D13: 3020.00 | E13: 2987.55 | F13: 2936.45 | G13: 2904.00 | H13: 3071.10 | I13: 3103.55 | J13: 3154.65 | K13: 3052.45 | L13: 2968.9
A14: 5 | B14: Nifty IT | C14: 14499.8 | D14: 14516.02 | E14: 14406.23 | F14: 14312.67 | G14: 14202.88 | H14: 14609.58 | I14: 14719.37 | J14: 14812.93 | K14: 14625.8 | L14: 14422.45
A15: 6 | B15: Nifty PSE | C15: 2492.35 | D15: 2484.48 | E15: 2470.92 | F15: 2449.48 | G15: 2435.92 | H15: 2505.92 | I15: 2519.48 | J15: 2540.92 | K15: 2498.05 | L15: 2463.05
A16: 7 | B16: Nifty Midcap 50 | C16: 4088.15 | D16: 4076.08 | E16: 4055.52 | F16: 4022.88 | G16: 4002.32 | H16: 4108.72 | I16: 4129.28 | J16: 4161.92 | K16: 4096.65 | L16: 4043.45
A17: 8 | B17: ACC | C17: 1272 | D17: 1267.67 | E17: 1250.43 | F17: 1228.87 | G17: 1211.63 | H17: 1289.23 | I17: 1306.47 | J17: 1328.03 | K17: 1284.9 | L17: 1246.1 | M17: 9.04534
A18: 9 | B18: AUBANK | C18: 486.15 | D18: 485.08 | E18: 473.67 | F18: 461.18 | G18: 449.77 | H18: 497.57 | I18: 508.98 | J18: 521.47 | K18: 496.5 | L18: 472.6 | M18: 12.58733
A19: 10 | B19: ADANIPORTS | C19: 348.9 | D19: 348.43 | E19: 341.97 | F19: 335.03 | G19: 328.57 | H19: 355.37 | I19: 361.83 | J19: 368.77 | K19: 354.9 | L19: 341.5 | M19: 69.1761
A20: 11 | B20: ADANIPOWER | C20: 38 | D20: 38.05 | E20: 37.55 | F20: 37.10 | G20: 36.60 | H20: 38.50 | I20: 39.00 | J20: 39.45 | K20: 38.55 | L20: 37.6 | M20: 107.31869
A21: 12 | B21: ABCAPITAL | C21: 55.2 | D21: 56.22 | E21: 53.73 | F21: 52.27 | G21: 49.78 | H21: 57.68 | I21: 60.17 | J21: 61.63 | K21: 58.7 | L21: 54.75 | M21: 119.25837
A22: 13 | B22: ABFRL | C22: 133.1 | D22: 134.00 | E22: 131.10 | F22: 129.10 | G22: 126.20 | H22: 136.00 | I22: 138.90 | J22: 140.90 | K22: 136.9 | L22: 132 | M22: 20.70948
A23: 14 | B23: AJANTPHARM | C23: 1451.5 | D23: 1457.25 | E23: 1439.50 | F23: 1427.50 | G23: 1409.75 | H23: 1469.25 | I23: 1487.00 | J23: 1499.00 | K23: 1475 | L23: 1445.25 | M23: 1.29161
A24: 15 | B24: ALKEM | C24: 2305.35 | D24: 2307.18 | E24: 2281.02 | F24: 2256.68 | G24: 2230.52 | H24: 2331.52 | I24: 2357.68 | J24: 2382.02 | K24: 2333.35 | L24: 2282.85 | M24: 5.25249
A25: 16 | B25: AMARAJABAT | C25: 673.5 | D25: 676.22 | E25: 667.03 | F25: 660.57 | G25: 651.38 | H25: 682.68 | I25: 691.87 | J25: 698.33 | K25: 685.4 | L25: 669.75 | M25: 8.56687
A26: 17 | B26: AMBUJACEM | C26: 190.8 | D26: 190.78 | E26: 187.57 | F26: 184.33 | G26: 181.12 | H26: 194.02 | I26: 197.23 | J26: 200.47 | K26: 194 | L26: 187.55 | M26: 77.23563
A27: 18 | B27: APOLLOHOSP | C27: 1370.7 | D27: 1368.28 | E27: 1352.57 | F27: 1334.43 | G27: 1318.72 | H27: 1386.42 | I27: 1402.13 | J27: 1420.27 | K27: 1384 | L27: 1350.15 | M27: 8.94818
A28: 19 | B28: APOLLOTYRE | C28: 109 | D28: 108.30 | E28: 106.70 | F28: 104.40 | G28: 102.80 | H28: 110.60 | I28: 112.20 | J28: 114.50 | K28: 109.9 | L28: 106 | M28: 136.32267
A29: 20 | B29: ASHOKLEY | C29: 54.35 | D29: 53.45 | E29: 52.00 | F29: 49.65 | G29: 48.20 | H29: 55.80 | I29: 57.25 | J29: 59.60 | K29: 54.9 | L29: 51.1 | M29: 603.17643
A30: 21 | B30: ASIANPAINT | C30: 1622.5 | D30: 1614.52 | E30: 1599.03 | F30: 1575.57 | G30: 1560.08 | H30: 1637.98 | I30: 1653.47 | J30: 1676.93 | K30: 1630 | L30: 1591.05 | M30: 27.14342
A31: 22 | B31: AUROPHARMA | C31: 783.45 | D31: 786.07 | E31: 777.48 | F31: 771.52 | G31: 762.93 | H31: 792.03 | I31: 800.62 | J31: 806.58 | K31: 794.65 | L31: 780.1 | M31: 24.2057
A32: 23 | B32: DMART | C32: 2363.15 | D32: 2357.38 | E32: 2315.77 | F32: 2268.38 | G32: 2226.77 | H32: 2404.77 | I32: 2446.38 | J32: 2493.77 | K32: 2399 | L32: 2310 | M32: 14.79487
A33: 24 | B33: AXISBANK | C33: 417.05 | D33: 415.62 | E33: 408.93 | F33: 400.82 | G33: 394.13 | H33: 423.73 | I33: 430.42 | J33: 438.53 | K33: 422.3 | L33: 407.5 | M33: 520.85893
A34: 25 | B34: BAJAJ-AUTO | C34: 2674.35 | D34: 2679.78 | E34: 2649.57 | F34: 2624.78 | G34: 2594.57 | H34: 2704.57 | I34: 2734.78 | J34: 2759.57 | K34: 2710 | L34: 2655 | M34: 9.29101
A35: 26 | B35: BAJFINANCE | C35: 2698.6 | D35: 2657.72 | E35: 2600.88 | F35: 2503.17 | G35: 2446.33 | H35: 2755.43 | I35: 2812.27 | J35: 2909.98 | K35: 2714.55 | L35: 2560 | M35: 186.04004
A36: 27 | B36: BAJAJFINSV | C36: 5899.8 | D36: 5771.30 | E36: 5572.30 | F36: 5244.80 | G36: 5045.80 | H36: 6098.80 | I36: 6297.80 | J36: 6625.30 | K36: 5970.3 | L36: 5443.8 | M36: 35.95572
A37: 28 | B37: BAJAJHLDNG | C37: 2527.25 | D37: 2503.28 | E37: 2436.62 | F37: 2345.98 | G37: 2279.32 | H37: 2593.92 | I37: 2660.58 | J37: 2751.22 | K37: 2569.95 | L37: 2412.65 | M37: 1.02066
A38: 29 | B38: BALKRISIND | C38: 1215.85 | D38: 1222.80 | E38: 1201.25 | F38: 1186.65 | G38: 1165.10 | H38: 1237.40 | I38: 1258.95 | J38: 1273.55 | K38: 1244.35 | L38: 1208.2 | M38: 14.88434
A39: 30 | B39: BANDHANBNK | C39: 290.6 | D39: 285.95 | E39: 277.20 | F39: 263.80 | G39: 255.05 | H39: 299.35 | I39: 308.10 | J39: 321.50 | K39: 294.7 | L39: 272.55 | M39: 203.01806
A40: 31 | B40: BANKBARODA | C40: 47.05 | D40: 46.82 | E40: 46.13 | F40: 45.22 | G40: 44.53 | H40: 47.73 | I40: 48.42 | J40: 49.33 | K40: 47.5 | L40: 45.9 | M40: 481.59332
A41: 32 | B41: BANKINDIA | C41: 51.45 | D41: 51.55 | E41: 50.70 | F41: 49.95 | G41: 49.10 | H41: 52.30 | I41: 53.15 | J41: 53.90 | K41: 52.4 | L41: 50.8 | M41: 66.65069
A42: 33 | B42: BATAINDIA | C42: 1343.55 | D42: 1337.95 | E42: 1320.20 | F42: 1296.85 | G42: 1279.10 | H42: 1361.30 | I42: 1379.05 | J42: 1402.40 | K42: 1355.7 | L42: 1314.6 | M42: 10.25604
A43: 34 | B43: BERGEPAINT | C43: 500.5 | D43: 502.75 | E43: 494.75 | F43: 489.00 | G43: 481.00 | H43: 508.50 | I43: 516.50 | J43: 522.25 | K43: 510.75 | L43: 497 | M43: 21.12948
A44: 35 | B44: BEL | C44: 80.05 | D44: 79.33 | E44: 77.17 | F44: 74.28 | G44: 72.12 | H44: 82.22 | I44: 84.38 | J44: 87.27 | K44: 81.5 | L44: 76.45 | M44: 286.36591
A45: 36 | B45: BHARATFORG | C45: 375.8 | D45: 372.38 | E45: 364.97 | F45: 354.13 | G45: 346.72 | H45: 383.22 | I45: 390.63 | J45: 401.47 | K45: 379.8 | L45: 361.55 | M45: 32.34212
A46: 37 | B46: BHEL | C46: 32.45 | D46: 32.40 | E46: 31.80 | F46: 31.15 | G46: 30.55 | H46: 33.05 | I46: 33.65 | J46: 34.30 | K46: 33 | L46: 31.75 | M46: 1010.37121
A47: 38 | B47: BPCL | C47: 380.55 | D47: 378.68 | E47: 372.87 | F47: 365.18 | G47: 359.37 | H47: 386.37 | I47: 392.18 | J47: 399.87 | K47: 384.5 | L47: 371 | M47: 66.35776
A48: 39 | B48: BHARTIARTL | C48: 572.5 | D48: 570.57 | E48: 562.93 | F48: 553.37 | G48: 545.73 | H48: 580.13 | I48: 587.77 | J48: 597.33 | K48: 578.2 | L48: 561 | M48: 411.52446
A49: 40 | B49: INFRATEL | C49: 218.85 | D49: 215.97 | E49: 211.93 | F49: 205.02 | G49: 200.98 | H49: 222.88 | I49: 226.92 | J49: 233.83 | K49: 220 | L49: 209.05 | M49: 130.88339
A50: 41 | B50: BIOCON | C50: 381.25 | D50: 386.20 | E50: 375.15 | F50: 369.05 | G50: 358.00 | H50: 392.30 | I50: 403.35 | J50: 409.45 | K50: 397.25 | L50: 380.1 | M50: 64.60477
A51: 42 | B51: BBTC | C51: 1057.4 | D51: 1051.97 | E51: 1028.28 | F51: 999.17 | G51: 975.48 | H51: 1081.08 | I51: 1104.77 | J51: 1133.88 | K51: 1075.65 | L51: 1022.85 | M51: 1.46192
A52: 43 | B52: BOSCHLTD | C52: 10949.1 | D52: 10874.67 | E52: 10674.43 | F52: 10399.77 | G52: 10199.53 | H52: 11149.33 | I52: 11349.57 | J52: 11624.23 | K52: 11074.9 | L52: 10600 | M52: 0.58972
A53: 44 | B53: BRITANNIA | C53: 3438.55 | D53: 3423.52 | E53: 3397.03 | F53: 3355.52 | G53: 3329.03 | H53: 3465.03 | I53: 3491.52 | J53: 3533.03 | K53: 3450 | L53: 3382 | M53: 7.8274
A54: 45 | B54: CESC | C54: 600.95 | D54: 601.70 | E54: 593.35 | F54: 585.75 | G54: 577.40 | H54: 609.30 | I54: 617.65 | J54: 625.25 | K54: 610.05 | L54: 594.1 | M54: 5.0299
A55: 46 | B55: CADILAHC | C55: 362.05 | D55: 364.00 | E55: 358.30 | F55: 354.55 | G55: 348.85 | H55: 367.75 | I55: 373.45 | J55: 377.20 | K55: 369.7 | L55: 360.25 | M55: 50.07226
A56: 47 | B56: CANBK | C56: 107.35 | D56: 106.48 | E56: 104.47 | F56: 101.58 | G56: 99.57 | H56: 109.37 | I56: 111.38 | J56: 114.27 | K56: 108.5 | L56: 103.6 | M56: 292.10643
A57: 48 | B57: CASTROLIND | C57: 118.9 | D57: 119.22 | E57: 117.93 | F57: 116.97 | G57: 115.68 | H57: 120.18 | I57: 121.47 | J57: 122.43 | K57: 120.5 | L57: 118.25 | M57: 28.47903
A58: 49 | B58: CHOLAFIN | C58: 196.8 | D58: 193.50 | E58: 182.30 | F58: 167.80 | G58: 156.60 | H58: 208.00 | I58: 219.20 | J58: 233.70 | K58: 204.7 | L58: 179 | M58: 368.15093
A59: 50 | B59: CIPLA | C59: 636.2 | D59: 638.85 | E59: 628.85 | F59: 621.50 | G59: 611.50 | H59: 646.20 | I59: 656.20 | J59: 663.55 | K59: 648.85 | L59: 631.5 | M59: 44.7603
A60: 51 | B60: CUB | C60: 127.1 | D60: 128.02 | E60: 121.53 | F60: 115.97 | G60: 109.48 | H60: 133.58 | I60: 140.07 | J60: 145.63 | K60: 134.5 | L60: 122.45 | M60: 98.38308
A61: 52 | B61: COALINDIA | C61: 137.25 | D61: 137.48 | E61: 134.97 | F61: 132.68 | G61: 130.17 | H61: 139.77 | I61: 142.28 | J61: 144.57 | K61: 140 | L61: 135.2 | M61: 174.68342
A62: 53 | B62: COLPAL | C62: 1356.7 | D62: 1358.90 | E62: 1345.80 | F62: 1334.90 | G62: 1321.80 | H62: 1369.80 | I62: 1382.90 | J62: 1393.80 | K62: 1372 | L62: 1348 | M62: 9.95232
A63: 54 | B63: CONCOR | C63: 409.05 | D63: 406.78 | E63: 401.62 | F63: 394.18 | G63: 389.02 | H63: 414.22 | I63: 419.38 | J63: 426.82 | K63: 411.95 | L63: 399.35 | M63: 22.54649
A64: 55 | B64: COROMANDEL | C64: 720 | D64: 724.30 | E64: 699.95 | F64: 679.90 | G64: 655.55 | H64: 744.35 | I64: 768.70 | J64: 788.75 | K64: 748.65 | L64: 704.25 | M64: 7.25117
A65: 56 | B65: CROMPTON | C65: 229.7 | D65: 229.08 | E65: 226.62 | F65: 223.53 | G65: 221.07 | H65: 232.17 | I65: 234.63 | J65: 237.72 | K65: 231.55 | L65: 226 | M65: 8.3868
A66: 57 | B66: CUMMINSIND | C66: 376.25 | D66: 375.28 | E66: 371.57 | F66: 366.88 | G66: 363.17 | H66: 379.97 | I66: 383.68 | J66: 388.37 | K66: 379 | L66: 370.6 | M66: 18.94591
A67: 58 | B67: DLF | C67: 161.8 | D67: 157.58 | E67: 152.72 | F67: 143.63 | G67: 138.77 | H67: 166.67 | I67: 171.53 | J67: 180.62 | K67: 162.45 | L67: 148.5 | M67: 226.06656
A68: 59 | B68: DABUR | C68: 443.05 | D68: 444.68 | E68: 439.87 | F68: 436.68 | G68: 431.87 | H68: 447.87 | I68: 452.68 | J68: 455.87 | K68: 449.5 | L68: 441.5 | M68: 44.82129
A69: 60 | B69: DALBHARAT | C69: 599.65 | D69: 593.23 | E69: 580.77 | F69: 561.88 | G69: 549.42 | H69: 612.12 | I69: 624.58 | J69: 643.47 | K69: 605.7 | L69: 574.35 | M69: 6.33766
A70: 61 | B70: DIVISLAB | C70: 2304.75 | D70: 2306.92 | E70: 2283.83 | F70: 2262.92 | G70: 2239.83 | H70: 2327.83 | I70: 2350.92 | J70: 2371.83 | K70: 2330 | L70: 2286 | M70: 7.28257
A71: 62 | B71: DRREDDY | C71: 4005.6 | D71: 4014.17 | E71: 3983.43 | F71: 3961.27 | G71: 3930.53 | H71: 4036.33 | I71: 4067.07 | J71: 4089.23 | K71: 4044.9 | L71: 3992 | M71: 7.30943
A72: 63 | B72: EDELWEISS | C72: 45.4 | D72: 44.55 | E72: 43.70 | F72: 42.00 | G72: 41.15 | H72: 46.25 | I72: 47.10 | J72: 48.80 | K72: 45.4 | L72: 42.85 | M72: 36.83958
A73: 64 | B73: EICHERMOT | C73: 17349.35 | D73: 17259.78 | E73: 16969.57 | F73: 16589.78 | G73: 16299.57 | H73: 17639.57 | I73: 17929.78 | J73: 18309.57 | K73: 17550 | L73: 16880 | M73: 3.11932
A74: 65 | B74: EMAMILTD | C74: 201.7 | D74: 202.40 | E74: 198.30 | F74: 194.90 | G74: 190.80 | H74: 205.80 | I74: 209.90 | J74: 213.30 | K74: 206.5 | L74: 199 | M74: 9.25425
A75: 66 | B75: ENDURANCE | C75: 856.3 | D75: 864.57 | E75: 827.13 | F75: 797.97 | G75: 760.53 | H75: 893.73 | I75: 931.17 | J75: 960.33 | K75: 902 | L75: 835.4 | M75: 1.8577
A76: 67 | B76: ENGINERSIN | C76: 67.35 | D76: 67.97 | E76: 66.43 | F76: 65.52 | G76: 63.98 | H76: 68.88 | I76: 70.42 | J76: 71.33 | K76: 69.5 | L76: 67.05 | M76: 11.47759
A77: 68 | B77: ESCORTS | C77: 984.4 | D77: 982.37 | E77: 970.18 | F77: 955.97 | G77: 943.78 | H77: 996.58 | I77: 1008.77 | J77: 1022.98 | K77: 994.55 | L77: 968.15 | M77: 14.58038
A78: 69 | B78: EXIDEIND | C78: 152 | D78: 151.75 | E78: 149.50 | F78: 147.00 | G78: 144.75 | H78: 154.25 | I78: 156.50 | J78: 159.00 | K78: 154 | L78: 149.25 | M78: 48.7211
A79: 70 | B79: FEDERALBNK | C79: 50.95 | D79: 50.02 | E79: 48.83 | F79: 46.72 | G79: 45.53 | H79: 52.13 | I79: 53.32 | J79: 55.43 | K79: 51.2 | L79: 47.9 | M79: 618.04616
A80: 71 | B80: FORTIS | C80: 122.4 | D80: 122.93 | E80: 120.97 | F80: 119.53 | G80: 117.57 | H80: 124.37 | I80: 126.33 | J80: 127.77 | K80: 124.9 | L80: 121.5 | M80: 28.49024
A81: 72 | B81: FCONSUMER | C81: 14.5 | D81: 14.50 | E81: 14.50 | F81: 14.50 | G81: 14.50 | H81: 14.50 | I81: 14.50 | J81: 14.50 | K81: 14.5 | L81: 14.5 | M81: 3.6339
A82: 73 | B82: FRETAIL | C82: 111.65 | D82: 111.65 | E82: 111.65 | F82: 111.65 | G82: 111.65 | H82: 111.65 | I82: 111.65 | J82: 111.65 | K82: 111.65 | L82: 111.65 | M82: 6.60262
A83: 74 | B83: GAIL | C83: 99.5 | D83: 99.08 | E83: 97.92 | F83: 96.33 | G83: 95.17 | H83: 100.67 | I83: 101.83 | J83: 103.42 | K83: 100.25 | L83: 97.5 | M83: 173.34763
A84: 75 | B84: GMRINFRA | C84: 21.6 | D84: 21.28 | E84: 20.62 | F84: 19.63 | G84: 18.97 | H84: 22.27 | I84: 22.93 | J84: 23.92 | K84: 21.95 | L84: 20.3 | M84: 293.16472
A85: 76 | B85: GICRE | C85: 153.3 | D85: 155.43 | E85: 149.97 | F85: 146.63 | G85: 141.17 | H85: 158.77 | I85: 164.23 | J85: 167.57 | K85: 160.9 | L85: 152.1 | M85: 6.21731
A86: 77 | B86: GLENMARK | C86: 409.35 | D86: 411.35 | E86: 405.70 | F86: 402.05 | G86: 396.40 | H86: 415.00 | I86: 420.65 | J86: 424.30 | K86: 417 | L86: 407.7 | M86: 48.71849
A87: 78 | B87: GODREJAGRO | C87: 428.8 | D87: 428.90 | E87: 422.45 | F87: 416.10 | G87: 409.65 | H87: 435.25 | I87: 441.70 | J87: 448.05 | K87: 435.35 | L87: 422.55 | M87: 2.49263
A88: 79 | B88: GODREJCP | C88: 650.5 | D88: 647.55 | E88: 640.10 | F88: 629.70 | G88: 622.25 | H88: 657.95 | I88: 665.40 | J88: 675.80 | K88: 655 | L88: 637.15 | M88: 24.39529
A89: 80 | B89: GODREJIND | C89: 382.05 | D89: 380.72 | E89: 376.43 | F89: 370.82 | G89: 366.53 | H89: 386.33 | I89: 390.62 | J89: 396.23 | K89: 385 | L89: 375.1 | M89: 2.51773
A90: 81 | B90: GODREJPROP | C90: 893.8 | D90: 875.27 | E90: 845.53 | F90: 797.27 | G90: 767.53 | H90: 923.53 | I90: 953.27 | J90: 1001.53 | K90: 905 | L90: 827 | M90: 16.63431
A91: 82 | B91: GRAPHITE | C91: 186.9 | D91: 188.73 | E91: 183.67 | F91: 180.43 | G91: 175.37 | H91: 191.97 | I91: 197.03 | J91: 200.27 | K91: 193.8 | L91: 185.5 | M91: 4.20691
A92: 83 | B92: GRASIM | C92: 601.25 | D92: 599.50 | E92: 595.30 | F92: 589.35 | G92: 585.15 | H92: 605.45 | I92: 609.65 | J92: 615.60 | K92: 603.7 | L92: 593.55 | M92: 26.1983
A93: 84 | B93: GSPL | C93: 226.4 | D93: 225.58 | E93: 222.17 | F93: 217.93 | G93: 214.52 | H93: 229.82 | I93: 233.23 | J93: 237.47 | K93: 229 | L93: 221.35 | M93: 14.46007
A94: 85 | B94: HEG | C94: 883.45 | D94: 897.02 | E94: 866.03 | F94: 848.62 | G94: 817.63 | H94: 914.43 | I94: 945.42 | J94: 962.83 | K94: 928 | L94: 879.6 | M94: 3.97635
A95: 86 | B95: HCLTECH | C95: 569.6 | D95: 571.60 | E95: 565.20 | F95: 560.80 | G95: 554.40 | H95: 576.00 | I95: 582.40 | J95: 586.80 | K95: 578 | L95: 567.2 | M95: 61.8263
A96: 87 | B96: HDFCAMC | C96: 2444.7 | D96: 2438.32 | E96: 2416.63 | F96: 2388.57 | G96: 2366.88 | H96: 2466.38 | I96: 2488.07 | J96: 2516.13 | K96: 2460 | L96: 2410.25 | M96: 10.24865
A97: 88 | B97: HDFCBANK | C97: 1033.35 | D97: 1029.50 | E97: 1016.00 | F97: 998.65 | G97: 985.15 | H97: 1046.85 | I97: 1060.35 | J97: 1077.70 | K97: 1043 | L97: 1012.15 | M97: 239.39324
A98: 89 | B98: HDFCLIFE | C98: 521.1 | D98: 519.82 | E98: 515.63 | F98: 510.17 | G98: 505.98 | H98: 525.28 | I98: 529.47 | J98: 534.93 | K98: 524 | L98: 514.35 | M98: 45.69791
A99: 90 | B99: HAVELLS | C99: 566.35 | D99: 562.92 | E99: 548.93 | F99: 531.52 | G99: 517.53 | H99: 580.33 | I99: 594.32 | J99: 611.73 | K99: 576.9 | L99: 545.5 | M99: 53.0561
A100: 91 | B100: HEROMOTOCO | C100: 2355.85 | D100: 2356.97 | E100: 2331.13 | F100: 2306.42 | G100: 2280.58 | H100: 2381.68 | I100: 2407.52 | J100: 2432.23 | K100: 2382.8 | L100: 2332.25 | M100: 36.02756
A101: 92 | B101: HEXAWARE | C101: 315.8 | D101: 318.77 | E101: 311.13 | F101: 306.47 | G101: 298.83 | H101: 323.43 | I101: 331.07 | J101: 335.73 | K101: 326.4 | L101: 314.1 | M101: 13.62166
A102: 93 | B102: HINDALCO | C102: 151.05 | D102: 150.63 | E102: 148.92 | F102: 146.78 | G102: 145.07 | H102: 152.77 | I102: 154.48 | J102: 156.62 | K102: 152.35 | L102: 148.5 | M102: 146.31329
A103: 94 | B103: HINDPETRO | C103: 223.65 | D103: 222.88 | E103: 219.87 | F103: 216.08 | G103: 213.07 | H103: 226.67 | I103: 229.68 | J103: 233.47 | K103: 225.9 | L103: 219.1 | M103: 106.83834
A104: 95 | B104: HINDUNILVR | C104: 2092.75 | D104: 2083.25 | E104: 2066.50 | F104: 2040.25 | G104: 2023.50 | H104: 2109.50 | I104: 2126.25 | J104: 2152.50 | K104: 2100 | L104: 2057 | M104: 46.73557
A105: 96 | B105: HINDZINC | C105: 178.05 | D105: 178.88 | E105: 175.77 | F105: 173.48 | G105: 170.37 | H105: 181.17 | I105: 184.28 | J105: 186.57 | K105: 182 | L105: 176.6 | M105: 9.40992
A106: 97 | B106: HUDCO | C106: 25.95 | D106: 26.12 | E106: 25.48 | F106: 25.02 | G106: 24.38 | H106: 26.58 | I106: 27.22 | J106: 27.68 | K106: 26.75 | L106: 25.65 | M106: 28.51487
A107: 98 | B107: HDFC | C107: 1835.1 | D107: 1838.87 | E107: 1810.23 | F107: 1785.37 | G107: 1756.73 | H107: 1863.73 | I107: 1892.37 | J107: 1917.23 | K107: 1867.5 | L107: 1814 | M107: 121.99449
A108: 99 | B108: ICICIBANK | C108: 363.8 | D108: 359.48 | E108: 353.52 | F108: 343.23 | G108: 337.27 | H108: 369.77 | I108: 375.73 | J108: 386.02 | K108: 365.45 | L108: 349.2 | M108: 513.68058
A109: 100 | B109: ICICIGI | C109: 1270.15 | D109: 1265.02 | E109: 1255.13 | F109: 1240.12 | G109: 1230.23 | H109: 1280.03 | I109: 1289.92 | J109: 1304.93 | K109: 1274.9 | L109: 1250 | M109: 270.38404
A110: 101 | B110: ICICIPRULI | C110: 391.6 | D110: 391.92 | E110: 385.93 | F110: 380.27 | G110: 374.28 | H110: 397.58 | I110: 403.57 | J110: 409.23 | K110: 397.9 | L110: 386.25 | M110: 34.5975
A111: 102 | B111: IDBI | C111: 31.75 | D111: 31.92 | E111: 31.38 | F111: 31.02 | G111: 30.48 | H111: 32.28 | I111: 32.82 | J111: 33.18 | K111: 32.45 | L111: 31.55 | M111: 16.42101
A112: 103 | B112: IDFCFIRSTB | C112: 25.85 | D112: 25.92 | E112: 25.53 | F112: 25.22 | G112: 24.83 | H112: 26.23 | I112: 26.62 | J112: 26.93 | K112: 26.3 | L112: 25.6 | M112: 465.5969
A113: 104 | B113: ITC | C113: 184.05 | D113: 185.20 | E113: 182.45 | F113: 180.85 | G113: 178.10 | H113: 186.80 | I113: 189.55 | J113: 191.15 | K113: 187.95 | L113: 183.6 | M113: 305.31484
A114: 105 | B114: IBULHSGFIN | C114: 203.4 | D114: 189.90 | E114: 170.35 | F114: 137.30 | G114: 117.75 | H114: 222.95 | I114: 242.50 | J114: 275.55 | K114: 209.45 | L114: 156.85 | M114: 979.52166
A115: 106 | B115: IBVENTURES | C115: 88.25 | D115: 87.40 | E115: 86.55 | F115: 84.85 | G115: 84.00 | H115: 89.10 | I115: 89.95 | J115: 91.65 | K115: 88.25 | L115: 85.7 | M115: 15.89411
A116: 107 | B116: INDIANB | C116: 56.2 | D116: 56.20 | E116: 55.50 | F116: 54.80 | G116: 54.10 | H116: 56.90 | I116: 57.60 | J116: 58.30 | K116: 56.9 | L116: 55.5 | M116: 39.30822
A117: 108 | B117: INDHOTEL | C117: 83.35 | D117: 83.25 | E117: 80.70 | F117: 78.05 | G117: 75.50 | H117: 85.90 | I117: 88.45 | J117: 91.10 | K117: 85.8 | L117: 80.6 | M117: 30.56317
A118: 109 | B118: IOC | C118: 85.3 | D118: 85.37 | E118: 84.63 | F118: 83.97 | G118: 83.23 | H118: 86.03 | I118: 86.77 | J118: 87.43 | K118: 86.1 | L118: 84.7 | M118: 215.37953
A119: 110 | B119: IGL | C119: 447.65 | D119: 448.32 | E119: 442.63 | F119: 437.62 | G119: 431.93 | H119: 453.33 | I119: 459.02 | J119: 464.03 | K119: 454 | L119: 443.3 | M119: 44.75686
A120: 111 | B120: INDUSINDBK | C120: 483.65 | D120: 488.77 | E120: 467.03 | F120: 450.42 | G120: 428.68 | H120: 505.38 | I120: 527.12 | J120: 543.73 | K120: 510.5 | L120: 472.15 | M120: 418.24767
A121: 112 | B121: NAUKRI | C121: 2677.95 | D121: 2698.90 | E121: 2599.80 | F121: 2521.65 | G121: 2422.55 | H121: 2777.05 | I121: 2876.15 | J121: 2954.30 | K121: 2798 | L121: 2620.75 | M121: 5.98562
A122: 113 | B122: INFY | C122: 705.55 | D122: 706.15 | E122: 700.40 | F122: 695.25 | G122: 689.50 | H122: 711.30 | I122: 717.05 | J122: 722.20 | K122: 711.9 | L122: 701 | M122: 224.38873
A123: 114 | B123: INDIGO | C123: 1027.6 | D123: 1030.87 | E123: 1012.73 | F123: 997.87 | G123: 979.73 | H123: 1045.73 | I123: 1063.87 | J123: 1078.73 | K123: 1049 | L123: 1016 | M123: 16.08772
A124: 115 | B124: IPCALAB | C124: 1615.6 | D124: 1608.53 | E124: 1592.07 | F124: 1568.53 | G124: 1552.07 | H124: 1632.07 | I124: 1648.53 | J124: 1672.07 | K124: 1625 | L124: 1585 | M124: 3.32436
A125: 116 | B125: JSWENERGY | C125: 47.9 | D125: 48.10 | E125: 47.60 | F125: 47.30 | G125: 46.80 | H125: 48.40 | I125: 48.90 | J125: 49.20 | K125: 48.6 | L125: 47.8 | M125: 23.9376
A126: 117 | B126: JSWSTEEL | C126: 194.3 | D126: 194.78 | E126: 192.22 | F126: 190.13 | G126: 187.57 | H126: 196.87 | I126: 199.43 | J126: 201.52 | K126: 197.35 | L126: 192.7 | M126: 182.04886
A127: 118 | B127: JINDALSTEL | C127: 145.7 | D127: 145.78 | E127: 143.52 | F127: 141.33 | G127: 139.07 | H127: 147.97 | I127: 150.23 | J127: 152.42 | K127: 148.05 | L127: 143.6 | M127: 68.79079
A128: 119 | B128: JUBLFOOD | C128: 1689.1 | D128: 1691.03 | E128: 1668.77 | F128: 1648.43 | G128: 1626.17 | H128: 1711.37 | I128: 1733.63 | J128: 1753.97 | K128: 1713.3 | L128: 1670.7 | M128: 7.7465
A129: 120 | B129: JUBILANT | C129: 646.6 | D129: 655.38 | E129: 635.42 | F129: 624.23 | G129: 604.27 | H129: 666.57 | I129: 686.53 | J129: 697.72 | K129: 675.35 | L129: 644.2 | M129: 5.30011
A130: 121 | B130: KOTAKBANK | C130: 1302.5 | D130: 1298.20 | E130: 1280.65 | F130: 1258.80 | G130: 1241.25 | H130: 1320.05 | I130: 1337.60 | J130: 1359.45 | K130: 1315.75 | L130: 1276.35 | M130: 84.92619
A131: 122 | B131: L&TFH | C131: 67.5 | D131: 66.68 | E131: 65.07 | F131: 62.63 | G131: 61.02 | H131: 69.12 | I131: 70.73 | J131: 73.17 | K131: 68.3 | L131: 64.25 | M131: 442.80557
A132: 123 | B132: LTTS | C132: 1343.05 | D132: 1338.53 | E132: 1325.12 | F132: 1307.18 | G132: 1293.77 | H132: 1356.47 | I132: 1369.88 | J132: 1387.82 | K132: 1351.95 | L132: 1320.6 | M132: 0.77745
A133: 124 | B133: LICHSGFIN | C133: 284.75 | D133: 284.32 | E133: 280.78 | F133: 276.82 | G133: 273.28 | H133: 288.28 | I133: 291.82 | J133: 295.78 | K133: 287.85 | L133: 280.35 | M133: 74.26176
A134: 125 | B134: LTI | C134: 1869.85 | D134: 1883.32 | E134: 1846.53 | F134: 1823.22 | G134: 1786.43 | H134: 1906.63 | I134: 1943.42 | J134: 1966.73 | K134: 1920.1 | L134: 1860 | M134: 1.59385
A135: 126 | B135: LT | C135: 898.2 | D135: 903.07 | E135: 890.23 | F135: 882.27 | G135: 869.43 | H135: 911.03 | I135: 923.87 | J135: 931.83 | K135: 915.9 | L135: 895.1 | M135: 54.10276
A136: 127 | B136: LUPIN | C136: 914.45 | D136: 917.88 | E136: 908.87 | F136: 903.28 | G136: 894.27 | H136: 923.47 | I136: 932.48 | J136: 938.07 | K136: 926.9 | L136: 912.3 | M136: 22.95783
A137: 128 | B137: MRF | C137: 62949.3 | D137: 63080.75 | E137: 62568.55 | F137: 62187.80 | G137: 61675.60 | H137: 63461.50 | I137: 63973.70 | J137: 64354.45 | K137: 63592.95 | L137: 62700 | M137: 0.07143
A138: 129 | B138: MGL | C138: 1075.65 | D138: 1077.08 | E138: 1059.57 | F138: 1043.48 | G138: 1025.97 | H138: 1093.17 | I138: 1110.68 | J138: 1126.77 | K138: 1094.6 | L138: 1061 | M138: 11.59154
A139: 130 | B139: M&MFIN | C139: 174.4 | D139: 173.38 | E139: 169.02 | F139: 163.63 | G139: 159.27 | H139: 178.77 | I139: 183.13 | J139: 188.52 | K139: 177.75 | L139: 168 | M139: 183.79228
A140: 131 | B140: M&M | C140: 500.05 | D140: 501.02 | E140: 495.43 | F140: 490.82 | G140: 485.23 | H140: 505.63 | I140: 511.22 | J140: 515.83 | K140: 506.6 | L140: 496.4 | M140: 98.11021
A141: 132 | B141: MANAPPURAM | C141: 151.6 | D141: 151.43 | E141: 149.22 | F141: 146.83 | G141: 144.62 | H141: 153.82 | I141: 156.03 | J141: 158.42 | K141: 153.65 | L141: 149.05 | M141: 189.17228
A142: 133 | B142: MRPL | C142: 32.15 | D142: 32.50 | E142: 31.65 | F142: 31.15 | G142: 30.30 | H142: 33.00 | I142: 33.85 | J142: 34.35 | K142: 33.35 | L142: 32 | M142: 5.47689
A143: 134 | B143: MARICO | C143: 331.9 | D143: 332.33 | E143: 329.67 | F143: 327.43 | G143: 324.77 | H143: 334.57 | I143: 337.23 | J143: 339.47 | K143: 335 | L143: 330.1 | M143: 27.1334
A144: 135 | B144: MARUTI | C144: 5897.35 | D144: 5846.45 | E144: 5757.90 | F144: 5618.45 | G144: 5529.90 | H144: 5985.90 | I144: 6074.45 | J144: 6213.90 | K144: 5935 | L144: 5707 | M144: 18.54591
A145: 136 | B145: MFSL | C145: 503.8 | D145: 502.70 | E145: 490.40 | F145: 477.00 | G145: 464.70 | H145: 516.10 | I145: 528.40 | J145: 541.80 | K145: 515 | L145: 489.3 | M145: 13.49689
A146: 137 | B146: MINDTREE | C146: 915.1 | D146: 916.07 | E146: 897.58 | F146: 880.07 | G146: 861.58 | H146: 933.58 | I146: 952.07 | J146: 969.58 | K146: 934.55 | L146: 898.55 | M146: 29.20769
A147: 138 | B147: MOTHERSUMI | C147: 97.35 | D147: 97.48 | E147: 95.87 | F147: 94.38 | G147: 92.77 | H147: 98.97 | I147: 100.58 | J147: 102.07 | K147: 99.1 | L147: 96 | M147: 198.84765
A148: 139 | B148: MPHASIS | C148: 840.15 | D148: 844.30 | E148: 829.15 | F148: 818.15 | G148: 803.00 | H148: 855.30 | I148: 870.45 | J148: 881.45 | K148: 859.45 | L148: 833.3 | M148: 2.61505
A149: 140 | B149: MUTHOOTFIN | C149: 1180 | D149: 1208.20 | E149: 1132.40 | F149: 1084.80 | G149: 1009.00 | H149: 1255.80 | I149: 1331.60 | J149: 1379.20 | K149: 1284 | L149: 1160.6 | M149: 173.46696
A150: 141 | B150: NATCOPHARM | C150: 628.65 | D150: 623.75 | E150: 615.50 | F150: 602.35 | G150: 594.10 | H150: 636.90 | I150: 645.15 | J150: 658.30 | K150: 632 | L150: 610.6 | M150: 6.19508
A151: 142 | B151: NBCC | C151: 24.2 | D151: 24.30 | E151: 23.90 | F151: 23.60 | G151: 23.20 | H151: 24.60 | I151: 25.00 | J151: 25.30 | K151: 24.7 | L151: 24 | M151: 120.57218
A152: 143 | B152: NHPC | C152: 19.9 | D152: 20.05 | E152: 19.65 | F152: 19.40 | G152: 19.00 | H152: 20.30 | I152: 20.70 | J152: 20.95 | K152: 20.45 | L152: 19.8 | M152: 75.52921
A153: 144 | B153: NMDC | C153: 82.45 | D153: 82.95 | E153: 81.60 | F153: 80.75 | G153: 79.40 | H153: 83.80 | I153: 85.15 | J153: 86.00 | K153: 84.3 | L153: 82.1 | M153: 61.18843
A154: 145 | B154: NTPC | C154: 93 | D154: 93.15 | E154: 92.25 | F154: 91.50 | G154: 90.60 | H154: 93.90 | I154: 94.80 | J154: 95.55 | K154: 94.05 | L154: 92.4 | M154: 138.36696
A155: 146 | B155: NATIONALUM | C155: 30.65 | D155: 30.78 | E155: 30.22 | F155: 29.78 | G155: 29.22 | H155: 31.22 | I155: 31.78 | J155: 32.22 | K155: 31.35 | L155: 30.35 | M155: 463.4142
A156: 147 | B156: NESTLEIND | C156: 16094.85 | D156: 16150.90 | E156: 15996.15 | F156: 15897.45 | G156: 15742.70 | H156: 16249.60 | I156: 16404.35 | J156: 16503.05 | K156: 16305.65 | L156: 16052.2 | M156: 1.68895
A157: 148 | B157: NAM-INDIA | C157: 281.55 | D157: 283.57 | E157: 278.33 | F157: 275.12 | G157: 269.88 | H157: 286.78 | I157: 292.02 | J157: 295.23 | K157: 288.8 | L157: 280.35 | M157: 9.79477
A158: 149 | B158: OBEROIRLTY | C158: 374.8 | D158: 375.37 | E158: 360.03 | F158: 345.27 | G158: 329.93 | H158: 390.13 | I158: 405.47 | J158: 420.23 | K158: 390.7 | L158: 360.6 | M158: 5.07471
A159: 150 | B159: ONGC | C159: 85.75 | D159: 85.45 | E159: 84.60 | F159: 83.45 | G159: 82.60 | H159: 86.60 | I159: 87.45 | J159: 88.60 | K159: 86.3 | L159: 84.3 | M159: 219.20952
A160: 151 | B160: OIL | C160: 105.25 | D160: 104.07 | E160: 100.73 | F160: 96.22 | G160: 92.88 | H160: 108.58 | I160: 111.92 | J160: 116.43 | K160: 107.4 | L160: 99.55 | M160: 88.65446
A161: 152 | B161: OFSS | C161: 2591.85 | D161: 2647.28 | E161: 2504.57 | F161: 2417.28 | G161: 2274.57 | H161: 2734.57 | I161: 2877.28 | J161: 2964.57 | K161: 2790 | L161: 2560 | M161: 1.53909
A162: 153 | B162: PIIND | C162: 1553.2 | D162: 1540.52 | E162: 1514.03 | F162: 1474.87 | G162: 1448.38 | H162: 1579.68 | I162: 1606.17 | J162: 1645.33 | K162: 1567 | L162: 1501.35 | M162: 3.5963
A163: 154 | B163: PNBHOUSING | C163: 216.1 | D163: 213.27 | E163: 209.98 | F163: 203.87 | G163: 200.58 | H163: 219.38 | I163: 222.67 | J163: 228.78 | K163: 216.55 | L163: 207.15 | M163: 14.39295
A164: 155 | B164: PAGEIND | C164: 18113.2 | D164: 18181.05 | E164: 17972.15 | F164: 17831.10 | G164: 17622.20 | H164: 18322.10 | I164: 18531.00 | J164: 18672.05 | K164: 18389.95 | L164: 18040 | M164: 0.32894
A165: 156 | B165: PETRONET | C165: 260.4 | D165: 260.80 | E165: 257.25 | F165: 254.10 | G165: 250.55 | H165: 263.95 | I165: 267.50 | J165: 270.65 | K165: 264.35 | L165: 257.65 | M165: 42.61378
A166: 157 | B166: PFIZER | C166: 3999.15 | D166: 4000.58 | E166: 3971.17 | F166: 3943.18 | G166: 3913.77 | H166: 4028.57 | I166: 4057.98 | J166: 4085.97 | K166: 4030 | L166: 3972.6 | M166: 0.48435
A167: 158 | B167: PIDILITIND | C167: 1398.85 | D167: 1400.68 | E167: 1386.37 | F167: 1373.88 | G167: 1359.57 | H167: 1413.17 | I167: 1427.48 | J167: 1439.97 | K167: 1415 | L167: 1388.2 | M167: 25.90585
A168: 159 | B168: PEL | C168: 1163 | D168: 1133.98 | E168: 1076.02 | F168: 989.03 | G168: 931.07 | H168: 1220.97 | I168: 1278.93 | J168: 1365.92 | K168: 1191.95 | L168: 1047 | M168: 56.85403
A169: 160 | B169: PFC | C169: 85.2 | D169: 85.62 | E169: 84.38 | F169: 83.57 | G169: 82.33 | H169: 86.43 | I169: 87.67 | J169: 88.48 | K169: 86.85 | L169: 84.8 | M169: 90.19039
A170: 161 | B170: POWERGRID | C170: 171.4 | D170: 169.58 | E170: 166.87 | F170: 162.33 | G170: 159.62 | H170: 174.12 | I170: 176.83 | J170: 181.37 | K170: 172.3 | L170: 165.05 | M170: 121.37348
A171: 162 | B171: PRESTIGE | C171: 210.3 | D171: 211.03 | E171: 206.27 | F171: 202.23 | G171: 197.47 | H171: 215.07 | I171: 219.83 | J171: 223.87 | K171: 215.8 | L171: 207 | M171: 9.26152
A172: 163 | B172: PGHH | C172: 9839 | D172: 9889.47 | E172: 9723.48 | F172: 9607.97 | G172: 9441.98 | H172: 10004.98 | I172: 10170.97 | J172: 10286.48 | K172: 10055.45 | L172: 9773.95 | M172: 0.1017
A173: 164 | B173: PNB | C173: 34.5 | D173: 34.35 | E173: 34.05 | F173: 33.60 | G173: 33.30 | H173: 34.80 | I173: 35.10 | J173: 35.55 | K173: 34.65 | L173: 33.9 | M173: 478.10394
A174: 165 | B174: QUESS | C174: 317.3 | D174: 317.30 | E174: 317.30 | F174: 317.30 | G174: 317.30 | H174: 317.30 | I174: 317.30 | J174: 317.30 | K174: 317.3 | L174: 317.3 | M174: 0.7151
A175: 166 | B175: RBLBANK | C175: 168.9 | D175: 168.43 | E175: 164.52 | F175: 160.13 | G175: 156.22 | H175: 172.82 | I175: 176.73 | J175: 181.12 | K175: 172.35 | L175: 164.05 | M175: 441.26932
A176: 167 | B176: RECLTD | C176: 106.6 | D176: 106.37 | E176: 104.03 | F176: 101.47 | G176: 99.13 | H176: 108.93 | I176: 111.27 | J176: 113.83 | K176: 108.7 | L176: 103.8 | M176: 161.50656
A177: 168 | B177: RAJESHEXPO | C177: 467.9 | D177: 469.98 | E177: 461.97 | F177: 456.03 | G177: 448.02 | H177: 475.92 | I177: 483.93 | J177: 489.87 | K177: 478 | L177: 464.05 | M177: 2.59515
A178: 169 | B178: RELIANCE | C178: 1759.4 | D178: 1736.73 | E178: 1684.67 | F178: 1609.93 | G178: 1557.87 | H178: 1811.47 | I178: 1863.53 | J178: 1938.27 | K178: 1788.8 | L178: 1662 | M178: 488.28852
A179: 170 | B179: SBILIFE | C179: 775.85 | D179: 774.63 | E179: 768.42 | F179: 760.98 | G179: 754.77 | H179: 782.07 | I179: 788.28 | J179: 795.72 | K179: 780.85 | L179: 767.2 | M179: 29.12093
A180: 171 | B180: SRF | C180: 3614.15 | D180: 3623.95 | E180: 3587.90 | F180: 3561.65 | G180: 3525.60 | H180: 3650.20 | I180: 3686.25 | J180: 3712.50 | K180: 3660 | L180: 3597.7 | M180: 2.8142
A181: 172 | B181: SHREECEM | C181: 21678.95 | D181: 21725.13 | E181: 21520.27 | F181: 21361.58 | G181: 21156.72 | H181: 21883.82 | I181: 22088.68 | J181: 22247.37 | K181: 21930 | L181: 21566.45 | M181: 0.6431
A182: 173 | B182: SRTRANSFIN | C182: 658.85 | D182: 668.85 | E182: 645.55 | F182: 632.25 | G182: 608.95 | H182: 682.15 | I182: 705.45 | J182: 718.75 | K182: 692.15 | L182: 655.55 | M182: 68.26245
A183: 174 | B183: SIEMENS | C183: 1066.9 | D183: 1062.17 | E183: 1049.73 | F183: 1032.57 | G183: 1020.13 | H183: 1079.33 | I183: 1091.77 | J183: 1108.93 | K183: 1074.6 | L183: 1045 | M183: 7.51999
A184: 175 | B184: SBIN | C184: 184.5 | D184: 182.98 | E184: 181.02 | F184: 177.53 | G184: 175.57 | H184: 186.47 | I184: 188.43 | J184: 191.92 | K184: 184.95 | L184: 179.5 | M184: 768.9789
A185: 176 | B185: SAIL | C185: 30.15 | D185: 30.23 | E185: 29.92 | F185: 29.68 | G185: 29.37 | H185: 30.47 | I185: 30.78 | J185: 31.02 | K185: 30.55 | L185: 30 | M185: 229.25898
A186: 177 | B186: STRTECH | C186: 110 | D186: 109.53 | E186: 107.47 | F186: 104.93 | G186: 102.87 | H186: 112.07 | I186: 114.13 | J186: 116.67 | K186: 111.6 | L186: 107 | M186: 18.50747
A187: 178 | B187: SUNPHARMA | C187: 488.1 | D187: 488.42 | E187: 484.88 | F187: 481.67 | G187: 478.13 | H187: 491.63 | I187: 495.17 | J187: 498.38 | K187: 491.95 | L187: 485.2 | M187: 81.14876
A188: 179 | B188: SUNTV | C188: 398.25 | D188: 399.60 | E188: 390.20 | F188: 382.15 | G188: 372.75 | H188: 407.65 | I188: 417.05 | J188: 425.10 | K188: 409 | L188: 391.55 | M188: 30.35852
A189: 180 | B189: SYNGENE | C189: 378 | D189: 377.05 | E189: 374.10 | F189: 370.20 | G189: 367.25 | H189: 380.95 | I189: 383.90 | J189: 387.80 | K189: 380 | L189: 373.15 | M189: 5.11239
A190: 181 | B190: TVSMOTOR | C190: 368.95 | D190: 368.27 | E190: 362.53 | F190: 356.12 | G190: 350.38 | H190: 374.68 | I190: 380.42 | J190: 386.83 | K190: 374 | L190: 361.85 | M190: 25.20338
A191: 182 | B191: TCS | C191: 2044.6 | D191: 2055.53 | E191: 2021.07 | F191: 1997.53 | G191: 1963.07 | H191: 2079.07 | I191: 2113.53 | J191: 2137.07 | K191: 2090 | L191: 2032 | M191: 56.81784
A192: 183 | B192: TATACONSUM | C192: 377.3 | D192: 377.88 | E192: 372.77 | F192: 368.23 | G192: 363.12 | H192: 382.42 | I192: 387.53 | J192: 392.07 | K192: 383 | L192: 373.35 | M192: 42.4913
A193: 184 | B193: TATAMTRDVR | C193: 42.7 | D193: 41.78 | E193: 40.57 | F193: 38.43 | G193: 37.22 | H193: 43.92 | I193: 45.13 | J193: 47.27 | K193: 43 | L193: 39.65 | M193: 104.11389
A194: 185 | B194: TATAMOTORS | C194: 102.5 | D194: 100.67 | E194: 97.43 | F194: 92.37 | G194: 89.13 | H194: 105.73 | I194: 108.97 | J194: 114.03 | K194: 103.9 | L194: 95.6 | M194: 1354.63691
A195: 186 | B195: TATAPOWER | C195: 43.2 | D195: 43.32 | E195: 42.68 | F195: 42.17 | G195: 41.53 | H195: 43.83 | I195: 44.47 | J195: 44.98 | K195: 43.95 | L195: 42.8 | M195: 282.19725
A196: 187 | B196: TATASTEEL | C196: 320.55 | D196: 321.23 | E196: 316.62 | F196: 312.68 | G196: 308.07 | H196: 325.17 | I196: 329.78 | J196: 333.72 | K196: 325.85 | L196: 317.3 | M196: 151.34693
A197: 188 | B197: TECHM | C197: 538.85 | D197: 537.90 | E197: 532.85 | F197: 526.85 | G197: 521.80 | H197: 543.90 | I197: 548.95 | J197: 554.95 | K197: 542.95 | L197: 531.9 | M197: 55.70402
A198: 189 | B198: NIACL | C198: 124.2 | D198: 125.47 | E198: 120.33 | F198: 116.47 | G198: 111.33 | H198: 129.33 | I198: 134.47 | J198: 138.33 | K198: 130.6 | L198: 121.6 | M198: 5.47687
A199: 190 | B199: RAMCOCEM | C199: 644.75 | D199: 641.97 | E199: 624.03 | F199: 603.32 | G199: 585.38 | H199: 662.68 | I199: 680.62 | J199: 701.33 | K199: 659.9 | L199: 621.25 | M199: 25.92985
A200: 191 | B200: TITAN | C200: 975.85 | D200: 981.27 | E200: 967.58 | F200: 959.32 | G200: 945.63 | H200: 989.53 | I200: 1003.22 | J200: 1011.48 | K200: 994.95 | L200: 973 | M200: 28.17654
A201: 192 | B201: TORNTPHARM | C201: 2543.35 | D201: 2544.90 | E201: 2520.10 | F201: 2496.85 | G201: 2472.05 | H201: 2568.15 | I201: 2592.95 | J201: 2616.20 | K201: 2569.7 | L201: 2521.65 | M201: 2.92697
A202: 193 | B202: TORNTPOWER | C202: 320.95 | D202: 321.93 | E202: 318.37 | F202: 315.78 | G202: 312.22 | H202: 324.52 | I202: 328.08 | J202: 330.67 | K202: 325.5 | L202: 319.35 | M202: 9.13519
A203: 194 | B203: UPL | C203: 436.9 | D203: 434.65 | E203: 429.75 | F203: 422.60 | G203: 417.70 | H203: 441.80 | I203: 446.70 | J203: 453.85 | K203: 439.55 | L203: 427.5 | M203: 60.59411
A204: 195 | B204: ULTRACEMCO | C204: 3836.35 | D204: 3851.30 | E204: 3798.15 | F204: 3759.95 | G204: 3706.80 | H204: 3889.50 | I204: 3942.65 | J204: 3980.85 | K204: 3904.45 | L204: 3813.1 | M204: 5.56285
A205: 196 | B205: UNIONBANK | C205: 30.7 | D205: 30.57 | E205: 29.43 | F205: 28.17 | G205: 27.03 | H205: 31.83 | I205: 32.97 | J205: 34.23 | K205: 31.7 | L205: 29.3 | M205: 146.07758
... 30 more rows

Sheet MidCap Intra
L5: Back To Main Page
A6: FOR INTRA DAY TRADING | K6: =Main!B10 -> 2020-06-22
A9: Sr.no | B9: Scrip | C9: CLOSE RATE | D9: Pivot Point | E9: Supports | H9: Resistances
C10: Point | E10: S1 | F10: S2 | G10: S3 | H10: R1 | I10: R2 | J10: R3 | K10: HIGH | L10: LOW | M10: Total Trade Quanity in Lakhs
A11: 1 | B11: 3MINDIA | C11: 18593.3 | D11: 18597.43 | E11: 18295.87 | F11: 17998.43 | G11: 17696.87 | H11: 18894.87 | I11: 19196.43 | J11: 19493.87 | K11: 18899 | L11: 18300 | M11: 0.08332
A12: 2 | B12: AARTIIND | C12: 961.2 | D12: 952.98 | E12: 943.22 | F12: 925.23 | G12: 915.47 | H12: 970.97 | I12: 980.73 | J12: 998.72 | K12: 962.75 | L12: 935 | M12: 7.41145
A13: 3 | B13: AAVAS | C13: 1366.6 | D13: 1341.27 | E13: 1302.53 | F13: 1238.47 | G13: 1199.73 | H13: 1405.33 | I13: 1444.07 | J13: 1508.13 | K13: 1380 | L13: 1277.2 | M13: 1.59717
A14: 4 | B14: ABBOTINDIA | C14: 15658.45 | D14: 15754.85 | E14: 15514.70 | F14: 15370.95 | G14: 15130.80 | H14: 15898.60 | I14: 16138.75 | J14: 16282.50 | K14: 15995 | L14: 15611.1 | M14: 0.1796
A15: 5 | B15: ABCAPITAL | C15: 55.2 | D15: 56.22 | E15: 53.73 | F15: 52.27 | G15: 49.78 | H15: 57.68 | I15: 60.17 | J15: 61.63 | K15: 58.7 | L15: 54.75 | M15: 119.25837
A16: 6 | B16: ABFRL | C16: 133.1 | D16: 134.00 | E16: 131.10 | F16: 129.10 | G16: 126.20 | H16: 136.00 | I16: 138.90 | J16: 140.90 | K16: 136.9 | L16: 132 | M16: 20.70948
A17: 7 | B17: ACC | C17: 1272 | D17: 1267.67 | E17: 1250.43 | F17: 1228.87 | G17: 1211.63 | H17: 1289.23 | I17: 1306.47 | J17: 1328.03 | K17: 1284.9 | L17: 1246.1 | M17: 9.04534
A18: 8 | B18: ADANIGAS | C18: 142.35 | D18: 140.67 | E18: 137.68 | F18: 133.02 | G18: 130.03 | H18: 145.33 | I18: 148.32 | J18: 152.98 | K18: 143.65 | L18: 136 | M18: 46.6528
A19: 9 | B19: ADANIGREEN | C19: 420.65 | D19: 418.32 | E19: 415.98 | F19: 411.32 | G19: 408.98 | H19: 422.98 | I19: 425.32 | J19: 429.98 | K19: 420.65 | L19: 413.65 | M19: 28.82495
A20: 10 | B20: ADANIPORTS | C20: 348.9 | D20: 348.43 | E20: 341.97 | F20: 335.03 | G20: 328.57 | H20: 355.37 | I20: 361.83 | J20: 368.77 | K20: 354.9 | L20: 341.5 | M20: 69.1761
A21: 11 | B21: ADANIPOWER | C21: 38 | D21: 38.05 | E21: 37.55 | F21: 37.10 | G21: 36.60 | H21: 38.50 | I21: 39.00 | J21: 39.45 | K21: 38.55 | L21: 37.6 | M21: 107.31869
A22: 12 | B22: ADANITRANS | C22: 221.25 | D22: 222.52 | E22: 215.23 | F22: 209.22 | G22: 201.93 | H22: 228.53 | I22: 235.82 | J22: 241.83 | K22: 229.8 | L22: 216.5 | M22: 19.49029
A23: 13 | B23: ADVENZYMES | C23: 167.1 | D23: 168.83 | E23: 163.87 | F23: 160.63 | G23: 155.67 | H23: 172.07 | I23: 177.03 | J23: 180.27 | K23: 173.8 | L23: 165.6 | M23: 1.75643
A24: 14 | B24: AEGISCHEM | C24: 186.1 | D24: 185.27 | E24: 181.53 | F24: 176.97 | G24: 173.23 | H24: 189.83 | I24: 193.57 | J24: 198.13 | K24: 189 | L24: 180.7 | M24: 2.67923
A25: 15 | B25: AFFLE | C25: 1480.45 | D25: 1474.67 | E25: 1450.33 | F25: 1420.22 | G25: 1395.88 | H25: 1504.78 | I25: 1529.12 | J25: 1559.23 | K25: 1499 | L25: 1444.55 | M25: 0.24072
A26: 16 | B26: AIAENG | C26: 1614.65 | D26: 1625.50 | E26: 1575.65 | F26: 1536.65 | G26: 1486.80 | H26: 1664.50 | I26: 1714.35 | J26: 1753.35 | K26: 1675.35 | L26: 1586.5 | M26: 0.57781
A27: 17 | B27: AJANTPHARM | C27: 1451.5 | D27: 1457.25 | E27: 1439.50 | F27: 1427.50 | G27: 1409.75 | H27: 1469.25 | I27: 1487.00 | J27: 1499.00 | K27: 1475 | L27: 1445.25 | M27: 1.29161
A28: 18 | B28: AKZOINDIA | C28: 1858.15 | D28: 1860.55 | E28: 1825.25 | F28: 1792.35 | G28: 1757.05 | H28: 1893.45 | I28: 1928.75 | J28: 1961.65 | K28: 1895.85 | L28: 1827.65 | M28: 0.1556
A29: 19 | B29: ALKEM | C29: 2305.35 | D29: 2307.18 | E29: 2281.02 | F29: 2256.68 | G29: 2230.52 | H29: 2331.52 | I29: 2357.68 | J29: 2382.02 | K29: 2333.35 | L29: 2282.85 | M29: 5.25249
A30: 20 | B30: ALLCARGO | C30: 82.25 | D30: 82.37 | E30: 80.88 | F30: 79.52 | G30: 78.03 | H30: 83.73 | I30: 85.22 | J30: 86.58 | K30: 83.85 | L30: 81 | M30: 1.28789
A31: 21 | B31: AMARAJABAT | C31: 673.5 | D31: 676.22 | E31: 667.03 | F31: 660.57 | G31: 651.38 | H31: 682.68 | I31: 691.87 | J31: 698.33 | K31: 685.4 | L31: 669.75 | M31: 8.56687
A32: 22 | B32: AMBER | C32: 1510.75 | D32: 1500.28 | E32: 1480.67 | F32: 1450.58 | G32: 1430.97 | H32: 1530.37 | I32: 1549.98 | J32: 1580.07 | K32: 1519.9 | L32: 1470.2 | M32: 0.58248
A33: 23 | B33: AMBUJACEM | C33: 190.8 | D33: 190.78 | E33: 187.57 | F33: 184.33 | G33: 181.12 | H33: 194.02 | I33: 197.23 | J33: 200.47 | K33: 194 | L33: 187.55 | M33: 77.23563
A34: 24 | B34: APLAPOLLO | C34: 1589.05 | D34: 1587.48 | E34: 1566.57 | F34: 1544.08 | G34: 1523.17 | H34: 1609.97 | I34: 1630.88 | J34: 1653.37 | K34: 1608.4 | L34: 1565 | M34: 0.46323
A35: 25 | B35: APLLTD | C35: 946.5 | D35: 934.27 | E35: 917.53 | F35: 888.57 | G35: 871.83 | H35: 963.23 | I35: 979.97 | J35: 1008.93 | K35: 951 | L35: 905.3 | M35: 6.82717
A36: 26 | B36: APOLLOHOSP | C36: 1370.7 | D36: 1368.28 | E36: 1352.57 | F36: 1334.43 | G36: 1318.72 | H36: 1386.42 | I36: 1402.13 | J36: 1420.27 | K36: 1384 | L36: 1350.15 | M36: 8.94818
A37: 27 | B37: APOLLOTYRE | C37: 109 | D37: 108.30 | E37: 106.70 | F37: 104.40 | G37: 102.80 | H37: 110.60 | I37: 112.20 | J37: 114.50 | K37: 109.9 | L37: 106 | M37: 136.32267
A38: 28 | B38: ARVINDFASN | C38: 183.15 | D38: 180.05 | E38: 174.60 | F38: 166.05 | G38: 160.60 | H38: 188.60 | I38: 194.05 | J38: 202.60 | K38: 185.5 | L38: 171.5 | M38: 0.62368
A39: 29 | B39: ASAHIINDIA | C39: 174.6 | D39: 172.02 | E39: 166.58 | F39: 158.57 | G39: 153.13 | H39: 180.03 | I39: 185.47 | J39: 193.48 | K39: 177.45 | L39: 164 | M39: 0.37426
A40: 30 | B40: ASHOKA | C40: 64.8 | D40: 65.47 | E40: 63.63 | F40: 62.47 | G40: 60.63 | H40: 66.63 | I40: 68.47 | J40: 69.63 | K40: 67.3 | L40: 64.3 | M40: 50.37867
A41: 31 | B41: ASHOKLEY | C41: 54.35 | D41: 53.45 | E41: 52.00 | F41: 49.65 | G41: 48.20 | H41: 55.80 | I41: 57.25 | J41: 59.60 | K41: 54.9 | L41: 51.1 | M41: 603.17643
A42: 32 | B42: ASIANPAINT | C42: 1622.5 | D42: 1614.52 | E42: 1599.03 | F42: 1575.57 | G42: 1560.08 | H42: 1637.98 | I42: 1653.47 | J42: 1676.93 | K42: 1630 | L42: 1591.05 | M42: 27.14342
A43: 33 | B43: ASTERDM | C43: 119.8 | D43: 120.25 | E43: 115.25 | F43: 110.70 | G43: 105.70 | H43: 124.80 | I43: 129.80 | J43: 134.35 | K43: 125.25 | L43: 115.7 | M43: 3.0906
A44: 34 | B44: ASTRAL | C44: 905.85 | D44: 904.68 | E44: 884.37 | F44: 862.88 | G44: 842.57 | H44: 926.17 | I44: 946.48 | J44: 967.97 | K44: 925 | L44: 883.2 | M44: 8.8663
A45: 35 | B45: ASTRAZEN | C45: 3267.6 | D45: 3301.87 | E45: 3216.73 | F45: 3165.87 | G45: 3080.73 | H45: 3352.73 | I45: 3437.87 | J45: 3488.73 | K45: 3387 | L45: 3251 | M45: 0.44678
A46: 36 | B46: ATUL | C46: 4468.65 | D46: 4461.78 | E46: 4423.57 | F46: 4378.48 | G46: 4340.27 | H46: 4506.87 | I46: 4545.08 | J46: 4590.17 | K46: 4500 | L46: 4416.7 | M46: 0.29018
A47: 37 | B47: AUBANK | C47: 486.15 | D47: 485.08 | E47: 473.67 | F47: 461.18 | G47: 449.77 | H47: 497.57 | I47: 508.98 | J47: 521.47 | K47: 496.5 | L47: 472.6 | M47: 12.58733
A48: 38 | B48: AUROPHARMA | C48: 783.45 | D48: 786.07 | E48: 777.48 | F48: 771.52 | G48: 762.93 | H48: 792.03 | I48: 800.62 | J48: 806.58 | K48: 794.65 | L48: 780.1 | M48: 24.2057
A49: 39 | B49: AVANTIFEED | C49: 463.6 | D49: 464.87 | E49: 458.73 | F49: 453.87 | G49: 447.73 | H49: 469.73 | I49: 475.87 | J49: 480.73 | K49: 471 | L49: 460 | M49: 4.33426
A50: 40 | B50: AXISBANK | C50: 417.05 | D50: 415.62 | E50: 408.93 | F50: 400.82 | G50: 394.13 | H50: 423.73 | I50: 430.42 | J50: 438.53 | K50: 422.3 | L50: 407.5 | M50: 520.85893
A51: 41 | B51: BAJAJ-AUTO | C51: 2674.35 | D51: 2679.78 | E51: 2649.57 | F51: 2624.78 | G51: 2594.57 | H51: 2704.57 | I51: 2734.78 | J51: 2759.57 | K51: 2710 | L51: 2655 | M51: 9.29101
A52: 42 | B52: BAJAJCON | C52: 148.6 | D52: 146.35 | E52: 142.25 | F52: 135.90 | G52: 131.80 | H52: 152.70 | I52: 156.80 | J52: 163.15 | K52: 150.45 | L52: 140 | M52: 39.86437
A53: 43 | B53: BAJAJELEC | C53: 410.75 | D53: 407.28 | E53: 398.57 | F53: 386.38 | G53: 377.67 | H53: 419.47 | I53: 428.18 | J53: 440.37 | K53: 416 | L53: 395.1 | M53: 4.45685
A54: 44 | B54: BAJAJFINSV | C54: 5899.8 | D54: 5771.30 | E54: 5572.30 | F54: 5244.80 | G54: 5045.80 | H54: 6098.80 | I54: 6297.80 | J54: 6625.30 | K54: 5970.3 | L54: 5443.8 | M54: 35.95572
A55: 45 | B55: BAJAJHLDNG | C55: 2527.25 | D55: 2503.28 | E55: 2436.62 | F55: 2345.98 | G55: 2279.32 | H55: 2593.92 | I55: 2660.58 | J55: 2751.22 | K55: 2569.95 | L55: 2412.65 | M55: 1.02066
A56: 46 | B56: BAJFINANCE | C56: 2698.6 | D56: 2657.72 | E56: 2600.88 | F56: 2503.17 | G56: 2446.33 | H56: 2755.43 | I56: 2812.27 | J56: 2909.98 | K56: 2714.55 | L56: 2560 | M56: 186.04004
A57: 47 | B57: BALKRISIND | C57: 1215.85 | D57: 1222.80 | E57: 1201.25 | F57: 1186.65 | G57: 1165.10 | H57: 1237.40 | I57: 1258.95 | J57: 1273.55 | K57: 1244.35 | L57: 1208.2 | M57: 14.88434
A58: 48 | B58: BALMLAWRIE | C58: 105.85 | D58: 106.23 | E58: 104.82 | F58: 103.78 | G58: 102.37 | H58: 107.27 | I58: 108.68 | J58: 109.72 | K58: 107.65 | L58: 105.2 | M58: 0.95606
A59: 49 | B59: BALRAMCHIN | C59: 130.6 | D59: 132.02 | E59: 128.78 | F59: 126.97 | G59: 123.73 | H59: 133.83 | I59: 137.07 | J59: 138.88 | K59: 135.25 | L59: 130.2 | M59: 30.65352
A60: 50 | B60: BANDHANBNK | C60: 290.6 | D60: 285.95 | E60: 277.20 | F60: 263.80 | G60: 255.05 | H60: 299.35 | I60: 308.10 | J60: 321.50 | K60: 294.7 | L60: 272.55 | M60: 203.01806
A61: 51 | B61: BANKBARODA | C61: 47.05 | D61: 46.82 | E61: 46.13 | F61: 45.22 | G61: 44.53 | H61: 47.73 | I61: 48.42 | J61: 49.33 | K61: 47.5 | L61: 45.9 | M61: 481.59332
A62: 52 | B62: BANKINDIA | C62: 51.45 | D62: 51.55 | E62: 50.70 | F62: 49.95 | G62: 49.10 | H62: 52.30 | I62: 53.15 | J62: 53.90 | K62: 52.4 | L62: 50.8 | M62: 66.65069
A63: 53 | B63: BASF | C63: 1130.15 | D63: 1122.30 | E63: 1104.60 | F63: 1079.05 | G63: 1061.35 | H63: 1147.85 | I63: 1165.55 | J63: 1191.10 | K63: 1140 | L63: 1096.75 | M63: 0.31349
A64: 54 | B64: BATAINDIA | C64: 1343.55 | D64: 1337.95 | E64: 1320.20 | F64: 1296.85 | G64: 1279.10 | H64: 1361.30 | I64: 1379.05 | J64: 1402.40 | K64: 1355.7 | L64: 1314.6 | M64: 10.25604
A65: 55 | B65: BAYERCROP | C65: 5989.9 | D65: 5898.30 | E65: 5791.60 | F65: 5593.30 | G65: 5486.60 | H65: 6096.60 | I65: 6203.30 | J65: 6401.60 | K65: 6005 | L65: 5700 | M65: 0.54481
A66: 56 | B66: BBTC | C66: 1057.4 | D66: 1051.97 | E66: 1028.28 | F66: 999.17 | G66: 975.48 | H66: 1081.08 | I66: 1104.77 | J66: 1133.88 | K66: 1075.65 | L66: 1022.85 | M66: 1.46192
A67: 57 | B67: BDL | C67: 266.75 | D67: 268.58 | E67: 263.17 | F67: 259.58 | G67: 254.17 | H67: 272.17 | I67: 277.58 | J67: 281.17 | K67: 274 | L67: 265 | M67: 0.86039
A68: 58 | B68: BEL | C68: 80.05 | D68: 79.33 | E68: 77.17 | F68: 74.28 | G68: 72.12 | H68: 82.22 | I68: 84.38 | J68: 87.27 | K68: 81.5 | L68: 76.45 | M68: 286.36591
A69: 59 | B69: BEML | C69: 642.95 | D69: 642.02 | E69: 617.03 | F69: 591.12 | G69: 566.13 | H69: 667.93 | I69: 692.92 | J69: 718.83 | K69: 667 | L69: 616.1 | M69: 28.37521
A70: 60 | B70: BERGEPAINT | C70: 500.5 | D70: 502.75 | E70: 494.75 | F70: 489.00 | G70: 481.00 | H70: 508.50 | I70: 516.50 | J70: 522.25 | K70: 510.75 | L70: 497 | M70: 21.12948
A71: 61 | B71: BHARATFORG | C71: 375.8 | D71: 372.38 | E71: 364.97 | F71: 354.13 | G71: 346.72 | H71: 383.22 | I71: 390.63 | J71: 401.47 | K71: 379.8 | L71: 361.55 | M71: 32.34212
A72: 62 | B72: BHARTIARTL | C72: 572.5 | D72: 570.57 | E72: 562.93 | F72: 553.37 | G72: 545.73 | H72: 580.13 | I72: 587.77 | J72: 597.33 | K72: 578.2 | L72: 561 | M72: 411.52446
A73: 63 | B73: BHEL | C73: 32.45 | D73: 32.40 | E73: 31.80 | F73: 31.15 | G73: 30.55 | H73: 33.05 | I73: 33.65 | J73: 34.30 | K73: 33 | L73: 31.75 | M73: 1010.37121
A74: 64 | B74: BIOCON | C74: 381.25 | D74: 386.20 | E74: 375.15 | F74: 369.05 | G74: 358.00 | H74: 392.30 | I74: 403.35 | J74: 409.45 | K74: 397.25 | L74: 380.1 | M74: 64.60477
A75: 65 | B75: BIRLACORPN | C75: 573.95 | D75: 565.95 | E75: 543.50 | F75: 513.05 | G75: 490.60 | H75: 596.40 | I75: 618.85 | J75: 649.30 | K75: 588.4 | L75: 535.5 | M75: 7.82614
A76: 66 | B76: BLISSGVS | C76: 99.65 | D76: 99.93 | E76: 98.67 | F76: 97.68 | G76: 96.42 | H76: 100.92 | I76: 102.18 | J76: 103.17 | K76: 101.2 | L76: 98.95 | M76: 1.21357
A77: 67 | B77: BLUEDART | C77: 2018.5 | D77: 2026.12 | E77: 2002.38 | F77: 1986.27 | G77: 1962.53 | H77: 2042.23 | I77: 2065.97 | J77: 2082.08 | K77: 2049.85 | L77: 2010 | M77: 0.05322
A78: 68 | B78: BLUESTARCO | C78: 505.35 | D78: 506.33 | E78: 497.67 | F78: 489.98 | G78: 481.32 | H78: 514.02 | I78: 522.68 | J78: 530.37 | K78: 515 | L78: 498.65 | M78: 0.82464
A79: 69 | B79: BOMDYEING | C79: 71.55 | D79: 69.02 | E79: 65.63 | F79: 59.72 | G79: 56.33 | H79: 74.93 | I79: 78.32 | J79: 84.23 | K79: 72.4 | L79: 63.1 | M79: 100.93025
A80: 70 | B80: BOSCHLTD | C80: 10949.1 | D80: 10874.67 | E80: 10674.43 | F80: 10399.77 | G80: 10199.53 | H80: 11149.33 | I80: 11349.57 | J80: 11624.23 | K80: 11074.9 | L80: 10600 | M80: 0.58972
A81: 71 | B81: BPCL | C81: 380.55 | D81: 378.68 | E81: 372.87 | F81: 365.18 | G81: 359.37 | H81: 386.37 | I81: 392.18 | J81: 399.87 | K81: 384.5 | L81: 371 | M81: 66.35776
A82: 72 | B82: BRIGADE | C82: 142.4 | D82: 141.30 | E82: 137.60 | F82: 132.80 | G82: 129.10 | H82: 146.10 | I82: 149.80 | J82: 154.60 | K82: 145 | L82: 136.5 | M82: 10.76699
A83: 73 | B83: BRITANNIA | C83: 3438.55 | D83: 3423.52 | E83: 3397.03 | F83: 3355.52 | G83: 3329.03 | H83: 3465.03 | I83: 3491.52 | J83: 3533.03 | K83: 3450 | L83: 3382 | M83: 7.8274
A84: 74 | B84: BSE | C84: 412.9 | D84: 414.13 | E84: 405.77 | F84: 398.63 | G84: 390.27 | H84: 421.27 | I84: 429.63 | J84: 436.77 | K84: 422.5 | L84: 407 | M84: 2.86298
A85: 75 | B85: BSOFT | C85: 81.7 | D85: 82.17 | E85: 80.63 | F85: 79.57 | G85: 78.03 | H85: 83.23 | I85: 84.77 | J85: 85.83 | K85: 83.7 | L85: 81.1 | M85: 9.4634
A86: 76 | B86: CADILAHC | C86: 362.05 | D86: 364.00 | E86: 358.30 | F86: 354.55 | G86: 348.85 | H86: 367.75 | I86: 373.45 | J86: 377.20 | K86: 369.7 | L86: 360.25 | M86: 50.07226
A87: 77 | B87: CANBK | C87: 107.35 | D87: 106.48 | E87: 104.47 | F87: 101.58 | G87: 99.57 | H87: 109.37 | I87: 111.38 | J87: 114.27 | K87: 108.5 | L87: 103.6 | M87: 292.10643
A88: 78 | B88: CANFINHOME | C88: 360.05 | D88: 357.47 | E88: 349.28 | F88: 338.52 | G88: 330.33 | H88: 368.23 | I88: 376.42 | J88: 387.18 | K88: 365.65 | L88: 346.7 | M88: 9.72099
A89: 79 | B89: CAPLIPOINT | C89: 358.75 | D89: 362.63 | E89: 352.37 | F89: 345.98 | G89: 335.72 | H89: 369.02 | I89: 379.28 | J89: 385.67 | K89: 372.9 | L89: 356.25 | M89: 4.22215
A90: 80 | B90: CARBORUNIV | C90: 265 | D90: 260.55 | E90: 249.70 | F90: 234.40 | G90: 223.55 | H90: 275.85 | I90: 286.70 | J90: 302.00 | K90: 271.4 | L90: 245.25 | M90: 7.71214
A91: 81 | B91: CARERATING | C91: 404.95 | D91: 411.32 | E91: 383.63 | F91: 362.32 | G91: 334.63 | H91: 432.63 | I91: 460.32 | J91: 481.63 | K91: 439 | L91: 390 | M91: 2.86365
A92: 82 | B92: CASTROLIND | C92: 118.9 | D92: 119.22 | E92: 117.93 | F92: 116.97 | G92: 115.68 | H92: 120.18 | I92: 121.47 | J92: 122.43 | K92: 120.5 | L92: 118.25 | M92: 28.47903
A93: 83 | B93: CCL | C93: 244.05 | D93: 242.93 | E93: 237.87 | F93: 231.68 | G93: 226.62 | H93: 249.12 | I93: 254.18 | J93: 260.37 | K93: 248 | L93: 236.75 | M93: 1.37357
A94: 84 | B94: CDSL | C94: 266.65 | D94: 268.45 | E94: 262.40 | F94: 258.15 | G94: 252.10 | H94: 272.70 | I94: 278.75 | J94: 283.00 | K94: 274.5 | L94: 264.2 | M94: 3.46576
A95: 85 | B95: CEATLTD | C95: 941.1 | D95: 945.37 | E95: 925.73 | F95: 910.37 | G95: 890.73 | H95: 960.73 | I95: 980.37 | J95: 995.73 | K95: 965 | L95: 930 | M95: 1.98237
A96: 86 | B96: CENTRALBK | C96: 16.55 | D96: 16.58 | E96: 16.37 | F96: 16.18 | G96: 15.97 | H96: 16.77 | I96: 16.98 | J96: 17.17 | K96: 16.8 | L96: 16.4 | M96: 14.06852
A97: 87 | B97: CENTURYPLY | C97: 119.65 | D97: 117.08 | E97: 112.77 | F97: 105.88 | G97: 101.57 | H97: 123.97 | I97: 128.28 | J97: 135.17 | K97: 121.4 | L97: 110.2 | M97: 15.54444
A98: 88 | B98: CERA | C98: 2231.55 | D98: 2235.47 | E98: 2213.93 | F98: 2196.32 | G98: 2174.78 | H98: 2253.08 | I98: 2274.62 | J98: 2292.23 | K98: 2257 | L98: 2217.85 | M98: 0.13637
A99: 89 | B99: CESC | C99: 600.95 | D99: 601.70 | E99: 593.35 | F99: 585.75 | G99: 577.40 | H99: 609.30 | I99: 617.65 | J99: 625.25 | K99: 610.05 | L99: 594.1 | M99: 5.0299
A100: 90 | B100: CGCL | C100: 144.45 | D100: 141.25 | E100: 136.20 | F100: 127.95 | G100: 122.90 | H100: 149.50 | I100: 154.55 | J100: 162.80 | K100: 146.3 | L100: 133 | M100: 3.74657
A101: 91 | B101: CHALET | C101: 141.25 | D101: 139.55 | E101: 135.20 | F101: 129.15 | G101: 124.80 | H101: 145.60 | I101: 149.95 | J101: 156.00 | K101: 143.9 | L101: 133.5 | M101: 2.54915
A102: 92 | B102: CHAMBLFERT | C102: 147.45 | D102: 148.92 | E102: 144.83 | F102: 142.22 | G102: 138.13 | H102: 151.53 | I102: 155.62 | J102: 158.23 | K102: 153 | L102: 146.3 | M102: 71.27971
A103: 93 | B103: CHENNPETRO | C103: 68.95 | D103: 69.07 | E103: 68.13 | F103: 67.32 | G103: 66.38 | H103: 69.88 | I103: 70.82 | J103: 71.63 | K103: 70 | L103: 68.25 | M103: 7.64733
A104: 94 | B104: CHOLAFIN | C104: 196.8 | D104: 193.50 | E104: 182.30 | F104: 167.80 | G104: 156.60 | H104: 208.00 | I104: 219.20 | J104: 233.70 | K104: 204.7 | L104: 179 | M104: 368.15093
A105: 95 | B105: CHOLAHLDNG | C105: 304.1 | D105: 299.47 | E105: 294.63 | F105: 285.17 | G105: 280.33 | H105: 308.93 | I105: 313.77 | J105: 323.23 | K105: 304.3 | L105: 290 | M105: 3.30605
A106: 96 | B106: CIPLA | C106: 636.2 | D106: 638.85 | E106: 628.85 | F106: 621.50 | G106: 611.50 | H106: 646.20 | I106: 656.20 | J106: 663.55 | K106: 648.85 | L106: 631.5 | M106: 44.7603
A107: 97 | B107: COALINDIA | C107: 137.25 | D107: 137.48 | E107: 134.97 | F107: 132.68 | G107: 130.17 | H107: 139.77 | I107: 142.28 | J107: 144.57 | K107: 140 | L107: 135.2 | M107: 174.68342
A108: 98 | B108: COCHINSHIP | C108: 292.1 | D108: 295.97 | E108: 287.13 | F108: 282.17 | G108: 273.33 | H108: 300.93 | I108: 309.77 | J108: 314.73 | K108: 304.8 | L108: 291 | M108: 5.28667
A109: 99 | B109: COLPAL | C109: 1356.7 | D109: 1358.90 | E109: 1345.80 | F109: 1334.90 | G109: 1321.80 | H109: 1369.80 | I109: 1382.90 | J109: 1393.80 | K109: 1372 | L109: 1348 | M109: 9.95232
A110: 100 | B110: CONCOR | C110: 409.05 | D110: 406.78 | E110: 401.62 | F110: 394.18 | G110: 389.02 | H110: 414.22 | I110: 419.38 | J110: 426.82 | K110: 411.95 | L110: 399.35 | M110: 22.54649
A111: 101 | B111: COROMANDEL | C111: 720 | D111: 724.30 | E111: 699.95 | F111: 679.90 | G111: 655.55 | H111: 744.35 | I111: 768.70 | J111: 788.75 | K111: 748.65 | L111: 704.25 | M111: 7.25117
A112: 102 | B112: CREDITACC | C112: 528.45 | D112: 520.63 | E112: 512.82 | F112: 497.18 | G112: 489.37 | H112: 536.27 | I112: 544.08 | J112: 559.72 | K112: 528.45 | L112: 505 | M112: 2.45484
A113: 103 | B113: CRISIL | C113: 1493.45 | D113: 1481.63 | E113: 1464.27 | F113: 1435.08 | G113: 1417.72 | H113: 1510.82 | I113: 1528.18 | J113: 1557.37 | K113: 1499 | L113: 1452.45 | M113: 0.2285
A114: 104 | B114: CROMPTON | C114: 229.7 | D114: 229.08 | E114: 226.62 | F114: 223.53 | G114: 221.07 | H114: 232.17 | I114: 234.63 | J114: 237.72 | K114: 231.55 | L114: 226 | M114: 8.3868
A115: 105 | B115: CUB | C115: 127.1 | D115: 128.02 | E115: 121.53 | F115: 115.97 | G115: 109.48 | H115: 133.58 | I115: 140.07 | J115: 145.63 | K115: 134.5 | L115: 122.45 | M115: 98.38308
A116: 106 | B116: CUMMINSIND | C116: 376.25 | D116: 375.28 | E116: 371.57 | F116: 366.88 | G116: 363.17 | H116: 379.97 | I116: 383.68 | J116: 388.37 | K116: 379 | L116: 370.6 | M116: 18.94591
A117: 107 | B117: CYIENT | C117: 220.45 | D117: 220.48 | E117: 216.97 | F117: 213.48 | G117: 209.97 | H117: 223.97 | I117: 227.48 | J117: 230.97 | K117: 224 | L117: 217 | M117: 6.48739
A118: 108 | B118: DABUR | C118: 443.05 | D118: 444.68 | E118: 439.87 | F118: 436.68 | G118: 431.87 | H118: 447.87 | I118: 452.68 | J118: 455.87 | K118: 449.5 | L118: 441.5 | M118: 44.82129
A119: 109 | B119: DALBHARAT | C119: 599.65 | D119: 593.23 | E119: 580.77 | F119: 561.88 | G119: 549.42 | H119: 612.12 | I119: 624.58 | J119: 643.47 | K119: 605.7 | L119: 574.35 | M119: 6.33766
A120: 110 | B120: DBCORP | C120: 72.75 | D120: 73.22 | E120: 71.43 | F120: 70.12 | G120: 68.33 | H120: 74.53 | I120: 76.32 | J120: 77.63 | K120: 75 | L120: 71.9 | M120: 2.14044
A121: 111 | B121: DBL | C121: 277.2 | D121: 281.87 | E121: 270.33 | F121: 263.47 | G121: 251.93 | H121: 288.73 | I121: 300.27 | J121: 307.13 | K121: 293.4 | L121: 275 | M121: 12.08623
A122: 112 | B122: DCAL | C122: 121.7 | D122: 122.50 | E122: 118.90 | F122: 116.10 | G122: 112.50 | H122: 125.30 | I122: 128.90 | J122: 131.70 | K122: 126.1 | L122: 119.7 | M122: 6.5891
A123: 113 | B123: DCBBANK | C123: 82.7 | D123: 82.72 | E123: 80.08 | F123: 77.47 | G123: 74.83 | H123: 85.33 | I123: 87.97 | J123: 90.58 | K123: 85.35 | L123: 80.1 | M123: 72.36164
A124: 114 | B124: DCMSHRIRAM | C124: 306.75 | D124: 308.67 | E124: 299.33 | F124: 291.92 | G124: 282.58 | H124: 316.08 | I124: 325.42 | J124: 332.83 | K124: 318 | L124: 301.25 | M124: 5.34334
A125: 115 | B125: DEEPAKNTR | C125: 498.25 | D125: 488.03 | E125: 476.07 | F125: 453.88 | G125: 441.92 | H125: 510.22 | I125: 522.18 | J125: 544.37 | K125: 500 | L125: 465.85 | M125: 15.32643
A126: 116 | B126: DELTACORP | C126: 85.45 | D126: 86.35 | E126: 83.30 | F126: 81.15 | G126: 78.10 | H126: 88.50 | I126: 91.55 | J126: 93.70 | K126: 89.4 | L126: 84.2 | M126: 43.76259
A127: 117 | B127: DHFL | C127: 15.65 | D127: 15.48 | E127: 15.32 | F127: 14.98 | G127: 14.82 | H127: 15.82 | I127: 15.98 | J127: 16.32 | K127: 15.65 | L127: 15.15 | M127: 26.45161
A128: 118 | B128: DISHTV | C128: 8.3 | D128: 8.30 | E128: 8.30 | F128: 8.30 | G128: 8.30 | H128: 8.30 | I128: 8.30 | J128: 8.30 | K128: 8.3 | L128: 8.3 | M128: 5.07101
A129: 119 | B129: DIVISLAB | C129: 2304.75 | D129: 2306.92 | E129: 2283.83 | F129: 2262.92 | G129: 2239.83 | H129: 2327.83 | I129: 2350.92 | J129: 2371.83 | K129: 2330 | L129: 2286 | M129: 7.28257
A130: 120 | B130: DIXON | C130: 5687.25 | D130: 5678.77 | E130: 5609.53 | F130: 5531.82 | G130: 5462.58 | H130: 5756.48 | I130: 5825.72 | J130: 5903.43 | K130: 5748 | L130: 5601.05 | M130: 0.45768
A131: 121 | B131: DLF | C131: 161.8 | D131: 157.58 | E131: 152.72 | F131: 143.63 | G131: 138.77 | H131: 166.67 | I131: 171.53 | J131: 180.62 | K131: 162.45 | L131: 148.5 | M131: 226.06656
A132: 122 | B132: DMART | C132: 2363.15 | D132: 2357.38 | E132: 2315.77 | F132: 2268.38 | G132: 2226.77 | H132: 2404.77 | I132: 2446.38 | J132: 2493.77 | K132: 2399 | L132: 2310 | M132: 14.79487
A133: 123 | B133: DRREDDY | C133: 4005.6 | D133: 4014.17 | E133: 3983.43 | F133: 3961.27 | G133: 3930.53 | H133: 4036.33 | I133: 4067.07 | J133: 4089.23 | K133: 4044.9 | L133: 3992 | M133: 7.30943
A134: 124 | B134: ECLERX | C134: 448.05 | D134: 455.70 | E134: 437.60 | F134: 427.15 | G134: 409.05 | H134: 466.15 | I134: 484.25 | J134: 494.70 | K134: 473.8 | L134: 445.25 | M134: 0.93779
A135: 125 | B135: EDELWEISS | C135: 45.4 | D135: 44.55 | E135: 43.70 | F135: 42.00 | G135: 41.15 | H135: 46.25 | I135: 47.10 | J135: 48.80 | K135: 45.4 | L135: 42.85 | M135: 36.83958
A136: 126 | B136: EICHERMOT | C136: 17349.35 | D136: 17259.78 | E136: 16969.57 | F136: 16589.78 | G136: 16299.57 | H136: 17639.57 | I136: 17929.78 | J136: 18309.57 | K136: 17550 | L136: 16880 | M136: 3.11932
A137: 127 | B137: EIDPARRY | C137: 264.9 | D137: 259.55 | E137: 244.35 | F137: 223.80 | G137: 208.60 | H137: 280.10 | I137: 295.30 | J137: 315.85 | K137: 274.75 | L137: 239 | M137: 27.69951
A138: 128 | B138: EIHOTEL | C138: 67.7 | D138: 68.03 | E138: 66.67 | F138: 65.63 | G138: 64.27 | H138: 69.07 | I138: 70.43 | J138: 71.47 | K138: 69.4 | L138: 67 | M138: 3.10473
A139: 129 | B139: ELGIEQUIP | C139: 145.4 | D139: 144.50 | E139: 141.05 | F139: 136.70 | G139: 133.25 | H139: 148.85 | I139: 152.30 | J139: 156.65 | K139: 147.95 | L139: 140.15 | M139: 0.20549
A140: 130 | B140: EMAMILTD | C140: 201.7 | D140: 202.40 | E140: 198.30 | F140: 194.90 | G140: 190.80 | H140: 205.80 | I140: 209.90 | J140: 213.30 | K140: 206.5 | L140: 199 | M140: 9.25425
A141: 131 | B141: ENDURANCE | C141: 856.3 | D141: 864.57 | E141: 827.13 | F141: 797.97 | G141: 760.53 | H141: 893.73 | I141: 931.17 | J141: 960.33 | K141: 902 | L141: 835.4 | M141: 1.8577
A142: 132 | B142: ENGINERSIN | C142: 67.35 | D142: 67.97 | E142: 66.43 | F142: 65.52 | G142: 63.98 | H142: 68.88 | I142: 70.42 | J142: 71.33 | K142: 69.5 | L142: 67.05 | M142: 11.47759
A143: 133 | B143: EQUITAS | C143: 52.75 | D143: 51.68 | E143: 50.22 | F143: 47.68 | G143: 46.22 | H143: 54.22 | I143: 55.68 | J143: 58.22 | K143: 53.15 | L143: 49.15 | M143: 340.22381
A144: 134 | B144: ERIS | C144: 469.35 | D144: 473.02 | E144: 464.33 | F144: 459.32 | G144: 450.63 | H144: 478.03 | I144: 486.72 | J144: 491.73 | K144: 481.7 | L144: 468 | M144: 0.57986
A145: 135 | B145: ESCORTS | C145: 984.4 | D145: 982.37 | E145: 970.18 | F145: 955.97 | G145: 943.78 | H145: 996.58 | I145: 1008.77 | J145: 1022.98 | K145: 994.55 | L145: 968.15 | M145: 14.58038
A146: 136 | B146: ESSELPACK | C146: 194.05 | D146: 190.27 | E146: 184.78 | F146: 175.52 | G146: 170.03 | H146: 199.53 | I146: 205.02 | J146: 214.28 | K146: 195.75 | L146: 181 | M146: 4.97483
A147: 137 | B147: EXIDEIND | C147: 152 | D147: 151.75 | E147: 149.50 | F147: 147.00 | G147: 144.75 | H147: 154.25 | I147: 156.50 | J147: 159.00 | K147: 154 | L147: 149.25 | M147: 48.7211
A148: 138 | B148: FCONSUMER | C148: 14.5 | D148: 14.50 | E148: 14.50 | F148: 14.50 | G148: 14.50 | H148: 14.50 | I148: 14.50 | J148: 14.50 | K148: 14.5 | L148: 14.5 | M148: 3.6339
A149: 139 | B149: FDC | C149: 249.2 | D149: 251.38 | E149: 245.87 | F149: 242.53 | G149: 237.02 | H149: 254.72 | I149: 260.23 | J149: 263.57 | K149: 256.9 | L149: 248.05 | M149: 2.96613
A150: 140 | B150: FEDERALBNK | C150: 50.95 | D150: 50.02 | E150: 48.83 | F150: 46.72 | G150: 45.53 | H150: 52.13 | I150: 53.32 | J150: 55.43 | K150: 51.2 | L150: 47.9 | M150: 618.04616
A151: 141 | B151: FINCABLES | C151: 269.95 | D151: 268.85 | E151: 264.70 | F151: 259.45 | G151: 255.30 | H151: 274.10 | I151: 278.25 | J151: 283.50 | K151: 273 | L151: 263.6 | M151: 1.14896
A152: 142 | B152: FINEORG | C152: 1933.95 | D152: 1943.32 | E152: 1915.73 | F152: 1897.52 | G152: 1869.93 | H152: 1961.53 | I152: 1989.12 | J152: 2007.33 | K152: 1970.9 | L152: 1925.1 | M152: 0.1505
A153: 143 | B153: FINPIPE | C153: 479.35 | D153: 473.18 | E153: 462.37 | F153: 445.38 | G153: 434.57 | H153: 490.17 | I153: 500.98 | J153: 517.97 | K153: 484 | L153: 456.2 | M153: 0.85838
A154: 144 | B154: FLFL | C154: 147.85 | D154: 148.72 | E154: 145.98 | F154: 144.12 | G154: 141.38 | H154: 150.58 | I154: 153.32 | J154: 155.18 | K154: 151.45 | L154: 146.85 | M154: 7.34138
A155: 145 | B155: FMGOETZE | C155: 415.4 | D155: 414.72 | E155: 402.48 | F155: 389.57 | G155: 377.33 | H155: 427.63 | I155: 439.87 | J155: 452.78 | K155: 426.95 | L155: 401.8 | M155: 0.01363
A156: 146 | B156: FORTIS | C156: 122.4 | D156: 122.93 | E156: 120.97 | F156: 119.53 | G156: 117.57 | H156: 124.37 | I156: 126.33 | J156: 127.77 | K156: 124.9 | L156: 121.5 | M156: 28.49024
A157: 147 | B157: FRETAIL | C157: 111.65 | D157: 111.65 | E157: 111.65 | F157: 111.65 | G157: 111.65 | H157: 111.65 | I157: 111.65 | J157: 111.65 | K157: 111.65 | L157: 111.65 | M157: 6.60262
A158: 148 | B158: FSL | C158: 39.95 | D158: 39.60 | E158: 38.45 | F158: 36.95 | G158: 35.80 | H158: 41.10 | I158: 42.25 | J158: 43.75 | K158: 40.75 | L158: 38.1 | M158: 49.65103
A159: 149 | B159: GAIL | C159: 99.5 | D159: 99.08 | E159: 97.92 | F159: 96.33 | G159: 95.17 | H159: 100.67 | I159: 101.83 | J159: 103.42 | K159: 100.25 | L159: 97.5 | M159: 173.34763
A160: 150 | B160: GALAXYSURF | C160: 1397.45 | D160: 1380.08 | E160: 1350.17 | F160: 1302.88 | G160: 1272.97 | H160: 1427.37 | I160: 1457.28 | J160: 1504.57 | K160: 1410 | L160: 1332.8 | M160: 0.28613
A161: 151 | B161: GARFIBRES | C161: 1329 | D161: 1339.53 | E161: 1315.92 | F161: 1302.83 | G161: 1279.22 | H161: 1352.62 | I161: 1376.23 | J161: 1389.32 | K161: 1363.15 | L161: 1326.45 | M161: 0.04631
A162: 152 | B162: GAYAPROJ | C162: 18 | D162: 17.70 | E162: 17.30 | F162: 16.60 | G162: 16.20 | H162: 18.40 | I162: 18.80 | J162: 19.50 | K162: 18.1 | L162: 17 | M162: 2.81474
A163: 153 | B163: GEPIL | C163: 423.75 | D163: 419.55 | E163: 411.10 | F163: 398.45 | G163: 390.00 | H163: 432.20 | I163: 440.65 | J163: 453.30 | K163: 428 | L163: 406.9 | M163: 0.71693
A164: 154 | B164: GESHIP | C164: 213.9 | D164: 215.73 | E164: 210.27 | F164: 206.63 | G164: 201.17 | H164: 219.37 | I164: 224.83 | J164: 228.47 | K164: 221.2 | L164: 212.1 | M164: 1.75068
A165: 155 | B165: GET&D | C165: 73 | D165: 73.17 | E165: 71.83 | F165: 70.67 | G165: 69.33 | H165: 74.33 | I165: 75.67 | J165: 76.83 | K165: 74.5 | L165: 72 | M165: 2.14647
A166: 156 | B166: GHCL | C166: 140.15 | D166: 141.62 | E166: 138.33 | F166: 136.52 | G166: 133.23 | H166: 143.43 | I166: 146.72 | J166: 148.53 | K166: 144.9 | L166: 139.8 | M166: 1.22363
A167: 157 | B167: GICRE | C167: 153.3 | D167: 155.43 | E167: 149.97 | F167: 146.63 | G167: 141.17 | H167: 158.77 | I167: 164.23 | J167: 167.57 | K167: 160.9 | L167: 152.1 | M167: 6.21731
A168: 158 | B168: GILLETTE | C168: 4824.45 | D168: 4860.15 | E168: 4769.30 | F168: 4714.15 | G168: 4623.30 | H168: 4915.30 | I168: 5006.15 | J168: 5061.30 | K168: 4951 | L168: 4805 | M168: 0.36506
A169: 159 | B169: GLAXO | C169: 1367.8 | D169: 1370.67 | E169: 1358.13 | F169: 1348.47 | G169: 1335.93 | H169: 1380.33 | I169: 1392.87 | J169: 1402.53 | K169: 1383.2 | L169: 1361 | M169: 0.16504
A170: 160 | B170: GLENMARK | C170: 409.35 | D170: 411.35 | E170: 405.70 | F170: 402.05 | G170: 396.40 | H170: 415.00 | I170: 420.65 | J170: 424.30 | K170: 417 | L170: 407.7 | M170: 48.71849
A171: 161 | B171: GMDCLTD | C171: 43 | D171: 43.37 | E171: 41.73 | F171: 40.47 | G171: 38.83 | H171: 44.63 | I171: 46.27 | J171: 47.53 | K171: 45 | L171: 42.1 | M171: 19.98919
A172: 162 | B172: GMRINFRA | C172: 21.6 | D172: 21.28 | E172: 20.62 | F172: 19.63 | G172: 18.97 | H172: 22.27 | I172: 22.93 | J172: 23.92 | K172: 21.95 | L172: 20.3 | M172: 293.16472
A173: 163 | B173: GNFC | C173: 155.35 | D173: 156.25 | E173: 153.10 | F173: 150.85 | G173: 147.70 | H173: 158.50 | I173: 161.65 | J173: 163.90 | K173: 159.4 | L173: 154 | M173: 9.02975
A174: 164 | B174: GODFRYPHLP | C174: 965.3 | D174: 969.10 | E174: 958.20 | F174: 951.10 | G174: 940.20 | H174: 976.20 | I174: 987.10 | J174: 994.20 | K174: 980 | L174: 962 | M174: 0.64483
A175: 165 | B175: GODREJAGRO | C175: 428.8 | D175: 428.90 | E175: 422.45 | F175: 416.10 | G175: 409.65 | H175: 435.25 | I175: 441.70 | J175: 448.05 | K175: 435.35 | L175: 422.55 | M175: 2.49263
A176: 166 | B176: GODREJCP | C176: 650.5 | D176: 647.55 | E176: 640.10 | F176: 629.70 | G176: 622.25 | H176: 657.95 | I176: 665.40 | J176: 675.80 | K176: 655 | L176: 637.15 | M176: 24.39529
A177: 167 | B177: GODREJIND | C177: 382.05 | D177: 380.72 | E177: 376.43 | F177: 370.82 | G177: 366.53 | H177: 386.33 | I177: 390.62 | J177: 396.23 | K177: 385 | L177: 375.1 | M177: 2.51773
A178: 168 | B178: GODREJPROP | C178: 893.8 | D178: 875.27 | E178: 845.53 | F178: 797.27 | G178: 767.53 | H178: 923.53 | I178: 953.27 | J178: 1001.53 | K178: 905 | L178: 827 | M178: 16.63431
A179: 169 | B179: GPPL | C179: 74.45 | D179: 74.92 | E179: 73.53 | F179: 72.62 | G179: 71.23 | H179: 75.83 | I179: 77.22 | J179: 78.13 | K179: 76.3 | L179: 74 | M179: 1.88052
A180: 170 | B180: GRANULES | C180: 206.7 | D180: 206.87 | E180: 200.83 | F180: 194.97 | G180: 188.93 | H180: 212.73 | I180: 218.77 | J180: 224.63 | K180: 212.9 | L180: 201 | M180: 34.16821
A181: 171 | B181: GRAPHITE | C181: 186.9 | D181: 188.73 | E181: 183.67 | F181: 180.43 | G181: 175.37 | H181: 191.97 | I181: 197.03 | J181: 200.27 | K181: 193.8 | L181: 185.5 | M181: 4.20691
A182: 172 | B182: GRASIM | C182: 601.25 | D182: 599.50 | E182: 595.30 | F182: 589.35 | G182: 585.15 | H182: 605.45 | I182: 609.65 | J182: 615.60 | K182: 603.7 | L182: 593.55 | M182: 26.1983
A183: 173 | B183: GREAVESCOT | C183: 86.55 | D183: 86.57 | E183: 81.53 | F183: 76.52 | G183: 71.48 | H183: 91.58 | I183: 96.62 | J183: 101.63 | K183: 91.6 | L183: 81.55 | M183: 36.72626
A184: 174 | B184: GRINDWELL | C184: 508.9 | D184: 509.67 | E184: 501.33 | F184: 493.77 | G184: 485.43 | H184: 517.23 | I184: 525.57 | J184: 533.13 | K184: 518 | L184: 502.1 | M184: 0.41872
A185: 175 | B185: GSFC | C185: 53.5 | D185: 53.95 | E185: 52.65 | F185: 51.80 | G185: 50.50 | H185: 54.80 | I185: 56.10 | J185: 56.95 | K185: 55.25 | L185: 53.1 | M185: 14.07853
A186: 176 | B186: GSPL | C186: 226.4 | D186: 225.58 | E186: 222.17 | F186: 217.93 | G186: 214.52 | H186: 229.82 | I186: 233.23 | J186: 237.47 | K186: 229 | L186: 221.35 | M186: 14.46007
A187: 177 | B187: GUJALKALI | C187: 332.5 | D187: 331.10 | E187: 324.40 | F187: 316.30 | G187: 309.60 | H187: 339.20 | I187: 345.90 | J187: 354.00 | K187: 337.8 | L187: 323 | M187: 1.41425
A188: 178 | B188: GUJGASLTD | C188: 292.55 | D188: 293.02 | E188: 288.78 | F188: 285.02 | G188: 280.78 | H188: 296.78 | I188: 301.02 | J188: 304.78 | K188: 297.25 | L188: 289.25 | M188: 5.44891
A189: 179 | B189: GULFOILLUB | C189: 629.85 | D189: 630.72 | E189: 623.13 | F189: 616.42 | G189: 608.83 | H189: 637.43 | I189: 645.02 | J189: 651.73 | K189: 638.3 | L189: 624 | M189: 0.08177
A190: 180 | B190: HAL | C190: 708.05 | D190: 711.58 | E190: 701.47 | F190: 694.88 | G190: 684.77 | H190: 718.17 | I190: 728.28 | J190: 734.87 | K190: 721.7 | L190: 705 | M190: 0.47065
A191: 181 | B191: HATSUN | C191: 609.35 | D191: 616.75 | E191: 599.00 | F191: 588.65 | G191: 570.90 | H191: 627.10 | I191: 644.85 | J191: 655.20 | K191: 634.5 | L191: 606.4 | M191: 0.12892
A192: 182 | B192: HAVELLS | C192: 566.35 | D192: 562.92 | E192: 548.93 | F192: 531.52 | G192: 517.53 | H192: 580.33 | I192: 594.32 | J192: 611.73 | K192: 576.9 | L192: 545.5 | M192: 53.0561
A193: 183 | B193: HCLTECH | C193: 569.6 | D193: 571.60 | E193: 565.20 | F193: 560.80 | G193: 554.40 | H193: 576.00 | I193: 582.40 | J193: 586.80 | K193: 578 | L193: 567.2 | M193: 61.8263
A194: 184 | B194: HDFC | C194: 1835.1 | D194: 1838.87 | E194: 1810.23 | F194: 1785.37 | G194: 1756.73 | H194: 1863.73 | I194: 1892.37 | J194: 1917.23 | K194: 1867.5 | L194: 1814 | M194: 121.99449
A195: 185 | B195: HDFCAMC | C195: 2444.7 | D195: 2438.32 | E195: 2416.63 | F195: 2388.57 | G195: 2366.88 | H195: 2466.38 | I195: 2488.07 | J195: 2516.13 | K195: 2460 | L195: 2410.25 | M195: 10.24865
A196: 186 | B196: HDFCBANK | C196: 1033.35 | D196: 1029.50 | E196: 1016.00 | F196: 998.65 | G196: 985.15 | H196: 1046.85 | I196: 1060.35 | J196: 1077.70 | K196: 1043 | L196: 1012.15 | M196: 239.39324
A197: 187 | B197: HDFCLIFE | C197: 521.1 | D197: 519.82 | E197: 515.63 | F197: 510.17 | G197: 505.98 | H197: 525.28 | I197: 529.47 | J197: 534.93 | K197: 524 | L197: 514.35 | M197: 45.69791
A198: 188 | B198: HEG | C198: 883.45 | D198: 897.02 | E198: 866.03 | F198: 848.62 | G198: 817.63 | H198: 914.43 | I198: 945.42 | J198: 962.83 | K198: 928 | L198: 879.6 | M198: 3.97635
A199: 189 | B199: HEIDELBERG | C199: 173.8 | D199: 174.55 | E199: 171.30 | F199: 168.80 | G199: 165.55 | H199: 177.05 | I199: 180.30 | J199: 182.80 | K199: 177.8 | L199: 172.05 | M199: 7.32008
A200: 190 | B200: HERITGFOOD | C200: 255.2 | D200: 254.67 | E200: 250.78 | F200: 246.37 | G200: 242.48 | H200: 259.08 | I200: 262.97 | J200: 267.38 | K200: 258.55 | L200: 250.25 | M200: 0.17878
A201: 191 | B201: HEROMOTOCO | C201: 2355.85 | D201: 2356.97 | E201: 2331.13 | F201: 2306.42 | G201: 2280.58 | H201: 2381.68 | I201: 2407.52 | J201: 2432.23 | K201: 2382.8 | L201: 2332.25 | M201: 36.02756
A202: 192 | B202: HEXAWARE | C202: 315.8 | D202: 318.77 | E202: 311.13 | F202: 306.47 | G202: 298.83 | H202: 323.43 | I202: 331.07 | J202: 335.73 | K202: 326.4 | L202: 314.1 | M202: 13.62166
A203: 193 | B203: HFCL | C203: 12.95 | D203: 12.80 | E203: 12.65 | F203: 12.35 | G203: 12.20 | H203: 13.10 | I203: 13.25 | J203: 13.55 | K203: 12.95 | L203: 12.5 | M203: 38.33605
A204: 194 | B204: HIMATSEIDE | C204: 66.3 | D204: 66.53 | E204: 63.87 | F204: 61.43 | G204: 58.77 | H204: 68.97 | I204: 71.63 | J204: 74.07 | K204: 69.2 | L204: 64.1 | M204: 9.20097
A205: 195 | B205: HINDALCO | C205: 151.05 | D205: 150.63 | E205: 148.92 | F205: 146.78 | G205: 145.07 | H205: 152.77 | I205: 154.48 | J205: 156.62 | K205: 152.35 | L205: 148.5 | M205: 146.31329
A206: 196 | B206: HINDCOPPER | C206: 31.1 | D206: 31.63 | E206: 30.47 | F206: 29.83 | G206: 28.67 | H206: 32.27 | I206: 33.43 | J206: 34.07 | K206: 32.8 | L206: 31 | M206: 11.32484
... 321 more rows

Sheet Bulk Deals
E6: Back To Main Page
A7: Subject : | B7: BULK DEAL | D7: =Main!B10 -> 2020-06-22
A9: Date | B9: Scrip code | C9: Scrip Name | D9: Client Name | E9: Buy / Sell | F9: Quantity Traded | G9: Trade Price / Wt.Avg.trade price | H9: Exchange
A10: 2020-06-19 | B10: 538566 | C10: APOLLOTRI | D10: IIFL ASSET MANAGEMENT LIMITED | E10: BUY | F10: 269,000 | G10: 370 | H10: BSE
A11: 2020-06-19 | B11: 542934 | C11: CBPL | D11: BEELINE BROKING LIMITED | E11: BUY | F11: 50,000 | G11: 50.04 | H11: BSE
A12: 2020-06-19 | B12: 504697 | C12: GALADA | D12: IDBI BANK LIMITED | E12: SELL | F12: 94,372 | G12: 0.54 | H12: BSE
A13: 2020-06-19 | B13: 531739 | C13: GENNEX | D13: IVORY CONSULTANTS PVT LTD | E13: BUY | F13: 100,000 | G13: 5.54 | H13: BSE
A14: 2020-06-19 | B14: 531739 | C14: GENNEX | D14: IVORY CONSULTANTS PVT LTD | E14: SELL | F14: 1,433,582 | G14: 6.06 | H14: BSE
A15: 2020-06-19 | B15: 530663 | C15: GOYALASS | D15: MANOJ SITARAM AGARWAL | E15: SELL | F15: 400,000 | G15: 0.46 | H15: BSE
A16: 2020-06-19 | B16: 539097 | C16: HKG | D16: POOJA BHAVESH BHAGDEV | E16: BUY | F16: 18,000 | G16: 106.1 | H16: BSE
A17: 2020-06-19 | B17: 542935 | C17: ICLORGANIC | D17: SATYA VEER SINGH . | E17: BUY | F17: 36,000 | G17: 21.58 | H17: BSE
A18: 2020-06-19 | B18: 542935 | C18: ICLORGANIC | D18: STRATEGIC INVESTMENT SOLUTIONS | E18: SELL | F18: 54,000 | G18: 21.27 | H18: BSE
A19: 2020-06-19 | B19: 533329 | C19: INDTERRAIN | D19: SMC REAL ESTATE ADVISORS PRIVATE LIMITED | E19: BUY | F19: 80,864 | G19: 38.01 | H19: BSE
A20: 2020-06-19 | B20: 533329 | C20: INDTERRAIN | D20: SMC REAL ESTATE ADVISORS PRIVATE LIMITED | E20: SELL | F20: 229,007 | G20: 38.19 | H20: BSE
A21: 2020-06-19 | B21: 533329 | C21: INDTERRAIN | D21: MILLENNIUM STOCK BROKING PVT LTD | E21: BUY | F21: 68,393 | G21: 38.58 | H21: BSE
A22: 2020-06-19 | B22: 533329 | C22: INDTERRAIN | D22: MILLENNIUM STOCK BROKING PVT LTD | E22: SELL | F22: 301,123 | G22: 39.47 | H22: BSE
A23: 2020-06-19 | B23: 533329 | C23: INDTERRAIN | D23: GKN SECURITIES | E23: BUY | F23: 98,379 | G23: 38.37 | H23: BSE
A24: 2020-06-19 | B24: 533329 | C24: INDTERRAIN | D24: GKN SECURITIES | E24: SELL | F24: 231,061 | G24: 38.43 | H24: BSE
A25: 2020-06-19 | B25: 509048 | C25: LANCORHOL | D25: NETLINK SOLUTIONS (INDIA) LTD | E25: BUY | F25: 300,000 | G25: 3.22 | H25: BSE
A26: 2020-06-19 | B26: 540360 | C26: LLFICL | D26: RASHESH MEHTA . | E26: BUY | F26: 27,000 | G26: 98.19 | H26: BSE
A27: 2020-06-19 | B27: 540360 | C27: LLFICL | D27: KISHORKUMAR SOBHAGCHAND MORBIA | E27: SELL | F27: 27,000 | G27: 98.19 | H27: BSE
A28: 2020-06-19 | B28: 542771 | C28: NOVATEOR | D28: NARENDRA UIKEY | E28: BUY | F28: 42,000 | G28: 4.44 | H28: BSE
A29: 2020-06-19 | B29: 507690 | C29: ORIBEVER | D29: RAJESH JOSEPH | E29: BUY | F29: 11,111 | G29: 62.97 | H29: BSE
A30: 2020-06-19 | B30: 512217 | C30: PRISMMEDI | D30: MANISH NITIN THAKUR | E30: BUY | F30: 36,012 | G30: 16.01 | H30: BSE
A31: 2020-06-19 | B31: 512217 | C31: PRISMMEDI | D31: MANISH NITIN THAKUR | E31: SELL | F31: 19,385 | G31: 15.14 | H31: BSE
A32: 2020-06-19 | B32: BAJAJCON | C32: Bajaj Corp Limited | D32: EQUITY INTELLIGENCE INDIA | E32: BUY | F32: 863,993 | G32: 146.68 | H32: NSE
A33: 2020-06-19 | B33: BANARBEADS | C33: Banaras Beads Ltd | D33: SUDESH SINGH | E33: BUY | F33: 35,248 | G33: 43.77 | H33: NSE
A34: 2020-06-19 | B34: EQUITAS | C34: Equitas Holdings Limited | D34: TOWER RESEARCH CAPITAL MARKETS INDIA PRIVATE LIMITED | E34: BUY | F34: 2,727,530 | G34: 51.74 | H34: NSE
A35: 2020-06-19 | B35: EQUITAS | C35: Equitas Holdings Limited | D35: KOTAK SECURITIES LTD | E35: BUY | F35: 2,777,867 | G35: 52.08 | H35: NSE
A36: 2020-06-19 | B36: EVERESTIND | C36: Everest Industries Limite | D36: N.K.SECURITIES | E36: BUY | F36: 99,601 | G36: 233.86 | H36: NSE
A37: 2020-06-19 | B37: FIEMIND | C37: Fiem Industries Limited | D37: N.K.SECURITIES | E37: BUY | F37: 71,856 | G37: 347.1 | H37: NSE
A38: 2020-06-19 | B38: GREENPOWER | C38: Orient Green Power Co Ltd | D38: ALPHA LEON ENTERPRISES LLP | E38: BUY | F38: 4,321,970 | G38: 2.95 | H38: NSE
A39: 2020-06-19 | B39: HIL | C39: HIL Limited | D39: ALPHA LEON ENTERPRISES LLP | E39: BUY | F39: 47,880 | G39: 1258 | H39: NSE
A40: 2020-06-19 | B40: HISARMETAL | C40: Hisar Metal Ind. Limited | D40: RAHUL DOSHI | E40: BUY | F40: 33,200 | G40: 79.71 | H40: NSE
A41: 2020-06-19 | B41: HISARMETAL | C41: Hisar Metal Ind. Limited | D41: N.K.SECURITIES | E41: BUY | F41: 34,953 | G41: 78.14 | H41: NSE
A42: 2020-06-19 | B42: HISARMETAL | C42: Hisar Metal Ind. Limited | D42: YOGESH KUMAR GAWANDE | E42: BUY | F42: 153,149 | G42: 77.62 | H42: NSE
A43: 2020-06-19 | B43: IBULHSGFIN | C43: Indiabulls Hsg Fin Ltd | D43: MORGAN STANLEY ASIA (SINGAPORE) PTE. | E43: BUY | F43: 4,522,602 | G43: 184.76 | H43: NSE
A44: 2020-06-19 | B44: IBULHSGFIN | C44: Indiabulls Hsg Fin Ltd | D44: ISHARES EMERGING MARKETS DIVIDEND UCITS ETF | E44: BUY | F44: 2,569,494 | G44: 189.51 | H44: NSE
A45: 2020-06-19 | B45: IBULHSGFIN | C45: Indiabulls Hsg Fin Ltd | D45: ISHARES EMERGING MARKETS DIVIDEND ETF | E45: BUY | F45: 4,558,746 | G45: 189.51 | H45: NSE
A46: 2020-06-19 | B46: IBULHSGFIN | C46: Indiabulls Hsg Fin Ltd | D46: SURJECTIVE RESEARCH CAPITAL LLP | E46: BUY | F46: 5,866,654 | G46: 175.61 | H46: NSE
A47: 2020-06-19 | B47: IBULHSGFIN | C47: Indiabulls Hsg Fin Ltd | D47: ALPHAGREP SECURITIES PRIVATE LIMITED | E47: BUY | F47: 2,213,873 | G47: 186.36 | H47: NSE
A48: 2020-06-19 | B48: IBULHSGFIN | C48: Indiabulls Hsg Fin Ltd | D48: TOWER RESEARCH CAPITAL MARKETS INDIA PRIVATE LIMITED | E48: BUY | F48: 5,666,090 | G48: 172.83 | H48: NSE
A49: 2020-06-19 | B49: IBULHSGFIN | C49: Indiabulls Hsg Fin Ltd | D49: GRAVITON RESEARCH CAPITAL LLP | E49: BUY | F49: 2,972,029 | G49: 172.88 | H49: NSE
A50: 2020-06-19 | B50: IGARASHI | C50: Igarashi Motors India Lim | D50: N.K.SECURITIES | E50: BUY | F50: 171,071 | G50: 321.18 | H50: NSE
A51: 2020-06-19 | B51: INDTERRAIN | C51: Ind Terrain Fashions Ltd | D51: MILLENNIUM STOCK BROKING PVT LTD | E51: BUY | F51: 291,031 | G51: 39.42 | H51: NSE
A52: 2020-06-19 | B52: INDTERRAIN | C52: Ind Terrain Fashions Ltd | D52: GKN SECURITIES | E52: BUY | F52: 294,433 | G52: 38.51 | H52: NSE
A53: 2020-06-19 | B53: INDTERRAIN | C53: Ind Terrain Fashions Ltd | D53: MADHAV STOCK VISION P LTD ERROR | E53: BUY | F53: 40 | G53: 36.2 | H53: NSE
A54: 2020-06-19 | B54: INDTERRAIN | C54: Ind Terrain Fashions Ltd | D54: TANISH TRADEFIN LLP | E54: BUY | F54: 300,000 | G54: 41.15 | H54: NSE
A55: 2020-06-19 | B55: INDTERRAIN | C55: Ind Terrain Fashions Ltd | D55: N.K.SECURITIES | E55: BUY | F55: 225,202 | G55: 38.19 | H55: NSE
A56: 2020-06-19 | B56: INDTERRAIN | C56: Ind Terrain Fashions Ltd | D56: SMC REAL ESTATE ADVISORS PRIVATE LIMITED | E56: BUY | F56: 314,188 | G56: 38.15 | H56: NSE
A57: 2020-06-19 | B57: INDTERRAIN | C57: Ind Terrain Fashions Ltd | D57: M T CORPORATION | E57: BUY | F57: 235,000 | G57: 39.54 | H57: NSE
A58: 2020-06-19 | B58: JUMPNET | C58: Jump Networks Limited | D58: ANUPAM NARAIN GUPTA | E58: BUY | F58: 28,415 | G58: 46.92 | H58: NSE
A59: 2020-06-19 | B59: MINDTREE | C59: MindTree Limited | D59: INTEGRATED CORE STRATEGIES (ASIA) PTE. LTD. | E59: BUY | F59: 1,054,707 | G59: 918.89 | H59: NSE
A60: 2020-06-19 | B60: NCC | C60: NCC Limited | D60: TOWER RESEARCH CAPITAL MARKETS INDIA PRIVATE LIMITED | E60: BUY | F60: 4,855,428 | G60: 30.51 | H60: NSE
A61: 2020-06-19 | B61: NCC | C61: NCC Limited | D61: HRTI PRIVATE LIMITED | E61: BUY | F61: 3,438,102 | G61: 30.51 | H61: NSE
A62: 2020-06-19 | B62: ORIENTCEM | C62: Orient Cement Ltd. | D62: HDFC TRUSTEE COMPANY LIMITED - HDFC BALANCED ADVANTAGE FUND | E62: BUY | F62: 2,700,000 | G62: 72.93 | H62: NSE
A63: 2020-06-19 | B63: RAMCOSYS | C63: Ramco Systems Limited | D63: ALPHA LEON ENTERPRISES LLP | E63: BUY | F63: 221,103 | G63: 125.85 | H63: NSE
A64: 2020-06-19 | B64: RBLBANK | C64: RBL Bank Limited | D64: SURJECTIVE RESEARCH CAPITAL LLP | E64: BUY | F64: 2,982,194 | G64: 168.29 | H64: NSE
A65: 2020-06-19 | B65: RBLBANK | C65: RBL Bank Limited | D65: TOWER RESEARCH CAPITAL MARKETS INDIA PRIVATE LIMITED | E65: BUY | F65: 3,185,943 | G65: 167.89 | H65: NSE
A66: 2020-06-19 | B66: RBLBANK | C66: RBL Bank Limited | D66: GRAVITON RESEARCH CAPITAL LLP | E66: BUY | F66: 2,600,979 | G66: 168.32 | H66: NSE
A67: 2020-06-19 | B67: RIIL | C67: Reliance Indl Infra Ltd | D67: N.K.SECURITIES | E67: BUY | F67: 96,450 | G67: 359.53 | H67: NSE
A68: 2020-06-19 | B68: RIIL | C68: Reliance Indl Infra Ltd | D68: RAHUL DOSHI | E68: BUY | F68: 231,111 | G68: 372.94 | H68: NSE
A69: 2020-06-19 | B69: SCAPDVR | C69: Stampede Capital Limited | D69: SACHI KAPOOR | E69: BUY | F69: 500,000 | G69: 0.8 | H69: NSE
A70: 2020-06-19 | B70: TEXRAIL | C70: Texmaco Rail & Eng. Ltd. | D70: HDFC TRUSTEE COMPANY LIMITED - HDFC BALANCED ADVANTAGE FUND | E70: BUY | F70: 3,100,000 | G70: 25.95 | H70: NSE
A71: 2020-06-19 | B71: UJJIVAN | C71: Ujjivan Fin. Servc. Ltd. | D71: SURJECTIVE RESEARCH CAPITAL LLP | E71: BUY | F71: 730,777 | G71: 213.79 | H71: NSE
A72: 2020-06-19 | B72: UJJIVAN | C72: Ujjivan Fin. Servc. Ltd. | D72: ALPHAGREP SECURITIES PRIVATE LIMITED | E72: BUY | F72: 693,642 | G72: 214.04 | H72: NSE
A73: 2020-06-19 | B73: UJJIVAN | C73: Ujjivan Fin. Servc. Ltd. | D73: TOWER RESEARCH CAPITAL MARKETS INDIA PRIVATE LIMITED | E73: BUY | F73: 686,458 | G73: 214.05 | H73: NSE
A74: 2020-06-19 | B74: UNITEDPOLY | C74: United Polyfab Guj. Ltd. | D74: SHIV MARKETING AND TRADING | E74: BUY | F74: 90,000 | G74: 7 | H74: NSE
A75: 2020-06-19 | B75: ALANKIT | C75: Alankit Limited | D75: KUBER RECYCLE PROJECTS PRIVATE LIMITED | E75: SELL | F75: 818,343 | G75: 18.25 | H75: NSE
A76: 2020-06-19 | B76: BANARBEADS | C76: Banaras Beads Ltd | D76: KRISHNA JHANWAR | E76: SELL | F76: 36,394 | G76: 43.47 | H76: NSE
A77: 2020-06-19 | B77: COX&KINGS | C77: Cox & Kings Limited | D77: MULTIPLIER S AND S ADV PVT LTD | E77: SELL | F77: 1,600,000 | G77: 1.45 | H77: NSE
A78: 2020-06-19 | B78: EQUITAS | C78: Equitas Holdings Limited | D78: TOWER RESEARCH CAPITAL MARKETS INDIA PRIVATE LIMITED | E78: SELL | F78: 2,727,530 | G78: 51.85 | H78: NSE
A79: 2020-06-19 | B79: EQUITAS | C79: Equitas Holdings Limited | D79: KOTAK SECURITIES LTD | E79: SELL | F79: 282,301 | G79: 52.06 | H79: NSE
A80: 2020-06-19 | B80: EVERESTIND | C80: Everest Industries Limite | D80: N.K.SECURITIES | E80: SELL | F80: 99,601 | G80: 234.19 | H80: NSE
A81: 2020-06-19 | B81: FIEMIND | C81: Fiem Industries Limited | D81: N.K.SECURITIES | E81: SELL | F81: 71,856 | G81: 347.48 | H81: NSE
A82: 2020-06-19 | B82: GREENPOWER | C82: Orient Green Power Co Ltd | D82: ALPHA LEON ENTERPRISES LLP | E82: SELL | F82: 1,826,423 | G82: 3.16 | H82: NSE
A83: 2020-06-19 | B83: HIL | C83: HIL Limited | D83: ALPHA LEON ENTERPRISES LLP | E83: SELL | F83: 47,882 | G83: 1264.8 | H83: NSE
A84: 2020-06-19 | B84: HISARMETAL | C84: Hisar Metal Ind. Limited | D84: RUCHIKA AGARWAL | E84: SELL | F84: 31,500 | G84: 76.98 | H84: NSE
A85: 2020-06-19 | B85: HISARMETAL | C85: Hisar Metal Ind. Limited | D85: RAHUL DOSHI | E85: SELL | F85: 18,367 | G85: 79.86 | H85: NSE
A86: 2020-06-19 | B86: HISARMETAL | C86: Hisar Metal Ind. Limited | D86: N.K.SECURITIES | E86: SELL | F86: 34,953 | G86: 78.36 | H86: NSE
A87: 2020-06-19 | B87: HISARMETAL | C87: Hisar Metal Ind. Limited | D87: YOGESH KUMAR GAWANDE | E87: SELL | F87: 153,149 | G87: 77.98 | H87: NSE
A88: 2020-06-19 | B88: IBULHSGFIN | C88: Indiabulls Hsg Fin Ltd | D88: TOWER RESEARCH CAPITAL MARKETS INDIA PRIVATE LIMITED | E88: SELL | F88: 6,101,057 | G88: 173.36 | H88: NSE
A89: 2020-06-19 | B89: IBULHSGFIN | C89: Indiabulls Hsg Fin Ltd | D89: SURJECTIVE RESEARCH CAPITAL LLP | E89: SELL | F89: 5,873,715 | G89: 175.69 | H89: NSE
A90: 2020-06-19 | B90: IBULHSGFIN | C90: Indiabulls Hsg Fin Ltd | D90: GRAVITON RESEARCH CAPITAL LLP | E90: SELL | F90: 2,972,029 | G90: 172.85 | H90: NSE
A91: 2020-06-19 | B91: IBULHSGFIN | C91: Indiabulls Hsg Fin Ltd | D91: INTEGRATED CORE STRATEGIES (ASIA) PTE. LTD. | E91: SELL | F91: 2,169,410 | G91: 202.12 | H91: NSE
A92: 2020-06-19 | B92: IBULHSGFIN | C92: Indiabulls Hsg Fin Ltd | D92: ALPHAGREP SECURITIES PRIVATE LIMITED | E92: SELL | F92: 2,213,873 | G92: 186.5 | H92: NSE
A93: 2020-06-19 | B93: ICICIGI | C93: ICICI Lombard GIC Limited | D93: ICICI BANK LTD. (INVESTMENT) | E93: SELL | F93: 18,000,000 | G93: 1250.55 | H93: NSE
A94: 2020-06-19 | B94: IGARASHI | C94: Igarashi Motors India Lim | D94: N.K.SECURITIES | E94: SELL | F94: 171,071 | G94: 321.58 | H94: NSE
A95: 2020-06-19 | B95: INDTERRAIN | C95: Ind Terrain Fashions Ltd | D95: MILLENNIUM STOCK BROKING PVT LTD | E95: SELL | F95: 58,301 | G95: 38.16 | H95: NSE
A96: 2020-06-19 | B96: INDTERRAIN | C96: Ind Terrain Fashions Ltd | D96: SMC REAL ESTATE ADVISORS PRIVATE LIMITED | E96: SELL | F96: 166,045 | G96: 38.17 | H96: NSE
A97: 2020-06-19 | B97: INDTERRAIN | C97: Ind Terrain Fashions Ltd | D97: M T CORPORATION | E97: SELL | F97: 234,921 | G97: 40.64 | H97: NSE
A98: 2020-06-19 | B98: INDTERRAIN | C98: Ind Terrain Fashions Ltd | D98: TANISH TRADEFIN LLP | E98: SELL | F98: 300,000 | G98: 41.15 | H98: NSE
A99: 2020-06-19 | B99: INDTERRAIN | C99: Ind Terrain Fashions Ltd | D99: N.K.SECURITIES | E99: SELL | F99: 225,202 | G99: 38.25 | H99: NSE
A100: 2020-06-19 | B100: INDTERRAIN | C100: Ind Terrain Fashions Ltd | D100: MADHAV STOCK VISION P LTD ERROR | E100: SELL | F100: 234,076 | G100: 37.99 | H100: NSE
A101: 2020-06-19 | B101: INDTERRAIN | C101: Ind Terrain Fashions Ltd | D101: GKN SECURITIES | E101: SELL | F101: 161,751 | G101: 38.27 | H101: NSE
A102: 2020-06-19 | B102: JUMPNET | C102: Jump Networks Limited | D102: ANUPAM NARAIN GUPTA | E102: SELL | F102: 503,133 | G102: 50.78 | H102: NSE
A103: 2020-06-19 | B103: JUSTDIAL | C103: Justdial Ltd. | D103: ISHARES IV PUBLIC LIMITED COMPANY - ISHARES DIGITALISATION UCITS ETF | E103: SELL | F103: 477,256 | G103: 361.01 | H103: NSE
A104: 2020-06-19 | B104: MINDTREE | C104: MindTree Limited | D104: THE VANGUARD GROUP INC A/C VANGUARD EMERG. MKTS STOCK INDEXFD A SERIES OF V I E I F | E104: SELL | F104: 1,703,922 | G104: 913.58 | H104: NSE
A105: 2020-06-19 | B105: NATIONALUM | C105: National Alum Co Ltd | D105: ISHARES EMERGING MARKETS DIVIDEND ETF | E105: SELL | F105: 14,584,208 | G105: 30.75 | H105: NSE
A106: 2020-06-19 | B106: NCC | C106: NCC Limited | D106: HRTI PRIVATE LIMITED | E106: SELL | F106: 3,438,102 | G106: 30.5 | H106: NSE
A107: 2020-06-19 | B107: NCC | C107: NCC Limited | D107: TOWER RESEARCH CAPITAL MARKETS INDIA PRIVATE LIMITED | E107: SELL | F107: 5,760,291 | G107: 30.57 | H107: NSE
A108: 2020-06-19 | B108: ORIENTCEM | C108: Orient Cement Ltd. | D108: HDFC TRUSTEE CO LTD AC HDFC EQUITY OPPORTUNITIES FUND II 1126D MAY 2017 1 | E108: SELL | F108: 1,796,150 | G108: 72.93 | H108: NSE
A109: 2020-06-19 | B109: RAMCOSYS | C109: Ramco Systems Limited | D109: ALPHA LEON ENTERPRISES LLP | E109: SELL | F109: 221,101 | G109: 131.65 | H109: NSE
A110: 2020-06-19 | B110: RBLBANK | C110: RBL Bank Limited | D110: TOWER RESEARCH CAPITAL MARKETS INDIA PRIVATE LIMITED | E110: SELL | F110: 3,221,846 | G110: 167.87 | H110: NSE
A111: 2020-06-19 | B111: RBLBANK | C111: RBL Bank Limited | D111: SURJECTIVE RESEARCH CAPITAL LLP | E111: SELL | F111: 2,984,322 | G111: 168.36 | H111: NSE
A112: 2020-06-19 | B112: RBLBANK | C112: RBL Bank Limited | D112: GRAVITON RESEARCH CAPITAL LLP | E112: SELL | F112: 2,600,979 | G112: 168.4 | H112: NSE
A113: 2020-06-19 | B113: RIIL | C113: Reliance Indl Infra Ltd | D113: RAHUL DOSHI | E113: SELL | F113: 226,111 | G113: 372.89 | H113: NSE
A114: 2020-06-19 | B114: RIIL | C114: Reliance Indl Infra Ltd | D114: N.K.SECURITIES | E114: SELL | F114: 96,458 | G114: 359.8 | H114: NSE
A115: 2020-06-19 | B115: SCAPDVR | C115: Stampede Capital Limited | D115: EDATTU JOSHY JOBIN | E115: SELL | F115: 790,000 | G115: 0.8 | H115: NSE
A116: 2020-06-19 | B116: TEXRAIL | C116: Texmaco Rail & Eng. Ltd. | D116: HDFC TRUSTEE CO LTD A/C HDFC EQUITY OPPORTUNITIES FUND II 1100D JUNE 2017 (1) | E116: SELL | F116: 3,112,600 | G116: 25.95 | H116: NSE
A117: 2020-06-19 | B117: UJJIVAN | C117: Ujjivan Fin. Servc. Ltd. | D117: ALPHAGREP SECURITIES PRIVATE LIMITED | E117: SELL | F117: 693,642 | G117: 214.15 | H117: NSE
A118: 2020-06-19 | B118: UJJIVAN | C118: Ujjivan Fin. Servc. Ltd. | D118: TOWER RESEARCH CAPITAL MARKETS INDIA PRIVATE LIMITED | E118: SELL | F118: 686,458 | G118: 214.88 | H118: NSE
A119: 2020-06-19 | B119: UJJIVAN | C119: Ujjivan Fin. Servc. Ltd. | D119: SURJECTIVE RESEARCH CAPITAL LLP | E119: SELL | F119: 733,797 | G119: 213.86 | H119: NSE

Sheet Call Tracker (Equity & F&O)
M5: Back To Main Page
A6: Retail Research Technical Calls & Fundamental Performance Report for the month of June-2020
M7: =Main!B10 -> 2020-06-22
B8: Positional Call
A9: Sr.no | B9: Date | D9: Company | E9: Rec | F9: Rec Price | G9: Stop Loss*** | H9: Call Closed At | I9: Target | J9: Remark | K9: Profit / Loss per Share | L9: Gain / Loss % | M9: Status | N9: Closed Date | O9: NSE Closed Price
A10: 1 | B10: 2020-05-27 | D10: RITES | E10: Buy | F10: 227 | G10: 214.00 | H10: 240.00 | I10: 250-255 | J10: Profit of Rs.13/- | K10: =H10-F10 -> 13 | L10: =K10/F10 -> 5.73% | M10: Successful | N10: 2020-06-02 | R10: N
A11: 2 | B11: 2020-05-29 | D11: AARTIIND | E11: Buy | F11: 980 | G11: 897 | H11: 920.00 | I11: 1100-1120 | J11: Loss of Rs.60/- | K11: =H11-F11 -> -60 | L11: -6.12% | M11: Unsuccessful | N11: 2020-06-12 | R11: H
A12: 3 | B12: 2020-05-29 | D12: TATACHEM | E12: Buy | F12: 303 | G12: 282.00 | H12: 317.00 | I12: 340 | J12: Profit of Rs.14/- | K12: =H12-F12 -> 14 | L12: =K12/F12 -> 4.62% | M12: Successful | N12: 2020-06-02 | R12: N
A13: 4 | B13: 2020-05-29 | D13: PGHH | E13: Buy | F13: 9870-9930 | G13: 9400 | I13: 10700-10800 | J13: Open | R13: H
A14: 5 | B14: 2020-06-01 | D14: SUPREMEIND | E14: Buy | F14: 1025 | G14: 950.00 | H14: 1,077.50 | I14: 1100-1150 | J14: Profit of Rs.52.5/- | K14: =H14-F14 -> 52.5 | L14: =K14/F14 -> 5.12% | M14: Successful | N14: 2020-06-03 | R14: H
A15: 6 | B15: 2020-06-01 | D15: SONATSOFTW | E15: Buy | F15: 204 | G15: 190.00 | H15: 214.50 | I15: 220-225 | J15: Profit of Rs.10.5/- | K15: =H15-F15 -> 10.5 | L15: =K15/F15 -> 5.15% | M15: Successful | N15: 2020-06-03 | R15: N
A16: 7 | B16: 2020-06-05 | D16: TATACHEM | E16: Sell | F16: 320 | G16: 342.00 | H16: 305.00 | I16: 290-280 | J16: Profit of Rs.15- | K16: =F16-H16 -> 15 | L16: 4.69% | M16: Successful | N16: 2020-06-11 | R16: N
A17: 8 | B17: 2020-06-08 | D17: GULFOILLUB | E17: Buy | F17: 674 | G17: 634 | H17: 631.50 | I17: 730-760 | J17: Loss of Rs.42.5/- | K17: =H17-F17 -> -42.5 | L17: -6.31% | M17: Unsuccessful | N17: 2020-06-11 | R17: H
A18: 9 | B18: 2020-06-08 | D18: CROMPTON | E18: Buy | F18: 229 | G18: 217.00 | H18: 239.00 | I18: 250-255 | J18: Part Profit of Rs.10/- | K18: 10 | L18: =K18/F18 -> 4.37% | M18: Successful | N18: 2020-06-10 | R18: N
A19: 10 | B19: 2020-06-09 | D19: RITES | E19: Buy | F19: 249 | G19: 235 | H19: 236.00 | I19: 270-280 | J19: Loss of Rs.13/- | K19: -13 | L19: -5.22% | M19: Unsuccessful | N19: 2020-06-12 | R19: N
A20: 11 | B20: 2020-06-09 | D20: DEEPAKNTR | E20: Buy | F20: 488 | G20: 448 | H20: 461.00 | I20: 550-570 | J20: Loss of Rs.27/- | K20: -27 | L20: =K20/F20 -> -5.53% | M20: Unsuccessful | N20: 2020-06-18 | R20: H
A21: 12 | B21: 2020-06-12 | D21: HDFCLIFE | E21: Buy | F21: 492.5 | G21: 460.00 | H21: 519.00 | I21: 540-550 | J21: Profit of Rs.26.50/- | K21: 26.5 | L21: =K21/F21 -> 5.38% | M21: Successful | N21: 2020-06-19 | R21: N
A22: 13 | B22: 2020-06-15 | D22: HINDPETRO | E22: Buy | F22: 208.5 | G22: 197 | H22: 209.50 | I22: 228 | J22: Profit of Rs.1/- | K22: 1 | L22: 0.48% | M22: Neutral | N22: 2020-06-16 | R22: N
A23: 14 | B23: 2020-06-16 | D23: M&M | E23: Sell | F23: 517 | G23: 551.00 | H23: 498.50 | I23: 470-450 | J23: Part Profit of Rs.18.5/- | K23: =F23-H23 -> 18.5 | L23: 3.58% | M23: Successful | N23: 2020-06-17 | R23: H
A24: 15 | B24: 2020-06-16 | D24: GNFC | E24: Buy | F24: 151 | G24: 141.00 | H24: 159.50 | I24: 168-172 | J24: Profit of Rs.8.5/- | K24: =H24-F24 -> 8.5 | L24: =K24/F24 -> 5.63% | M24: Successful | N24: 2020-06-18 | R24: N
A25: 16 | B25: 2020-06-18 | D25: BATAINDIA | E25: Buy | F25: 1310 | G25: 1,218.00 | H25: 1,355.00 | I25: 1450-1500 | J25: Part Profit of Rs.45/- | K25: =H25-F25 -> 45 | L25: 3.44% | M25: Successful | N25: 2020-06-19 | R25: H
A26: 17 | B26: 2020-06-19 | D26: EXIDEIND | E26: Buy | F26: 149-151 | G26: 140 | I26: 165-170 | J26: Open | R26: N
A28: CLBS = Closing Basis ***
A29: Dividend adjusted <> | F29: Reinitiated $
A30: Part book {} | F30: Revised stoploss #
B32: Momentum Call
A33: Sr.no | B33: Date | D33: Company | E33: Rec | F33: Rec Price | G33: Stop Loss | H33: Call Closed At | I33: Target | J33: Remark | K33: Profit / Loss per Share/Lot | L33: Gain / Loss % | M33: Gain / Loss per Lot | N33: Lot | O33: Status | P33: Closed Date
A34: 1 | B34: 2020-05-26 | D34: HINDUNILVR | E34: Buy* | F34: 2015 | G34: 1945 | H34: 2110 | I34: 2120-2150 | J34: Profit of Rs.95/- | K34: =H34-F34 -> 95 | L34: =K34/F34 -> 4.71% | O34: Successful | P34: 2020-06-01 | R34: H | S34: 2020-05-13
A35: 2 | B35: 2020-05-29 | D35: TCS | E35: Buy | F35: 1975 | G35: 1910 | H35: 2017.5 | I35: 2050-2080 | J35: Profit of Rs.42.5/- | K35: =H35-F35 -> 42.5 | L35: =K35/F35 -> 2.15% | O35: Successful | P35: 2020-06-01 | R35: N
A36: 3 | B36: 2020-05-29 | D36: MINDTREE | E36: Buy | F36: 908 | G36: 878 | H36: 927.5 | I36: 940-960 | J36: Profit of Rs.19.5/- | K36: =H36-F36 -> 19.5 | L36: =K36/F36 -> 2.15% | O36: Successful | P36: 2020-06-02 | R36: N
A37: 4 | B37: 2020-06-01 | D37: SUNPHARMA | E37: Buy | F37: 472 | G37: 455 | H37: 482 | I37: 500-510 | J37: Profit of Rs.10/- | K37: =H37-F37 -> 10 | L37: =K37/F37 -> 2.12% | O37: Successful | P37: 2020-06-01 | R37: H
A38: 5 | B38: 2020-06-01 | D38: DIVISLAB | E38: Buy | F38: 2372.5 | G38: 2285 | H38: 2422.5 | I38: 2500-2550 | J38: Profit of Rs.50/- | K38: 50 | L38: 2.11% | O38: Successful | P38: 2020-06-01 | R38: H
A39: 6 | B39: 2020-06-01 | D39: ACC | E39: Sell | F39: 1304 | G39: 1345 | H39: 1284 | I39: 1240-1220 | J39: Profit of Rs.20/- | K39: =F39-H39 -> 20 | L39: =K39/F39 -> 1.53% | O39: Successful | P39: 2020-06-01 | R39: H
A40: 7 | B40: 2020-06-01 | D40: DRREDDY | E40: Buy | F40: 3997.5 | G40: 3890 | H40: 4082.5 | I40: 4150-4200 | J40: Profit of Rs.85/- | K40: =H40-F40 -> 85 | L40: 2.13% | O40: Successful | P40: 2020-06-02 | R40: H
A41: 8 | B41: 2020-06-01 | D41: MARUTI | E41: Sell | F41: 5815 | G41: 6000 | H41: 5690 | I41: 5400 | J41: Profit of Rs.125/- | K41: =F41-H41 -> 125 | L41: =K41/F41 -> 2.15% | O41: Successful | P41: 2020-06-02 | R41: N
A42: 9 | B42: 2020-06-01 | D42: SUNPHARMA | E42: Buy | F42: 462 | G42: 442 | H42: 473 | I42: 500 | J42: Profit of Rs.11/- | K42: =H42-F42 -> 11 | L42: =K42/F42 -> 2.38% | O42: Successful | P42: 2020-06-02 | R42: N
A43: 10 | B43: 2020-06-02 | D43: AXISBANK | E43: Sell | F43: 400.5 | G43: 412 | H43: 422.5 | I43: 380-375 | J43: Loss of Rs.22/- | K43: =F43-H43 -> -22 | L43: -5.49% | O43: Unsuccessful | P43: 2020-06-03 | R43: H
A44: 11 | B44: 2020-06-02 | D44: HDFCLIFE | E44: Buy | F44: 500 | G44: 480 | H44: 512 | I44: 540 | J44: Profit of Rs.12/- | K44: =H44-F44 -> 12 | L44: 2.40% | O44: Successful | P44: 2020-06-03 | R44: N
A45: 12 | B45: 2020-06-02 | D45: AMBUJACEM | E45: Sell | F45: 192 | G45: 198 | H45: 187 | I45: 180-178 | J45: Profit of Rs.5/- | K45: =F45-H45 -> 5 | L45: 2.60% | O45: Successful | P45: 2020-06-03 | R45: N
A46: 13 | B46: 2020-06-03 | D46: DIVISLAB | E46: Buy | F46: 2385 | G46: 2285 | H46: 2422.5 | I46: 2500-2550 | J46: Profit of Rs.37.5/- | K46: =H46-F46 -> 37.5 | L46: =K46/F46 -> 1.57% | O46: Successful | P46: 2020-06-03 | R46: N
A47: 14 | B47: 2020-06-03 | D47: ACC | E47: Sell | F47: 1304 | G47: 1345 | H47: 1282.5 | I47: 1240-1220 | J47: Porfit of Rs.21.50/- | K47: =F47-H47 -> 21.5 | L47: 1.65% | O47: Successful | P47: 2020-06-03 | R47: H
A48: 15 | B48: 2020-06-03 | D48: ADANIPORTS | E48: Sell | F48: 340 | G48: 352 | H48: 339 | I48: 320 | J48: Profit of Rs.1/- | K48: =F48-H48 -> 1 | L48: 0.29% | O48: Neutral | P48: 2020-06-05 | R48: H
A49: 16 | B49: 2020-06-03 | D49: MINDAIND | E49: Buy | F49: 297 | G49: 288 | H49: 288 | I49: 310-315 | J49: Loss of Rs.9/- | K49: =H49-F49 -> -9 | L49: =K49/F49 -> -3.03% | O49: Unsuccessful | P49: 2020-06-03 | R49: N
A50: 17 | B50: 2020-06-03 | D50: HINDALCO | E50: Sell | F50: 144.5 | G50: 150.5 | H50: 141 | I50: 138-135 | J50: Profit of Rs.3.5/- | K50: =F50-H50 -> 3.5 | L50: 2.42% | O50: Successful | P50: 2020-06-04 | R50: H
A51: 18 | B51: 2020-06-04 | D51: TATASTEEL | E51: Sell | F51: 321 | G51: 332 | H51: 315.5 | I51: 302 | J51: Profit of Rs.5.5/- | K51: =F51-H51 -> 5.5 | L51: =K51/F51 -> 1.71% | O51: Successful | P51: 2020-06-04 | R51: N
A52: 19 | B52: 2020-06-05 | D52: HINDALCO | E52: Sell | F52: 147.5 | G52: 152 | H52: 153 | I52: 139-137 | J52: Loss of Rs.5.50/- | K52: =F52-H52 -> -5.5 | L52: -3.73% | O52: Unsuccessful | P52: 2020-06-08 | R52: H
A53: 20 | B53: 2020-06-05 | D53: AMBUJACEM | E53: Sell | F53: 192 | G53: 198 | H53: 188 | I53: 180 | J53: Profit of Rs.4/- | K53: =F53-H53 -> 4 | L53: 2.08% | O53: Successful | P53: 2020-06-09 | R53: N
A54: 21 | B54: 2020-06-08 | D54: MINDTREE | E54: Buy | F54: 920 | G54: 880 | H54: 887.5 | I54: 980-990 | J54: Loss of Rs.32.5/- | K54: =H54-F54 -> -32.5 | L54: -3.53% | O54: Unsuccessful | P54: 2020-06-10 | R54: N
A55: 22 | B55: 2020-06-08 | D55: ACC | E55: Sell | F55: 1306 | G55: 1345 | H55: 1282.5 | I55: 1240-1220 | J55: Porfit of Rs.23.50/- | K55: =F55-H55 -> 23.5 | L55: =K55/F55 -> 1.80% | O55: Successful | P55: 2020-06-08 | R55: H
A56: 23 | B56: 2020-06-08 | D56: MARUTI | E56: Sell | F56: 5820 | G56: 6030 | H56: 5720 | I56: 5500-5400 | J56: Porfit of Rs.100/- | K56: =F56-H56 -> 100 | L56: =K56/F56 -> 1.72% | O56: Successful | P56: 2020-06-08 | R56: N
A57: 24 | B57: 2020-06-08 | D57: SUDARSCHEM | E57: Buy | F57: 404.5 | G57: 389 | H57: 388 | I57: 425-430 | J57: Loss of Rs.16.5/- | K57: =H57-F57 -> -16.5 | L57: -4.08% | O57: Unsuccessful | P57: 2020-06-12 | R57: H
A58: 25 | B58: 2020-06-08 | D58: HDFCBANK | E58: Buy | F58: 1017.5 | G58: 988 | H58: 985 | I58: 1060-1080 | J58: Loss of Rs.32.5/- | K58: =H58-F58 -> -32.5 | L58: =K58/F58 -> -3.19% | O58: Unsuccessful | P58: 2020-06-09 | R58: H
A59: 26 | B59: 2020-06-08 | D59: SBILIFE | E59: Buy | F59: 785 | G59: 755 | H59: 752.5 | I59: 820-840 | J59: Loss of Rs.32.5/- | K59: =H59-F59 -> -32.5 | L59: =K59/F59 -> -4.14% | O59: Unsuccessful | P59: 2020-06-10 | R59: N
A60: 27 | B60: 2020-06-09 | D60: RELIANCE | E60: Sell | F60: 1578 | G60: 1615 | H60: 1556.5 | I60: 1500 | J60: Porfit of Rs.21.50/- | K60: =F60-H60 -> 21.5 | L60: =K60/F60 -> 1.36% | O60: Successful | P60: 2020-06-09 | R60: H
A61: 28 | B61: 2020-06-09 | D61: TITAN | E61: Sell | F61: 1019 | G61: 1055 | H61: 997.5 | I61: 960-950 | J61: Porfit of Rs.21.50/- | K61: =F61-H61 -> 21.5 | L61: =K61/F61 -> 2.11% | O61: Successful | P61: 2020-06-09 | R61: H
A62: 29 | B62: 2020-06-09 | D62: BHARATFORG | E62: Sell | F62: 363 | G62: 377 | H62: 354.5 | I62: 340-335 | J62: Profit of Rs.8.5/- | K62: =F62-H62 -> 8.5 | L62: 2.34% | O62: Successful | P62: 2020-06-10 | R62: H
A63: 30 | B63: 2020-06-10 | D63: TITAN | E63: Sell | F63: 1006 | G63: 1045 | H63: 985 | I63: 960-950 | J63: Profit of Rs.21/- | K63: =F63-H63 -> 21 | L63: =K63/F63 -> 2.09% | O63: Successful | P63: 2020-06-10 | R63: H
A64: 31 | B64: 2020-06-10 | D64: AMBUJACEM | E64: Sell | F64: 192.75 | G64: 198 | H64: 184.5 | I64: 185-180 | J64: Profit of Rs.8.25/- | K64: =F64-H64 -> 8.25 | L64: 4.28% | O64: Successful | P64: 2020-06-12 | R64: N
A65: 32 | B65: 2020-06-10 | D65: ADANIPORTS | E65: Sell | F65: 342.5 | G65: 353 | H65: 332 | I65: 325-320 | J65: Profit of Rs.10.5/- | K65: 10.5 | L65: 3.07% | O65: Successful | P65: 2020-06-12 | R65: H
A66: 33 | B66: 2020-06-10 | D66: TATAELXSI | E66: Buy | F66: 857.5 | G66: 835 | H66: 875.5 | I66: 900 | J66: Profit of Rs.18/- | K66: =H66-F66 -> 18 | L66: =K66/F66 -> 2.10% | O66: Successful | P66: 2020-06-10 | R66: H
A67: 34 | B67: 2020-06-10 | D67: DIVISLAB | E67: Buy | F67: 2390 | G67: 2320 | H67: 2350 | I67: 2480-2500 | J67: Loss of Rs.40/- | K67: =H67-F67 -> -40 | L67: -1.67% | O67: Unsuccessful | P67: 2020-06-12 | R67: N
A68: 35 | B68: 2020-06-11 | D68: CYIENT | E68: Buy | F68: 225 | G68: 219 | H68: 219 | I68: 235-240 | J68: Loss of Rs.6/- | K68: =H68-F68 -> -6 | L68: =K68/F68 -> -2.67% | O68: Unsuccessful | P68: 2020-06-11 | R68: N
A69: 36 | B69: 2020-06-11 | D69: AEGISCHEM | E69: Buy | F69: 186.5 | G69: 180 | H69: 183 | I69: 195-200 | J69: Loss of Rs.3.5/- | K69: =H69-F69 -> -3.5 | L69: -1.88% | O69: Unsuccessful | P69: 2020-06-12 | R69: H
A70: 37 | B70: 2020-06-12 | D70: AMBUJACEM | E70: Sell | F70: 190.5 | G70: 197 | H70: 197 | I70: 180-178 | J70: Loss of Rs.6.50/- | K70: =F70-H70 -> -6.5 | L70: -3.41% | O70: Unsuccessful | P70: 2020-06-16 | R70: N
A71: 38 | B71: 2020-06-12 | D71: ADANIPORTS | E71: Sell | F71: 343 | G71: 354 | H71: 336 | I71: 325-330 | J71: Profit of Rs.7/- | K71: =F71-H71 -> 7 | L71: 2.04% | O71: Successful | P71: 2020-06-18 | R71: N
A72: 39 | B72: 2020-06-15 | D72: CONCOR | E72: Buy | F72: 389 | G72: 375 | H72: 375 | I72: 410-415 | J72: Loss of Rs.14/- | K72: =H72-F72 -> -14 | L72: =K72/F72 -> -3.60% | O72: Unsuccessful | P72: 2020-06-16 | R72: H
A73: 40 | B73: 2020-06-15 | D73: INFY | E73: Buy | F73: 696 | G73: 675 | H73: 710.5 | I73: 730-740 | J73: Profit of Rs.14.5/- | K73: =H73-F73 -> 14.5 | L73: =K73/F73 -> 2.08% | O73: Successful | P73: 2020-06-16 | R73: H
A74: 41 | B74: 2020-06-15 | D74: GLENMARK | E74: Buy | F74: 400.5 | G74: 388 | H74: 409.5 | I74: 425-430 | J74: Profit of Rs.9/- | K74: =H74-F74 -> 9 | L74: =K74/F74 -> 2.25% | O74: Successful | P74: 2020-06-18 | R74: N
A75: 42 | B75: 2020-06-15 | D75: UBL | E75: Buy | F75: 1003.5 | G75: 975 | H75: 1024.5 | I75: 1040-1060 | J75: Profit of Rs.21/- | K75: =H75-F75 -> 21 | L75: =K75/F75 -> 2.09% | O75: Successful | P75: 2020-06-16 | R75: H
A76: 43 | B76: 2020-06-16 | D76: APOLLOHOSP | E76: Buy | F76: 1387.5 | G76: 1345 | H76: 1341.5 | I76: 1450-1470 | J76: Loss of Rs.46/- | K76: =H76-F76 -> -46 | L76: -3.32% | O76: Unsuccessful | P76: 2020-06-18 | R76: H
A77: 44 | B77: 2020-06-16 | D77: DIVISLAB | E77: Buy | F77: 2305-2310 | G77: 2240 | I77: 2400-2450 | J77: Open | R77: H
A78: 45 | B78: 2020-06-17 | D78: UBL | E78: Buy | F78: 1000.5 | G78: 970 | H78: 1020 | I78: 1040-1060 | J78: Profit of Rs.19.5/- | K78: =H78-F78 -> 19.5 | L78: =K78/F78 -> 1.95% | O78: Successful | P78: 2020-06-18 | R78: H
A79: 46 | B79: 2020-06-17 | D79: MARUTI | E79: Sell | F79: 5600 | G79: 5800 | H79: 5760 | I79: 5200 | J79: Loss of Rs.160/- | K79: =F79-H79 -> -160 | L79: =K79/F79 -> -2.86% | O79: Unsuccessful | P79: 2020-06-17 | R79: N
A80: 47 | B80: 2020-06-17 | D80: BHARATFORG | E80: Sell | F80: 350 | G80: 362 | H80: 359 | I80: 335-330 | J80: Loss of Rs.9/- | K80: =F80-H80 -> -9 | L80: -2.57% | O80: Unsuccessful | P80: 2020-06-17 | R80: H
A81: 48 | B81: 2020-06-17 | D81: TATAELXSI | E81: Buy | F81: 872-876 | G81: 845 | I81: 920-930 | J81: Open | R81: H
A82: 49 | B82: 2020-06-17 | D82: CONCOR | E82: Buy | F82: 379 | G82: 367 | H82: 386.5 | I82: 400 | J82: Profit of Rs7.5/- | K82: =H82-F82 -> 7.5 | L82: =K82/F82 -> 1.98% | O82: Successful | P82: 2020-06-17 | R82: N
A83: 50 | B83: 2020-06-17 | D83: RITES | E83: Buy | F83: 231 | G83: 224 | H83: 236 | I83: 245 | J83: Profit of Rs.5/- | K83: =H83-F83 -> 5 | L83: 2.16% | O83: Successful | P83: 2020-06-18 | R83: N
A84: 51 | B84: 2020-06-18 | D84: ADANIPORTS | E84: Sell | F84: 343.5 | G84: 355 | H84: 354.5 | I84: 325-330 | J84: Loss of Rs.11/- | K84: =F84-H84 -> -11 | L84: -3.20% | O84: Unsuccessful | P84: 2020-06-19 | R84: N
A85: 52 | B85: 2020-06-19 | D85: LT JUN FUT | E85: Buy | F85: 896-899 | G85: 869 | I85: 925-935 | J85: Open | R85: H
A87: CLBS = Closing Basis ***
A88: Dividend adjusted <> | F88: Reinitiated $
F89: Revised stoploss #
A91: Master Trade High Risk
A92: Sr.no | B92: Date | D92: Company | E92: Rec | F92: Rec Price | G92: Stop Loss | H92: Call Closed At | I92: Target | J92: Remark | K92: Profit / Loss per share | L92: Gain / Loss per Lot | M92: Lot | N92: Status | O92: Closed Date
A93: 1 | B93: 2020-06-04 | D93: NIFTY JUN FUT | E93: Sell | F93: 10070 | G93: 10230 | H93: 9980 | I93: 9800-9700 | J93: Profit of Rs.90/- | K93: =L93*M93 -> 6750 | L93: =F93-H93 -> 90 | M93: 75 | N93: Successful | O93: 2020-06-04 | R93: H
A94: 2 | B94: 2020-06-05 | D94: NIFTY JUN FUT | E94: Sell | F94: 10130 | G94: 10270 | H94: 10045 | I94: 9900-9800 | J94: Profit of Rs.85/- | K94: =L94*M94 -> 6375 | L94: =F94-H94 -> 85 | M94: 75 | N94: Successful | O94: 2020-06-05 | R94: H
A102: Master Trade Medium Risk
A103: Sr.no | B103: Date | D103: Company | E103: Rec | F103: Rec Price | G103: Stop Loss | H103: Call Closed At | I103: Target | J103: Remark | K103: Profit/ Loss per lot | L103: Gain / Loss per Lot | M103: Lot | N103: Status | O103: Closed Date
A104: 1 | B104: 2020-06-01 | D104: NIFTY 9500 PE 11 JUN | E104: Buy | F104: 80.5 | G104: 40 | H104: 93.5 | I104: 140-150 | J104: Profit of Rs.13/- | K104: =L104*M104 -> 975 | L104: =H104-F104 -> 13 | M104: 75 | N104: Successful | O104: 2020-06-01 | R104: H
A105: 2 | B105: 2020-06-01 | D105: NIFTY 9400 PE 11 JUN | E105: Buy | F105: 67 | G105: 40 | H105: 40 | I105: 120-125 | J105: Loss of Rs.27/- | K105: =L105*M105 -> -2025 | L105: =H105-F105 -> -27 | M105: 75 | N105: Unsuccessful | O105: 2020-06-02 | R105: H
A106: 3 | B106: 2020-06-02 | D106: NIFTY 9500 PE 11 JUN | E106: Buy | F106: 52 | G106: 15 | H106: 15 | I106: 100-110 | J106: Loss of Rs.37/- | K106: =L106*M106 -> -2775 | L106: =H106-F106 -> -37 | M106: 75 | N106: Unsuccessful | O106: 2020-06-07 | R106: H
A107: 4 | B107: 2020-06-03 | D107: AMBUJACEM 180 PE JUN | E107: Buy | F107: 3.2 | G107: 1.4 | H107: 4.1 | I107: 5-5.5 | J107: Profit of Rs.0.9/- | K107: =L107*M107 -> 2250 | L107: =H107-F107 -> 0.9 | M107: 2500 | N107: Successful | O107: 2020-06-03 | R107: H
A108: 5 | B108: 2020-06-04 | D108: BANKNIFTY 20000 PE 11 JUN | E108: Buy | F108: 280 | G108: 90 | H108: 325 | I108: 550-600 | J108: Profit of Rs.45/- | K108: =L108*M108 -> 900 | L108: =H108-F108 -> 45 | M108: 20 | N108: Successful | O108: 2020-06-04 | R108: H
A109: 6 | B109: 2020-06-05 | D109: AMBUJACEM 180 PE JUN | E109: Buy | F109: 3 | G109: 1.4 | H109: 3.65 | I109: 5-5.5 | J109: Profit of Rs.0.65/- | K109: 1625 | L109: 0.65 | M109: 2500 | N109: Successful | O109: 2020-06-03 | R109: H
A110: 7 | B110: 2020-06-05 | D110: BANKNIFTY 20000 PE 11 JUN | E110: Buy | F110: 265 | G110: 90 | H110: 72.5 | I110: 500-550 | J110: Loss of Rs.192.5/- | K110: =L110*M110 -> -3850 | L110: =H110-F110 -> -192.5 | M110: 20 | N110: Unsuccessful | O110: 2020-06-07 | R110: H
A111: 8 | B111: 2020-06-09 | D111: BANKNIFTY 21000 PE 11 JUN | E111: Buy | F111: 225 | H111: 295 | I111: 500-550 | J111: Profit of Rs.70/- | K111: 1400 | L111: 70 | M111: 20 | N111: Successful | O111: 2020-06-09 | R111: H
A112: 9 | B112: 2020-06-10 | D112: NIFTY 10100 PE 11 JUN | E112: Buy | F112: 63 | G112: 18 | H112: 77 | I112: 120-140 | J112: Profit of Rs.14/- | K112: =L112*M112 -> 1050 | L112: =H112-F112 -> 14 | M112: 75 | N112: Successful | O112: 2020-06-10 | R112: H
A113: 10 | B113: 2020-06-10 | D113: NIFTY 10000 PE 11 JUN | E113: Buy | F113: 39.5 | H113: 52.5 | J113: Profit of Rs.13/- | K113: =L113*M113 -> 975 | L113: =H113-F113 -> 13 | M113: 75 | N113: Successful | O113: 2020-06-10 | R113: H
A114: 11 | B114: 2020-06-10 | D114: NIFTY 10000 PE 11 JUN | E114: Buy | F114: 31 | H114: 41 | J114: Profit of Rs.10/- | K114: =L114*M114 -> 750 | L114: =H114-F114 -> 10 | M114: 75 | N114: Successful | O114: 2020-06-10 | R114: H
A115: 12 | B115: 2020-06-10 | D115: NIFTY 10000 PE 11 JUN | E115: Buy | F115: 31 | H115: 41 | J115: Profit of Rs.10/- | K115: =L115*M115 -> 750 | L115: =H115-F115 -> 10 | M115: 75 | N115: Successful | O115: 2020-06-10 | R115: H
A116: 13 | B116: 2020-06-11 | D116: BANKNIFTY 21000 PE 11 JUN | E116: Buy | F116: 120 | H116: 175 | I116: 250-300 | J116: Profit of Rs.55/- | K116: 1100 | L116: 55 | M116: 20 | N116: Successful | O116: 2020-06-11 | R116: H
A117: 14 | B117: 2020-06-11 | D117: AMBUJACEM 185 PE JUNE | E117: Buy | F117: 3.5 | G117: 1.4 | H117: 4.4 | I117: 7.0-8.0 | J117: Profit of Rs.0.90/- | K117: 2250 | L117: 0.9 | M117: 2500 | N117: Successful | O117: 2020-06-11 | R117: H
A118: 15 | B118: 2020-06-11 | D118: RELIANCE 1500 PE JUNE | E118: Buy | F118: 27 | G118: 19 | H118: 30.5 | I118: 40-45 | J118: Profit of Rs.3.50/- | K118: =L118*M118 -> 1767.5 | L118: =H118-F118 -> 3.5 | M118: 505 | N118: Successful | O118: 2020-06-11 | R118: H
A119: 16 | B119: 2020-06-12 | D119: NIFTY 9700 PE 18 JUN | E119: Buy | F119: 127.5 | G119: 60 | H119: 147.5 | I119: 230-250 | J119: Profit of Rs.20/- | K119: =L119*M119 -> 1500 | L119: =H119-F119 -> 20 | M119: 75 | N119: Successful | O119: 2020-06-12 | R119: H
A120: 17 | B120: 2020-06-12 | D120: BANKNIFTY 19500 PE 18 | E120: Buy | F120: 400 | G120: 250 | H120: 470 | I120: 600-650 | J120: Profit of Rs.70/- | K120: =L120*M120 -> 1400 | L120: =H120-F120 -> 70 | M120: 20 | N120: Successful | O120: 2020-06-12 | R120: H
A121: 18 | B121: 2020-06-12 | D121: AMBUJACEM 185 PE JUNE | E121: Buy | F121: 4.2 | G121: 2.4 | H121: 2.6 | I121: 8.0-9.0 | J121: Loss of Rs.1.6/- | K121: -4000 | L121: -1.6 | M121: 2500 | N121: Unsuccessful | O121: 2020-06-16 | R121: H
A122: 19 | B122: 2020-06-12 | D122: BANKNIFTY 19500 PE 18 JUN | E122: Buy | F122: 390 | G122: 250 | H122: 450 | I122: 600-650 | J122: Profit of Rs.60/- | K122: =L122*M122 -> 1200 | L122: =H122-F122 -> 60 | M122: 20 | N122: Successful | O122: 2020-06-12 | R122: H
A123: 20 | B123: 2020-06-12 | D123: NIFTY 9700 PE 18 JUN | E123: Buy | F123: 132.5 | G123: 60 | H123: 87.5 | I123: 230-240 | J123: Loss of Rs.45/- | K123: -3375 | L123: -45 | M123: 75 | N123: Unsuccessful | O123: 2020-06-12 | R123: H
A124: 21 | B124: 2020-06-12 | D124: BANKNIFTY 19500 PE 18 JUN | E124: Buy | F124: 390 | G124: 250 | H124: 250 | I124: 600-650 | J124: Loss of Rs.140/- | K124: -2800 | L124: -140 | M124: 20 | N124: Unsuccessful | O124: 2020-06-12 | R124: H
A125: 22 | B125: 2020-06-15 | D125: RELIANCE 1520 PE JUNE | E125: Buy | F125: 22.5 | G125: 14 | H125: 13.5 | I125: 35-40 | J125: Loss of Rs.9/- | K125: -4545 | L125: -9 | M125: 505 | N125: Unsuccessful | O125: 2020-06-16 | R125: H
A126: 23 | B126: 2020-06-16 | D126: BANKNIFTY 19000 PE 25 JUN | E126: Buy | F126: 285 | H126: 337.5 | I126: 500-600 | J126: Profit of Rs.52.5/- | K126: 1050 | L126: 52.5 | M126: 20 | N126: Successful | O126: 2020-06-17 | R126: H
A127: 24 | B127: 2020-06-17 | D127: BANKNIFTY 19500 PE 25 JUN | E127: Buy | F127: 320 | G127: 95 | H127: 365 | I127: 500-600 | J127: Profit of Rs.45/- | K127: =L127*M127 -> 900 | L127: =H127-F127 -> 45 | M127: 20 | N127: Successful | O127: 2020-06-17 | R127: H
A128: 25 | B128: 2020-06-18 | D128: BANKNIFTY 19500 PE 25 JUN | E128: Buy | F128: 300 | G128: 95 | H128: 175 | I128: 500-600 | J128: Loss of Rs.125/- | K128: -2500 | L128: -125 | M128: 20 | N128: Unsuccessful | O128: 2020-06-18 | R128: H
A132: Techno -Funda (positional)
A133: Sr.no | B133: Date | D133: Company | E133: Rec | F133: Rec Price | G133: Stop Loss*** | H133: Call Closed At | I133: Target | J133: Remark | K133: Profit / Loss per Share | L133: Gain / Loss % | M133: Status | N133: Closed Date | O133: NSE Closed Price
A135: CLBS = Closing Basis *** | F135: Reinitiated $
A136: Dividend adjusted <> | F136: Revised stoploss #
B141: Investment Idea
A142: Sr.no | B142: Date | D142: Company | E142: Rec | F142: Rec Price | G142: Point of Review | H142: Close Rate | I142: Target | J142: Remark | K142: Profit / Loss per Share | L142: Gain / Loss % | M142: Status | N142: Closed Date
A143: 1 | B143: 2013-11-01 | D143: L&T Finance Holding | E143: Accu | F143: 82.00 | G143: - | H143: 100 | I143: 100.00 | J143: Target Achieved | K143: =H143-F143 -> 18.00 | L143: =K143/F143 -> 21.95% | M143: Successful | N143: 2016-10-14
A144: 2 | B144: 2014-06-04 | D144: Finolex Inds | E144: Buy | F144: 257.00 | G144: - | H144: 300 | I144: 300.00 | J144: Target Achieved | K144: 43.00 | L144: 16.73% | M144: Successful | N144: 2014-07-02
A145: 3 | B145: 2014-07-08 | D145: JK Cement | E145: Buy | F145: 393.00 | G145: - | H145: 468 | I145: 468.00 | J145: Target Achieved | K145: 75.00 | L145: 19.08% | M145: Successful | N145: 2014-08-12
A146: 4 | B146: 2014-08-06 | D146: Finolex Cables | E146: Buy | F146: 205.00 | G146: - | H146: 275 | I146: 250.00 | J146: Target Achieved | K146: 70.00 | L146: 34.15% | M146: Successful | N146: 2014-11-19
A147: 5 | B147: 2014-09-04 | D147: Exide Inds | E147: Buy | F147: 162.00 | G147: - | H147: 190 | I147: 190.00 | J147: Target Achieved | K147: 28.00 | L147: 17.28% | M147: Successful | N147: 2015-01-02
A148: 6 | B148: 2014-09-04 | D148: Deepak Nitrite | E148: Buy | F148: 75.00 | G148: - | H148: 91.5 | I148: 95-100 | J148: Profit of Rs.16.50/- | K148: 16.50 | L148: 22.00% | M148: Successful | N148: 2014-11-11
A149: 7 | B149: 2014-10-01 | D149: Mercks | E149: Buy | F149: 850.00 | G149: - | H149: 982.5 | I149: 1050.00 | J149: Profit of Rs.132.50/- | K149: 132.50 | L149: 15.59% | M149: Successful | N149: 2015-02-04
A150: 8 | B150: 2014-10-01 | D150: Grindwell Norton | E150: Buy | F150: 475.00 | G150: - | H150: 515 | I150: 600.00 | J150: Profit of Rs.40/- | K150: 40.00 | L150: 8.42% | M150: Successful | N150: 2014-10-27
A151: 9 | B151: 2014-10-01 | D151: Snowman Logistics | E151: Buy | F151: 86.00 | G151: - | H151: 99 | I151: 140.00 | J151: Profit of Rs.13.00/- | K151: 13.00 | L151: 15.12% | M151: Successful | N151: 2014-10-27
A152: 10 | B152: 2014-10-14 | D152: Birla Corp | E152: Buy | F152: 496.60 | G152: - | H152: 621 | I152: 580.00 | J152: Target Achieved | K152: 124.40 | L152: 25.05% | M152: Successful | N152: 2016-08-23
A153: 11 | B153: 2014-10-14 | D153: Ultratech Cem | E153: Buy | F153: 2481.90 | G153: - | H153: 2840 | I153: 2870.00 | J153: Profit of Rs.358.10/- | K153: 358.10 | L153: 14.43% | M153: Successful | N153: 2015-01-13
A154: 12 | B154: 2014-10-16 | D154: Sintex Inds | E154: Buy | F154: 84.50 | G154: - | H154: 93 | I154: 110.00 | J154: Profit of Rs.8.50/- | K154: 8.50 | L154: 10.06% | M154: Successful | N154: 2014-10-27
A155: 13 | B155: 2014-10-16 | D155: HSIL | E155: Buy | F155: 401.00 | G155: - | H155: 428 | I155: 450.00 | J155: Profit of Rs.27.00/- | K155: 27.00 | L155: 6.73% | M155: Successful | N155: 2015-01-16
A156: 14 | B156: 2014-10-16 | D156: Eveready Inds | E156: Buy | F156: 101.00 | G156: - | H156: 112 | I156: 120.00 | J156: Profit of Rs.11.00/- | K156: 11.00 | L156: 10.89% | M156: Successful | N156: 2014-10-27
A157: 15 | B157: 2014-11-11 | D157: Pennar Inds | E157: Buy | F157: 59.00 | G157: - | H157: 76 | I157: 76.00 | J157: Target Achieved | K157: 17.00 | L157: 28.81% | M157: Successful | N157: 2017-10-24
A158: 16 | B158: 2014-11-11 | D158: Snowman Logistics | E158: Buy | F158: 99.00 | G158: - | H158: 120 | I158: 120.00 | J158: Profit of Rs.21/- | K158: 21.00 | L158: 21.21% | M158: Successful | N158: 2014-11-17
A159: 17 | B159: 2014-11-13 | D159: Dharamsi Morarji Chem | E159: Buy | F159: 22.00 | G159: - | H159: 33.55 | I159: 32.00 | J159: Profit of Rs 11.55/- | K159: 11.55 | L159: 52.50% | M159: Successful | N159: 2015-07-03
A160: 18 | B160: 2014-12-03 | D160: Tatachem | E160: Buy | F160: 440.00 | G160: - | H160: 520 | I160: 520.00 | J160: Profit of Rs 80.00/- | K160: 80.00 | L160: 18.18% | M160: Successful | N160: 2015-07-23
A161: 19 | B161: 2014-12-03 | D161: Advanta | E161: Buy | F161: 360.00 | G161: - | H161: 427 | I161: 425.00 | J161: Profit of Rs.67.00/- | K161: 67.00 | L161: 18.61% | M161: Successful | N161: 2015-02-23
A162: 20 | B162: 2015-01-08 | D162: GDL | E162: Buy | F162: 360.00 | G162: - | H162: 455 | I162: 420.00 | J162: Profit of Rs.95.00/- | K162: 95.00 | L162: 26.39% | M162: Successful | N162: 2015-01-20
A163: 21 | B163: 2015-01-08 | D163: NRB Bearing | E163: Buy | F163: 130.00 | H163: 175.5 | I163: 165.00 | J163: Profit of Rs 45.50/- | K163: 45.50 | L163: 35.00% | M163: Successful | N163: 2017-12-19
A164: 22 | B164: 2015-02-05 | D164: GSFC | E164: Accu | F164: 98.00 | H164: 120 | I164: 120.00 | J164: Target Achieved | K164: 22.00 | L164: 22.45% | M164: Successful | N164: 2017-01-18
A165: 23 | B165: 2015-02-05 | D165: Sundrmfast | E165: Accu | F165: 196.00 | H165: 262 | I165: 255.00 | J165: Target Achieved | K165: 66.00 | L165: 33.67% | M165: Successful | N165: 2016-08-17
A166: 24 | B166: 2015-03-04 | D166: GPPL | E166: Accu | F166: 235 | H166: 77.00 | I166: 280-285 | J166: Loss of Rs.158/- | K166: -158.00 | L166: -67.23% | M166: Unsuccessful | N166: 2019-02-26
A167: 25 | B167: 2015-03-04 | D167: ORIENTCEM | E167: Accu | F167: 185.00 | H167: 224 | I167: 220-225 | J167: Target Achieved | K167: 39.00 | L167: 21.08% | M167: Successful | N167: 2016-10-04
A168: 26 | B168: 2015-03-27 | D168: PFS | E168: Accu | F168: 49.5 | H168: 15.85 | I168: 67.00 | J168: Loss of Rs.33.65/- | K168: -33.65 | L168: -68% | M168: Unsuccessful | N168: 2019-06-11
A169: 27 | B169: 2015-03-30 | D169: Walchandnagar Ind Ltd | E169: Accu | F169: 183.50 | H169: 219 | I169: 218.00 | J169: Profit of Rs.35.50/- | K169: 35.50 | L169: 19.35% | M169: Successful | N169: 2015-04-09
A170: 28 | B170: 2015-04-20 | D170: Kalpataru Power Transmission Ltd | E170: Accu | F170: =(227+237)/2 -> 232.00 | H170: 298 | I170: 298.00 | J170: Target Achieved | K170: 66.00 | L170: 28.45% | M170: Successful | N170: 2017-03-29
A171: 29 | B171: 2015-05-04 | D171: Mastek Ltd | E171: Buy | F171: 385.00 | H171: =212.5+331 -> 543.5 | I171: 510.00 | J171: Profit of Rs 158.50/- | K171: 158.50 | L171: 41.17% | M171: Successful | N171: 2015-08-19
A172: 30 | B172: 2015-05-04 | D172: Suprajit Eng | E172: Buy | F172: 115.50 | H172: 146 | I172: 142.00 | J172: Profit of Rs 30.50/- | K172: 30.50 | L172: 26.41% | M172: Successful | N172: 2015-07-17
A173: 31 | B173: 2015-05-27 | D173: TCI | E173: Buy | F173: 237.50 | H173: 279.5 | I173: 278.00 | J173: Target Achieved | K173: 42.00 | L173: 17.68% | M173: Successful | N173: 2015-08-06
A174: 32 | B174: 2015-06-19 | D174: HSIL | E174: Accu | F174: 340.00 | H174: 448 | I174: 448.00 | J174: Target Achieved | K174: 108.00 | L174: 31.76% | M174: Successful | N174: 2017-10-10
A175: 33 | B175: 2015-07-06 | D175: Capital First | E175: Accu | F175: 390.00 | H175: 460 | I175: 460.00 | J175: Target Achieved | K175: =H175-F175 -> 70.00 | L175: =K175/F175 -> 17.95% | M175: Successful | N175: 2016-04-18
A176: 34 | B176: 2015-07-10 | D176: Dolphin OffShore | E176: Accu | F176: 122.5 | H176: 61.00 | I176: 172.00 | J176: Loss of Rs.61.50/- | K176: -61.50 | L176: -50.20% | M176: Unsuccessful | N176: 2018-08-21
A177: 35 | B177: 2015-08-03 | D177: Allcargo logistics | E177: Accu | F177: 297.50 | H177: 350 | I177: 360.00 | J177: Profit of Rs 52.50/- | K177: 52.50 | L177: 17.65% | M177: Successful | N177: 2015-08-16
A178: 36 | B178: 2015-08-03 | D178: Camline Fine | E178: Accu | F178: 115.50 | H178: 149 | I178: 140.00 | J178: Profit of Rs 33.50/- | K178: 33.50 | L178: 29.00% | M178: Successful | N178: 2017-01-05
A179: 37 | B179: 2015-09-04 | D179: TCI | E179: Accu | F179: 226.00 | H179: 292 | I179: 292.00 | J179: Target Achieved | K179: 66.00 | L179: 29.20% | M179: Successful | N179: 2015-10-09
A180: 38 | B180: 2015-09-07 | D180: Kalpataru Power Transmission Ltd | E180: Accu | F180: 232.50 | H180: 312.5 | I180: 310.00 | J180: Target Achieved | K180: 80.00 | L180: 34.41% | M180: Successful | N180: 2017-03-29
A181: 39 | B181: 2015-09-21 | D181: LLOYD ELECTRIC & ENG LTD | E181: Accu | F181: 196.50 | H181: 238 | I181: 238.00 | J181: Target Achieved | K181: 41.50 | L181: 21.12% | M181: Successful | N181: 2015-10-14
A182: 40 | B182: 2015-09-24 | D182: L&T Finance Holding | E182: Accu | F182: 65.00 | H182: 82 | I182: 82.00 | J182: Target Achieved | K182: 17.00 | L182: 26.15% | M182: Successful | N182: 2016-07-27
A183: 41 | B183: 2015-10-14 | D183: KEC International ltd | E183: Accu | F183: 144.00 | H183: 182.5 | I183: 181.00 | J183: Target Achieved | K183: 38.50 | L183: 26.74% | M183: Successful | N183: 2017-03-23
A184: 42 | B184: 2015-10-14 | D184: Gruh Finance | E184: Accu | F184: 264.00 | H184: 311 | I184: 311.00 | J184: Target Achieved | K184: 47.00 | L184: 17.80% | M184: Successful | N184: 2016-08-22
A185: 43 | B185: 2015-11-10 | D185: Pidilitind | E185: Buy | F185: 549.50 | H185: 630 | I185: 630.00 | J185: Target Achieved | K185: 80.50 | L185: 14.65% | M185: Successful | N185: 2016-02-19
A186: 44 | B186: 2015-12-04 | D186: Zensar Technology | E186: Accu | F186: 1027.50 | H186: 1315 | I186: 1250.00 | J186: Target Achieved | K186: 287.50 | L186: 27.98% | M186: Successful | N186: 2018-05-24
A187: 45 | B187: 2015-12-29 | D187: Vinati Organics Ltd | E187: Accu | F187: 465.00 | H187: 540 | I187: 540.00 | J187: Target Achieved | K187: 75.00 | L187: 16.13% | M187: Successful | N187: 2016-06-09
A188: 46 | B188: 2016-01-11 | D188: GSFC | E188: Buy | F188: 81.00 | H188: 110 | I188: 110.00 | J188: Target Achieved | K188: 29.00 | L188: 35.80% | M188: Successful | N188: 2017-01-10
A189: 47 | B189: 2016-01-13 | D189: SSWL | E189: Buy | F189: 417.50 | H189: 547 | I189: 535.00 | J189: Target Achieved | K189: 129.50 | L189: 31.02% | M189: Successful | N189: 2016-07-27
A190: 48 | B190: 2016-02-08 | D190: Persistent System Ltd | E190: Accu | F190: 650.00 | H190: 800 | I190: 800.00 | J190: Target Achieved | K190: 150.00 | L190: 23.08% | M190: Successful | N190: 2018-02-23
A191: 49 | B191: 2016-03-04 | D191: UPL | E191: Accu | F191: 437.50 | H191: 504.5 | I191: 522.00 | J191: Profit of Rs.67/- | K191: 67.00 | L191: 15.31% | M191: Successful | N191: 2016-04-20
A192: 50 | B192: 2016-03-09 | D192: Ashoka Buildcon Ltd | E192: Accu | F192: 189.50 | H192: 218 | I192: 218.00 | J192: Target Achieved | K192: 28.50 | L192: 15.04% | M192: Successful | N192: 2017-10-26
A193: 51 | B193: 2016-04-11 | D193: PTC INDIA FIN SERV LTD | E193: Accu | F193: 36.5 | H193: 15.85 | I193: 60.00 | J193: Loss of Rs.20.65/- | K193: -20.65 | L193: -56.58% | M193: Unsuccessful | N193: 2019-06-11
A194: 52 | B194: 2016-04-12 | D194: CAMLINFINE $ | E194: Accu | F194: 93.00 | H194: 149 | I194: 140.00 | J194: Profit of Rs 56/- | K194: 56.00 | L194: 60.22% | M194: Successful | N194: 2017-01-05
A195: 53 | B195: 2016-04-12 | D195: Greaves Cotton Ltd. | E195: Accu | F195: 130.00 | H195: 150 | I195: 150-155 | J195: Target Achieved | K195: 20.00 | L195: 15.38% | M195: Successful | N195: 2016-07-13
A196: 54 | B196: 2016-04-13 | D196: DHFL | E196: Accu | F196: 196.00 | H196: 299 | I196: 299.00 | J196: Target Achieved | K196: 103.00 | L196: 52.55% | M196: Successful | N196: 2016-09-07
A197: 55 | B197: 2016-04-13 | D197: Magma | E197: Accu | F197: 88.00 | H197: 103 | I197: 103.00 | J197: Target Achieved | K197: 15.00 | L197: 17.05% | M197: Successful | N197: 2016-06-09
A198: 56 | B198: 2016-05-02 | D198: KEC International ltd $ | E198: Accu | F198: 127.50 | H198: 148 | I198: 148-150 | J198: Target Achieved | K198: =H198-F198 -> 20.50 | L198: =K198/F198 -> 16.08% | M198: Successful | N198: 2016-07-13
A199: 57 | B199: 2016-05-03 | D199: Mindtree | E199: Accu | F199: 675.00 | H199: 815 | I199: 790-800 | J199: Target Achieved | K199: =H199-F199 -> 140.00 | L199: =K199/F199 -> 20.74% | M199: Successful | N199: 2018-02-23
A200: 58 | B200: 2016-06-01 | D200: Atulauto | E200: Accu | F200: 500 | H200: 232.50 | I200: 565-570 | J200: Loss of Rs.267.50 /- | K200: =H200-F200 -> -267.50 | L200: =K200/F200 -> -53.50% | M200: Unsuccessful | N200: 2019-09-27
A201: 59 | B201: 2016-06-06 | D201: TRITURBINE | E201: Accu | F201: 110.00 | H201: 126.5 | I201: 125.00 | J201: Profit of Rs.16.50/- | K201: =H201-F201 -> 16.50 | L201: =K201/F201 -> 15.00% | M201: Successful | N201: 2016-07-01
A202: 60 | B202: 2016-06-17 | D202: Pennar Industries Ltd | E202: Accu | F202: 44.00 | H202: 69.5 | I202: 69.50 | J202: Profit of Rs.25.50/- | K202: =H202-F202 -> 25.50 | L202: =K202/F202 -> 57.95% | M202: Successful | N202: 2017-08-30
A203: 61 | B203: 2016-06-28 | D203: EVEREADY | E203: Accu | F203: 262.50 | H203: 340 | I203: 333.00 | J203: Profit of Rs.77.50/- | K203: 77.50 | L203: 29.52% | M203: Successful | N203: 2017-10-09
A204: 62 | B204: 2016-06-28 | D204: FIEMIND | E204: Accu | F204: 840.00 | H204: 1230 | I204: 1230.00 | J204: Target Achieved | K204: 390.00 | L204: 46.43% | M204: Successful | N204: 2016-10-06
A205: 63 | B205: 2016-07-05 | D205: Bajaj Corp Ltd | E205: Accu | F205: 395 | H205: =(468.5+342.5)/2 -> 405.50 | I205: 510.00 | J205: Profit of Rs.10.50/- | K205: =H205-F205 -> 10.50 | L205: =K205/F205 -> 3% | M205: Neutral | N205: 2019-05-21
A206: 64 | B206: 2016-08-02 | D206: GPPL $ | E206: Buy | F206: =169.5-12.8 -> 156.7 | H206: 77.00 | I206: 198-200 | J206: Loss of Rs.79.7/- | K206: -79.70 | L206: -50.86% | M206: Unsuccessful | N206: 2019-02-26
A207: 65 | B207: 2016-08-04 | D207: WONDERLA HOLIDAYS LTD | E207: Accu | F207: 400 | H207: 305.00 | I207: 475.00 | J207: Loss of Rs.95/- | K207: -95.00 | L207: -23.75% | M207: Unsuccessful | N207: 2019-05-21
A208: 66 | B208: 2016-08-11 | D208: CAMLINFINE | E208: Accu | F208: 86.50 | H208: 130 | I208: 130.00 | J208: Profit of Rs.43.50/- | K208: 43.50 | L208: 50.29% | M208: Successful | N208: 2017-12-22
A209: 67 | B209: 2016-08-18 | D209: GRANULES | E209: Accu | F209: 133.5 | H209: 126.50 | I209: 178.00 | J209: Exit | K209: -7.00 | L209: -5.24% | M209: Unsuccessful | N209: 2016-09-02
A210: 68 | B210: 2016-08-31 | D210: VA TECH WABAG | E210: Accu | F210: 560.00 | H210: 725 | I210: 725.00 | J210: Target Achieved | K210: 165.00 | L210: 29.46% | M210: Successful | N210: 2016-03-27
A211: 69 | B211: 2016-09-01 | D211: SKIPPER LIMITED | E211: Accu | F211: 160.50 | H211: 210 | I211: 210.00 | J211: Target Achieved | K211: 49.50 | L211: 30.84% | M211: Successful | N211: 2017-05-16
A212: 70 | B212: 2016-10-03 | D212: IFBIND | E212: Accu | F212: 430.00 | H212: 596 | I212: 575.00 | J212: Profit of Rs.166/- | K212: 166.00 | L212: 38.60% | M212: Successful | N212: 2017-02-03
A213: 71 | B213: 2016-10-14 | D213: ASIANTILES | E213: Accu | F213: 280.00 | H213: 345 | I213: 345.00 | J213: Target Achieved | K213: =H213-F213 -> 65.00 | L213: =K213/F213 -> 23.21% | M213: Successful | N213: 2017-03-20
A214: 72 | B214: 2016-10-14 | D214: DEEPIND | E214: Accu | F214: 245.00 | H214: 325.5 | I214: 330.00 | J214: Profit of Rs.80.5/- | K214: 80.50 | L214: =K214/F214 -> 32.86% | M214: Successful | N214: 2017-02-03
A215: 73 | B215: 2016-10-17 | D215: DCBBANK | E215: Accu | F215: 125.00 | H215: 160 | I215: 160.00 | J215: Target Achieved | K215: 35.00 | L215: 28.00% | M215: Successful | N215: 2017-03-09
A216: 74 | B216: 2016-10-17 | D216: ORIENTREF | E216: Accu | F216: 114.00 | H216: 145 | I216: 145.00 | J216: Target Achieved | K216: 31.00 | L216: =K216/F216 -> 27.19% | M216: Successful | N216: 2017-05-04
A217: 75 | B217: 2016-10-17 | D217: GANECOS | E217: Accu | F217: 212.00 | H217: 280 | I217: 276.00 | J217: Profit of Rs.68/- | K217: 68.00 | L217: =K217/F217 -> 32.08% | M217: Successful | N217: 2017-05-03
A218: 76 | B218: 2016-11-04 | D218: NBCC | E218: Accu | F218: 155.00 | H218: 210 | I218: 210.00 | J218: Profit of Rs.55/- | K218: 55.00 | L218: =K218/F218 -> 35.48% | M218: Successful | N218: 2017-07-28
A219: 77 | B219: 2016-12-06 | D219: PRECAM | E219: Accu | F219: 150.5 | H219: 72.50 | I219: 174.00 | J219: Loss of Rs.78/- | K219: -78.00 | L219: -51.83% | M219: Unsuccessful | N219: 2018-08-21
A220: 78 | B220: 2016-12-08 | D220: INFRATEL | E220: Accu | F220: 380.00 | H220: 478 | I220: 468.00 | J220: Target Achieved | K220: =H220-F220 -> 98.00 | L220: =K220/F220 -> 25.79% | M220: Successful | N220: 2017-10-17
A221: 79 | B221: 2016-12-30 | D221: GODREJPROP | E221: Accu | F221: 305.00 | H221: 375 | I221: 375.00 | J221: Target Achieved | K221: =H221-F221 -> 70.00 | L221: =K221/F221 -> 22.95% | M221: Successful | N221: 2017-02-02
A222: 80 | B222: 2017-01-04 | D222: DEEPAKNTR | E222: Accu | F222: 99.50 | H222: 158 | I222: 158.00 | J222: Target Achieved | K222: =H222-F222 -> 58.50 | L222: =K222/F222 -> 58.79% | M222: Successful | N222: 2017-06-12
A223: 81 | B223: 2017-01-04 | D223: DEEPAKNTR | E223: Accu | F223: 99.50 | H223: 158 | I223: 158.00 | J223: Target Achieved | K223: 58.50 | L223: 58.79% | M223: Successful | N223: 2017-06-12
... 73 more rows

Sheet Sheet2 (hidden)
A1: SYMBOL | B1: SERIES | C1: OPEN | D1: HIGH | E1: LOW | F1: CLOSE | G1: LAST | H1: PREVCLOSE | I1: TOTTRDQTY | J1: TOTTRDVAL | K1: TIMESTAMP | L1: TOTALTRADES | M1: ISIN | N1: ISIN
A2: 20MICRONS | B2: EQ | C2: 27.9 | D2: 29 | E2: 25.9 | F2: 26.2 | G2: 25.9 | H2: 27.5 | I2: 80527 | J2: 2193820.55 | K2: 2020-04-08 | L2: 1099 | M2: INE144J01027
A3: 21STCENMGM | B3: EQ | C3: 10.15 | D3: 10.5 | E3: 10.1 | F3: 10.4 | G3: 10.5 | H3: 10.3 | I3: 3205 | J3: 32728.25 | K3: 2020-04-08 | L3: 28 | M3: INE253B01015
A4: 3IINFOTECH | B4: EQ | C4: 1.35 | D4: 1.35 | E4: 1.2 | F4: 1.25 | G4: 1.25 | H4: 1.35 | I4: 2793301 | J4: 3578364.95 | K4: 2020-04-08 | L4: 46535 | M4: INE748C01020
A5: 3MINDIA | B5: EQ | C5: 18950 | D5: 19170 | E5: 18155.05 | F5: 18318.2 | G5: 18270 | H5: 18755.7 | I5: 9926 | J5: 183605811.2 | K5: 2020-04-08 | L5: 4453 | M5: INE470A01017
A6: 3PLAND | B6: EQ | C6: 3.7 | D6: 3.85 | E6: 3.7 | F6: 3.85 | G6: 3.85 | H6: 3.7 | I6: 406 | J6: 1557.85 | K6: 2020-04-08 | L6: 9 | M6: INE105C01023
A7: 5PAISA | B7: EQ | C7: 119.95 | D7: 134 | E7: 115 | F7: 123.35 | G7: 120.5 | H7: 116.4 | I7: 6500 | J7: 793277.05 | K7: 2020-04-08 | L7: 265 | M7: INE618L01018
A8: 63MOONS | B8: EQ | C8: 50.7 | D8: 55.45 | E8: 50.7 | F8: 53.7 | G8: 53.55 | H8: 50.7 | I8: 72221 | J8: 3890984.7 | K8: 2020-04-08 | L8: 3078 | M8: INE111B01023
A9: A2ZINFRA | B9: EQ | C9: 3.15 | D9: 3.25 | E9: 3.1 | F9: 3.15 | G9: 3.15 | H9: 3.15 | I9: 116011 | J9: 367778.85 | K9: 2020-04-08 | L9: 227 | M9: INE619I01012
A10: AARTIDRUGS | B10: EQ | C10: 627 | D10: 669.3 | E10: 605 | F10: 631.6 | G10: 625 | H10: 607.85 | I10: 75970 | J10: 48223549.15 | K10: 2020-04-08 | L10: 5720 | M10: INE767A01016
A11: AARTIIND | B11: EQ | C11: 839.95 | D11: 909.8 | E11: 818 | F11: 854.9 | G11: 864 | H11: 830.7 | I11: 477805 | J11: 419092386.9 | K11: 2020-04-08 | L11: 50045 | M11: INE769A01020
A12: AARVEEDEN | B12: EQ | C12: 8.95 | D12: 9.25 | E12: 7.85 | F12: 8.35 | G12: 8.45 | H12: 8.1 | I12: 9251 | J12: 77100.1 | K12: 2020-04-08 | L12: 94 | M12: INE273D01019
A13: AAVAS | B13: EQ | C13: 1101 | D13: 1183 | E13: 1101 | F13: 1135.2 | G13: 1137 | H13: 1142.35 | I13: 24179 | J13: 28073100.85 | K13: 2020-04-08 | L13: 3631 | M13: INE216P01012
A14: ABAN | B14: EQ | C14: 15.7 | D14: 16.2 | E14: 15.7 | F14: 16.2 | G14: 16.2 | H14: 15.45 | I14: 37609 | J14: 608439.6 | K14: 2020-04-08 | L14: 288 | M14: INE421A01028
A15: ABB | B15: EQ | C15: 935 | D15: 965 | E15: 910 | F15: 930.7 | G15: 928 | H15: 931.35 | I15: 87757 | J15: 82358527.9 | K15: 2020-04-08 | L15: 4699 | M15: INE117A01022
A16: ABBOTINDIA | B16: EQ | C16: 16799.45 | D16: 18250 | E16: 16750 | F16: 17481.1 | G16: 17488 | H16: 16699.7 | I16: 57991 | J16: 1023745502 | K16: 2020-04-08 | L16: 21022 | M16: INE358A01014
A17: ABCAPITAL | B17: EQ | C17: 45 | D17: 47.9 | E17: 44.25 | F17: 45.6 | G17: 45.7 | H17: 45.1 | I17: 1253267 | J17: 57952493.6 | K17: 2020-04-08 | L17: 7317 | M17: INE674K01013
A18: ABFRL | B18: EQ | C18: 148 | D18: 152.8 | E18: 146.75 | F18: 149 | G18: 148 | H18: 149.85 | I18: 416099 | J18: 62371769.1 | K18: 2020-04-08 | L18: 10148 | M18: INE647O01011
A19: ABSLNN50ET | B19: EQ | C19: 244 | D19: 248 | E19: 210 | F19: 235 | G19: 235 | H19: 244 | I19: 56 | J19: 12779.4 | K19: 2020-04-08 | L19: 13 | M19: INF209KB1B87
A20: ACC | B20: EQ | C20: 1000 | D20: 1029.9 | E20: 941.25 | F20: 956.05 | G20: 958 | H20: 1009.95 | I20: 2153627 | J20: 2101320389 | K20: 2020-04-08 | L20: 79728 | M20: INE012A01025
A21: ACCELYA | B21: EQ | C21: 874.3 | D21: 886 | E21: 862 | F21: 880.45 | G21: 879.95 | H21: 874.3 | I21: 10865 | J21: 9557704.55 | K21: 2020-04-08 | L21: 923 | M21: INE793A01012
A22: ACE | B22: EQ | C22: 32.75 | D22: 35.2 | E22: 32.55 | F22: 33.25 | G22: 33.35 | H22: 32.95 | I22: 244708 | J22: 8296578.4 | K22: 2020-04-08 | L22: 2925 | M22: INE731H01025
A23: ADANIENT | B23: EQ | C23: 136.85 | D23: 147.15 | E23: 134.9 | F23: 138.1 | G23: 137.5 | H23: 138.15 | I23: 3237290 | J23: 456492273.1 | K23: 2020-04-08 | L23: 23696 | M23: INE423A01024
A24: ADANIGAS | B24: EQ | C24: 93.9 | D24: 96.35 | E24: 90.5 | F24: 90.8 | G24: 90.65 | H24: 94 | I24: 1888606 | J24: 176837924.4 | K24: 2020-04-08 | L24: 14517 | M24: INE399L01023
A25: ADANIGREEN | B25: EQ | C25: 166.85 | D25: 166.85 | E25: 162 | F25: 166.45 | G25: 166.85 | H25: 158.95 | I25: 702014 | J25: 116248737 | K25: 2020-04-08 | L25: 10187 | M25: INE364U01010
A26: ADANIPORTS | B26: EQ | C26: 248 | D26: 255.85 | E26: 242.75 | F26: 250.85 | G26: 249.7 | H26: 248.1 | I26: 6897883 | J26: 1724830525 | K26: 2020-04-08 | L26: 81499 | M26: INE742F01042
A27: ADANIPOWER | B27: EQ | C27: 28.65 | D27: 31.15 | E27: 27.5 | F27: 28.95 | G27: 28.85 | H27: 28.8 | I27: 12308064 | J27: 361987996.9 | K27: 2020-04-08 | L27: 23153 | M27: INE814H01011
A28: ADANITRANS | B28: EQ | C28: 196.65 | D28: 202 | E28: 190 | F28: 193.65 | G28: 193.5 | H28: 198.3 | I28: 306320 | J28: 59783940.3 | K28: 2020-04-08 | L28: 4236 | M28: INE931S01010
A29: ADFFOODS | B29: EQ | C29: 187.85 | D29: 192.25 | E29: 184 | F29: 187.7 | G29: 187.3 | H29: 183.1 | I29: 22107 | J29: 4185556.05 | K29: 2020-04-08 | L29: 773 | M29: INE982B01019
A30: ADHUNIKIND | B30: EQ | C30: 13.3 | D30: 13.3 | E30: 13.3 | F30: 13.3 | G30: 13.3 | H30: 12.7 | I30: 5518 | J30: 73389.4 | K30: 2020-04-08 | L30: 21 | M30: INE452L01012
A31: ADLABS | B31: EQ | C31: 2.75 | D31: 2.85 | E31: 2.75 | F31: 2.85 | G31: 2.85 | H31: 2.75 | I31: 19360 | J31: 54965.35 | K31: 2020-04-08 | L31: 72 | M31: INE172N01012
A32: ADORWELD | B32: EQ | C32: 195.7 | D32: 201.9 | E32: 193.95 | F32: 195.1 | G32: 194.45 | H32: 196.75 | I32: 1438 | J32: 283768.75 | K32: 2020-04-08 | L32: 94 | M32: INE045A01017
A33: ADROITINFO | B33: EQ | C33: 5.5 | D33: 5.7 | E33: 5.45 | F33: 5.7 | G33: 5.7 | H33: 5.7 | I33: 691 | J33: 3857 | K33: 2020-04-08 | L33: 25 | M33: INE737B01033
A34: ADSL | B34: EQ | C34: 13.05 | D34: 13.2 | E34: 12.4 | F34: 12.5 | G34: 12.45 | H34: 12.7 | I34: 16203 | J34: 205559.25 | K34: 2020-04-08 | L34: 143 | M34: INE102I01027
A35: ADVANIHOTR | B35: EQ | C35: 30.1 | D35: 33 | E35: 30.1 | F35: 31.8 | G35: 31.5 | H35: 30.65 | I35: 5340 | J35: 169948.95 | K35: 2020-04-08 | L35: 193 | M35: INE199C01026
A36: ADVENZYMES | B36: EQ | C36: 140.2 | D36: 146.55 | E36: 137.95 | F36: 139.2 | G36: 139.75 | H36: 136.55 | I36: 77441 | J36: 11046136.15 | K36: 2020-04-08 | L36: 1990 | M36: INE837H01020
A37: AEGISCHEM | B37: EQ | C37: 150 | D37: 158.5 | E37: 147.1 | F37: 156.35 | G37: 156.05 | H37: 144.1 | I37: 175470 | J37: 27041093.9 | K37: 2020-04-08 | L37: 4268 | M37: INE208C01025
A38: AFFLE | B38: BE | C38: 1050 | D38: 1053.45 | E38: 1030 | F38: 1053.45 | G38: 1053.45 | H38: 1003.3 | I38: 8191 | J38: 8619737.5 | K38: 2020-04-08 | L38: 470 | M38: INE00WC01019
A39: AGARIND | B39: EQ | C39: 49.8 | D39: 52.85 | E39: 49.05 | F39: 52.25 | G39: 52.5 | H39: 49.95 | I39: 7826 | J39: 404450.25 | K39: 2020-04-08 | L39: 207 | M39: INE204E01012
A40: AGCNET | B40: BE | C40: 224.35 | D40: 235.55 | E40: 213.25 | F40: 234.7 | G40: 235.55 | H40: 224.35 | I40: 2524 | J40: 573063 | K40: 2020-04-08 | L40: 70 | M40: INE676A01019
A41: AGRITECH | B41: EQ | C41: 23.95 | D41: 23.95 | E41: 23.95 | F41: 23.95 | G41: 23.95 | H41: 22.85 | I41: 504 | J41: 12070.8 | K41: 2020-04-08 | L41: 18 | M41: INE449G01018
A42: AGROPHOS | B42: EQ | C42: 5.7 | D42: 5.7 | E42: 5.2 | F42: 5.7 | G42: 5.7 | H42: 5.45 | I42: 40596 | J42: 227201.55 | K42: 2020-04-08 | L42: 340 | M42: INE740V01019
A43: AHLEAST | B43: EQ | C43: 133.15 | D43: 141.85 | E43: 128.15 | F43: 131.55 | G43: 128.35 | H43: 131.5 | I43: 3303 | J43: 439718.1 | K43: 2020-04-08 | L43: 350 | M43: INE926K01017
A44: AHLUCONT | B44: EQ | C44: 145.95 | D44: 148 | E44: 136 | F44: 146.3 | G44: 148 | H44: 144.1 | I44: 153910 | J44: 21077811.2 | K44: 2020-04-08 | L44: 995 | M44: INE758C01029
A45: AHLWEST | B45: EQ | C45: 289.9 | D45: 289.9 | E45: 270.95 | F45: 275 | G45: 275 | H45: 277 | I45: 238 | J45: 67030 | K45: 2020-04-08 | L45: 91 | M45: INE915K01010
A46: AIAENG | B46: EQ | C46: 1259.45 | D46: 1291 | E46: 1229 | F46: 1255.85 | G46: 1268 | H46: 1249.9 | I46: 73842 | J46: 92756824.05 | K46: 2020-04-08 | L46: 10503 | M46: INE212H01026
A47: AIONJSW | B47: EQ | C47: 10.9 | D47: 11.1 | E47: 10.2 | F47: 11.1 | G47: 11.1 | H47: 10.6 | I47: 90347 | J47: 996144.95 | K47: 2020-04-08 | L47: 180 | M47: INE743C01021
A48: AIRAN | B48: EQ | C48: 9.8 | D48: 10.3 | E48: 9.75 | F48: 9.8 | G48: 9.75 | H48: 9.85 | I48: 1826 | J48: 18127.1 | K48: 2020-04-08 | L48: 25 | M48: INE645W01026
A49: AJANTPHARM | B49: EQ | C49: 1325.75 | D49: 1450 | E49: 1325 | F49: 1367.5 | G49: 1363 | H49: 1340.2 | I49: 166582 | J49: 233126032.5 | K49: 2020-04-08 | L49: 8748 | M49: INE031B01049
A50: AJMERA | B50: EQ | C50: 64.95 | D50: 70.5 | E50: 64.6 | F50: 68.4 | G50: 69.9 | H50: 64.65 | I50: 31766 | J50: 2167947.5 | K50: 2020-04-08 | L50: 909 | M50: INE298G01027
A51: AKASH | B51: BE | C51: 90 | D51: 90 | E51: 90 | F51: 90 | G51: 90 | H51: 90.95 | I51: 500 | J51: 45000 | K51: 2020-04-08 | L51: 1 | M51: INE737W01013
A52: AKSHARCHEM | B52: EQ | C52: 174.75 | D52: 177.6 | E52: 165.3 | F52: 169.7 | G52: 167.15 | H52: 165.25 | I52: 3130 | J52: 531878.25 | K52: 2020-04-08 | L52: 293 | M52: INE542B01011
A53: AKSHOPTFBR | B53: EQ | C53: 3.6 | D53: 3.6 | E53: 3.6 | F53: 3.6 | G53: 3.6 | H53: 3.45 | I53: 27750 | J53: 99900 | K53: 2020-04-08 | L53: 45 | M53: INE523B01011
A54: AKZOINDIA | B54: EQ | C54: 2084.95 | D54: 2133 | E54: 2030 | F54: 2047.9 | G54: 2040 | H54: 2086.75 | I54: 12835 | J54: 26789836.95 | K54: 2020-04-08 | L54: 2242 | M54: INE133A01011
A55: ALANKIT | B55: EQ | C55: 12.9 | D55: 12.9 | E55: 12.9 | F55: 12.9 | G55: 12.9 | H55: 12.3 | I55: 14247 | J55: 183786.3 | K55: 2020-04-08 | L55: 75 | M55: INE914E01040
A56: ALBERTDAVD | B56: EQ | C56: 338.8 | D56: 364.75 | E56: 338.8 | F56: 353.15 | G56: 352 | H56: 341.15 | I56: 24334 | J56: 8579416.55 | K56: 2020-04-08 | L56: 1220 | M56: INE155C01010
A57: ALCHEM | B57: BE | C57: 1.4 | D57: 1.4 | E57: 1.4 | F57: 1.4 | G57: 1.4 | H57: 1.35 | I57: 8608 | J57: 12051.2 | K57: 2020-04-08 | L57: 18 | M57: INE964B01033
A58: ALEMBICLTD | B58: EQ | C58: 43.7 | D58: 48.05 | E58: 39.7 | F58: 45.05 | G58: 45.5 | H58: 42.15 | I58: 695128 | J58: 31779132.75 | K58: 2020-04-08 | L58: 6991 | M58: INE426A01027
A59: ALICON | B59: EQ | C59: 195.95 | D59: 196 | E59: 181.05 | F59: 184.75 | G59: 184 | H59: 189.25 | I59: 3909 | J59: 722322.5 | K59: 2020-04-08 | L59: 123 | M59: INE062D01024
A60: ALKALI | B60: EQ | C60: 29.95 | D60: 31.75 | E60: 29.65 | F60: 31.75 | G60: 31.75 | H60: 28.9 | I60: 9346 | J60: 289594.95 | K60: 2020-04-08 | L60: 349 | M60: INE773I01017
A61: ALKEM | B61: EQ | C61: 2360 | D61: 2736.5 | E61: 2326.2 | F61: 2671.15 | G61: 2639 | H61: 2324.05 | I61: 371259 | J61: 967330461.6 | K61: 2020-04-08 | L61: 44106 | M61: INE540L01014
A62: ALKYLAMINE | B62: EQ | C62: 1236.6 | D62: 1398 | E62: 1222.2 | F62: 1334.05 | G62: 1334 | H62: 1232.45 | I62: 41501 | J62: 55061848.25 | K62: 2020-04-08 | L62: 3832 | M62: INE150B01021
A63: ALLCARGO | B63: EQ | C63: 63.05 | D63: 65.85 | E63: 63 | F63: 65.7 | G63: 65.85 | H63: 59.9 | I63: 300794 | J63: 19569467.05 | K63: 2020-04-08 | L63: 3098 | M63: INE418H01029
A64: ALLSEC | B64: EQ | C64: 131.7 | D64: 131.9 | E64: 129.35 | F64: 131.9 | G64: 131.9 | H64: 125.65 | I64: 1335 | J64: 175836.2 | K64: 2020-04-08 | L64: 37 | M64: INE835G01018
A65: ALOKINDS | B65: EQ | C65: 4.7 | D65: 4.7 | E65: 4.7 | F65: 4.7 | G65: 4.7 | H65: 4.5 | I65: 1698707 | J65: 7983922.9 | K65: 2020-04-08 | L65: 397 | M65: INE270A01029
A66: ALPA | B66: EQ | C66: 18.55 | D66: 20.15 | E66: 17.8 | F66: 20.15 | G66: 20.15 | H66: 16.8 | I66: 131233 | J66: 2593665.9 | K66: 2020-04-08 | L66: 858 | M66: INE385I01010
A67: ALPHAGEO | B67: EQ | C67: 126 | D67: 137.5 | E67: 126 | F67: 134.45 | G67: 133.3 | H67: 129.7 | I67: 22258 | J67: 2986986.5 | K67: 2020-04-08 | L67: 783 | M67: INE137C01018
A68: ALPSINDUS | B68: EQ | C68: 0.65 | D68: 0.75 | E68: 0.65 | F68: 0.75 | G68: 0.7 | H68: 0.7 | I68: 25369 | J68: 18108.8 | K68: 2020-04-08 | L68: 33 | M68: INE093B01015
A69: AMARAJABAT | B69: EQ | C69: 501.1 | D69: 513.65 | E69: 488.45 | F69: 502.05 | G69: 504.9 | H69: 501.1 | I69: 755312 | J69: 378881689.9 | K69: 2020-04-08 | L69: 18162 | M69: INE885A01032
A70: AMBER | B70: EQ | C70: 1189.9 | D70: 1199 | E70: 1072 | F70: 1108.05 | G70: 1109.25 | H70: 1189.9 | I70: 93512 | J70: 105805912.2 | K70: 2020-04-08 | L70: 14252 | M70: INE371P01015
A71: AMBIKCO | B71: EQ | C71: 539.25 | D71: 559 | E71: 531.05 | F71: 545.2 | G71: 536.4 | H71: 537.25 | I71: 3988 | J71: 2168349.4 | K71: 2020-04-08 | L71: 406 | M71: INE540G01014
A72: AMBUJACEM | B72: EQ | C72: 158.5 | D72: 159.5 | E72: 148.2 | F72: 149.7 | G72: 149.55 | H72: 159 | I72: 10421438 | J72: 1597618498 | K72: 2020-04-08 | L72: 84074 | M72: INE079A01024
A73: AMDIND | B73: EQ | C73: 9.9 | D73: 10.5 | E73: 9.5 | F73: 9.8 | G73: 9.55 | H73: 10 | I73: 17757 | J73: 177659.15 | K73: 2020-04-08 | L73: 707 | M73: INE005I01014
A74: AMJLAND | B74: EQ | C74: 14.3 | D74: 14.95 | E74: 13.7 | F74: 14 | G74: 14 | H74: 14.25 | I74: 12523 | J74: 176065.3 | K74: 2020-04-08 | L74: 106 | M74: INE606A01024
A75: AMRUTANJAN | B75: EQ | C75: 326 | D75: 352 | E75: 320.1 | F75: 345.45 | G75: 344.3 | H75: 324 | I75: 278725 | J75: 95586275.35 | K75: 2020-04-08 | L75: 9075 | M75: INE098F01031
A76: ANANTRAJ | B76: EQ | C76: 19.55 | D76: 20.15 | E76: 18.6 | F76: 18.75 | G76: 18.8 | H76: 19.55 | I76: 184694 | J76: 3509270.8 | K76: 2020-04-08 | L76: 1012 | M76: INE242C01024
A77: ANDHRACEMT | B77: EQ | C77: 1.8 | D77: 1.9 | E77: 1.7 | F77: 1.85 | G77: 1.9 | H77: 1.75 | I77: 105618 | J77: 196578.05 | K77: 2020-04-08 | L77: 227 | M77: INE666E01012
A78: ANDHRAPAP | B78: EQ | C78: 148.55 | D78: 148.55 | E78: 147 | F78: 148.55 | G78: 148.55 | H78: 141.5 | I78: 2622 | J78: 389210.05 | K78: 2020-04-08 | L78: 70 | M78: INE435A01028
A79: ANDHRSUGAR | B79: EQ | C79: 206.95 | D79: 212 | E79: 195 | F79: 206.05 | G79: 205.85 | H79: 203.55 | I79: 35494 | J79: 7286675.25 | K79: 2020-04-08 | L79: 1328 | M79: INE715B01013
A80: ANIKINDS | B80: EQ | C80: 7.25 | D80: 7.25 | E80: 6.65 | F80: 6.8 | G80: 6.8 | H80: 6.95 | I80: 4994 | J80: 34701.65 | K80: 2020-04-08 | L80: 35 | M80: INE087B01017
A81: ANKITMETAL | B81: EQ | C81: 0.4 | D81: 0.45 | E81: 0.35 | F81: 0.45 | G81: 0.45 | H81: 0.4 | I81: 64810 | J81: 27213.05 | K81: 2020-04-08 | L81: 29 | M81: INE106I01010
A82: ANSALAPI | B82: EQ | C82: 3.65 | D82: 3.8 | E82: 3.65 | F82: 3.8 | G82: 3.8 | H82: 3.65 | I82: 3974 | J82: 15023.75 | K82: 2020-04-08 | L82: 28 | M82: INE436A01026
A83: ANSALHSG | B83: EQ | C83: 3 | D83: 3 | E83: 2.8 | F83: 2.9 | G83: 2.9 | H83: 2.9 | I83: 31510 | J83: 91846.6 | K83: 2020-04-08 | L83: 64 | M83: INE880B01015
A84: ANUP | B84: EQ | C84: 304.75 | D84: 323.7 | E84: 303.1 | F84: 313.2 | G84: 313.05 | H84: 312.75 | I84: 11786 | J84: 3732090.6 | K84: 2020-04-08 | L84: 460 | M84: INE294Z01018
A85: APARINDS | B85: EQ | C85: 296.95 | D85: 300.35 | E85: 290.6 | F85: 295.85 | G85: 295.5 | H85: 296.05 | I85: 6051 | J85: 1806443.45 | K85: 2020-04-08 | L85: 427 | M85: INE372A01015
A86: APCL | B86: EQ | C86: 102.4 | D86: 102.4 | E86: 95.2 | F86: 97.35 | G86: 97 | H86: 98.5 | I86: 3739 | J86: 362867.6 | K86: 2020-04-08 | L86: 79 | M86: INE071F01012
A87: APCOTEXIND | B87: EQ | C87: 87.55 | D87: 94.85 | E87: 86 | F87: 87.5 | G87: 86.1 | H87: 87.45 | I87: 13115 | J87: 1175575.25 | K87: 2020-04-08 | L87: 323 | M87: INE116A01032
A88: APEX | B88: EQ | C88: 190 | D88: 201.65 | E88: 185.1 | F88: 201.65 | G88: 201.65 | H88: 183.35 | I88: 141806 | J88: 27768799.35 | K88: 2020-04-08 | L88: 3293 | M88: INE346W01013
A89: APLAPOLLO | B89: EQ | C89: 1245 | D89: 1274 | E89: 1220 | F89: 1259.5 | G89: 1258 | H89: 1231.75 | I89: 21152 | J89: 26442272.1 | K89: 2020-04-08 | L89: 3032 | M89: INE702C01019
A90: APLLTD | B90: EQ | C90: 630 | D90: 702.65 | E90: 615.5 | F90: 640.85 | G90: 626 | H90: 610.2 | I90: 540272 | J90: 353935242.1 | K90: 2020-04-08 | L90: 30323 | M90: INE901L01018
A91: APOLLO | B91: EQ | C91: 45.5 | D91: 56 | E91: 45.25 | F91: 54.3 | G91: 53.55 | H91: 46.7 | I91: 68951 | J91: 3631629.4 | K91: 2020-04-08 | L91: 1694 | M91: INE713T01010
A92: APOLLOHOSP | B92: EQ | C92: 1225.9 | D92: 1338.4 | E92: 1211 | F92: 1263.95 | G92: 1261 | H92: 1225.95 | I92: 2070270 | J92: 2654141027 | K92: 2020-04-08 | L92: 156926 | M92: INE437A01024
A93: APOLLOPIPE | B93: EQ | C93: 279.5 | D93: 304 | E93: 262.95 | F93: 281.3 | G93: 281 | H93: 280.1 | I93: 12940 | J93: 3607793.25 | K93: 2020-04-08 | L93: 543 | M93: INE126J01016
A94: APOLLOTYRE | B94: EQ | C94: 83.5 | D94: 87.15 | E94: 82 | F94: 83.4 | G94: 83.15 | H94: 83.5 | I94: 2950752 | J94: 248872037.1 | K94: 2020-04-08 | L94: 19408 | M94: INE438A01022
A95: APOLSINHOT | B95: EQ | C95: 460.35 | D95: 460.4 | E95: 421.1 | F95: 439.8 | G95: 436 | H95: 438.6 | I95: 694 | J95: 306874.65 | K95: 2020-04-08 | L95: 84 | M95: INE451F01024
A96: APTECHT | B96: EQ | C96: 85.3 | D96: 87.7 | E96: 83.55 | F96: 84.6 | G96: 84.3 | H96: 85.3 | I96: 106721 | J96: 9133416.7 | K96: 2020-04-08 | L96: 2385 | M96: INE266F01018
A97: ARCHIDPLY | B97: EQ | C97: 16.55 | D97: 17 | E97: 16.45 | F97: 16.85 | G97: 16.95 | H97: 16.75 | I97: 4083 | J97: 68300.2 | K97: 2020-04-08 | L97: 63 | M97: INE877I01016
A98: ARCHIES | B98: EQ | C98: 9.4 | D98: 9.5 | E98: 9 | F98: 9.05 | G98: 9.15 | H98: 9.45 | I98: 24343 | J98: 224667.6 | K98: 2020-04-08 | L98: 150 | M98: INE731A01020
A99: ARCOTECH | B99: EQ | C99: 0.9 | D99: 0.95 | E99: 0.85 | F99: 0.9 | G99: 0.9 | H99: 0.9 | I99: 51482 | J99: 47500.05 | K99: 2020-04-08 | L99: 77 | M99: INE574I01035
A100: ARENTERP | B100: EQ | C100: 12.65 | D100: 12.65 | E100: 12.05 | F100: 12.05 | G100: 12.05 | H100: 12.65 | I100: 63 | J100: 765.15 | K100: 2020-04-08 | L100: 4 | M100: INE610C01014
A101: ARIES | B101: EQ | C101: 44.4 | D101: 47.6 | E101: 42.65 | F101: 43.6 | G101: 44 | H101: 44.4 | I101: 50875 | J101: 2250478.25 | K101: 2020-04-08 | L101: 1080 | M101: INE298I01015
A102: ARIHANT | B102: EQ | C102: 12.05 | D102: 12.55 | E102: 11.6 | F102: 12.15 | G102: 12.5 | H102: 12.05 | I102: 964 | J102: 11418.15 | K102: 2020-04-08 | L102: 27 | M102: INE413D01011
A103: ARIHANTSUP | B103: EQ | C103: 21.4 | D103: 21.45 | E103: 19.45 | F103: 19.5 | G103: 21 | H103: 20.45 | I103: 4362 | J103: 85414.05 | K103: 2020-04-08 | L103: 80 | M103: INE643K01018
A104: ARMANFIN | B104: EQ | C104: 340 | D104: 373.2 | E104: 337.7 | F104: 373.05 | G104: 373.2 | H104: 355.45 | I104: 50867 | J104: 18465582.65 | K104: 2020-04-08 | L104: 911 | M104: INE109C01017
A105: AROGRANITE | B105: EQ | C105: 21.95 | D105: 24.5 | E105: 20.85 | F105: 24.2 | G105: 24.5 | H105: 22.35 | I105: 26052 | J105: 602565.3 | K105: 2020-04-08 | L105: 183 | M105: INE210C01013
A106: ARROWGREEN | B106: BE | C106: 33.55 | D106: 35 | E106: 33.45 | F106: 33.45 | G106: 33.45 | H106: 33.85 | I106: 5735 | J106: 195198.5 | K106: 2020-04-08 | L106: 32 | M106: INE570D01018
A107: ARSHIYA | B107: EQ | C107: 7.1 | D107: 7.6 | E107: 7.1 | F107: 7.6 | G107: 7.6 | H107: 7.25 | I107: 23178 | J107: 175819.45 | K107: 2020-04-08 | L107: 63 | M107: INE968D01022
A108: ARSSINFRA | B108: EQ | C108: 11.25 | D108: 12.3 | E108: 10.9 | F108: 11.8 | G108: 11.85 | H108: 11.15 | I108: 16388 | J108: 189874.85 | K108: 2020-04-08 | L108: 107 | M108: INE267I01010
A109: ARTEMISMED | B109: EQ | C109: 140 | D109: 147 | E109: 136.3 | F109: 138 | G109: 137 | H109: 139.15 | I109: 1729 | J109: 245138.4 | K109: 2020-04-08 | L109: 31 | M109: INE025R01013
A110: ARVIND | B110: EQ | C110: 23.5 | D110: 24.4 | E110: 22.45 | F110: 23.75 | G110: 23.75 | H110: 22.2 | I110: 2137547 | J110: 50521243.45 | K110: 2020-04-08 | L110: 7057 | M110: INE034A01011
A111: ARVINDFASN | B111: EQ | C111: 139.8 | D111: 141.9 | E111: 132.2 | F111: 133.8 | G111: 134.75 | H111: 139.85 | I111: 46445 | J111: 6387304.5 | K111: 2020-04-08 | L111: 1243 | M111: INE955V01021
A112: ARVSMART | B112: EQ | C112: 64.05 | D112: 67 | E112: 64 | F112: 65.4 | G112: 65.5 | H112: 65 | I112: 10000 | J112: 656036.65 | K112: 2020-04-08 | L112: 320 | M112: INE034S01021
A113: ASAHIINDIA | B113: EQ | C113: 152 | D113: 158 | E113: 147.05 | F113: 155.5 | G113: 152.35 | H113: 153.2 | I113: 5605 | J113: 858978.65 | K113: 2020-04-08 | L113: 218 | M113: INE439A01020
A114: ASAHISONG | B114: EQ | C114: 80.8 | D114: 88.95 | E114: 80.05 | F114: 85.25 | G114: 86 | H114: 80.9 | I114: 8055 | J114: 692533.2 | K114: 2020-04-08 | L114: 314 | M114: INE228I01012
A115: ASAL | B115: EQ | C115: 14.8 | D115: 14.9 | E115: 14.5 | F115: 14.5 | G115: 14.5 | H115: 14.25 | I115: 8037 | J115: 118819.3 | K115: 2020-04-08 | L115: 36 | M115: INE900C01027
A116: ASALCBR | B116: EQ | C116: 164.9 | D116: 175 | E116: 158 | F116: 165.7 | G116: 165 | H116: 162.9 | I116: 31033 | J116: 5116102.05 | K116: 2020-04-08 | L116: 970 | M116: INE073G01016
A117: ASHAPURMIN | B117: EQ | C117: 22.1 | D117: 22.1 | E117: 22.05 | F117: 22.1 | G117: 22.1 | H117: 21.05 | I117: 8770 | J117: 193792 | K117: 2020-04-08 | L117: 43 | M117: INE348A01023
A118: ASHIANA | B118: EQ | C118: 52.9 | D118: 52.9 | E118: 49.1 | F118: 49.95 | G118: 50 | H118: 50 | I118: 69042 | J118: 3480534.3 | K118: 2020-04-08 | L118: 621 | M118: INE365D01021
A119: ASHIMASYN | B119: EQ | C119: 3.9 | D119: 3.9 | E119: 3.9 | F119: 3.9 | G119: 3.9 | H119: 3.55 | I119: 28914 | J119: 112764.6 | K119: 2020-04-08 | L119: 46 | M119: INE440A01010
A120: ASHOKA | B120: EQ | C120: 38.35 | D120: 42.7 | E120: 37.8 | F120: 42.7 | G120: 42.7 | H120: 38.85 | I120: 1577514 | J120: 65134101.3 | K120: 2020-04-08 | L120: 8475 | M120: INE442H01029
A121: ASHOKLEY | B121: EQ | C121: 39.85 | D121: 47.8 | E121: 38.75 | F121: 43.85 | G121: 43.6 | H121: 39.85 | I121: 76817768 | J121: 3355417806 | K121: 2020-04-08 | L121: 169889 | M121: INE208A01029
A122: ASIANHOTNR | B122: EQ | C122: 70 | D122: 71.8 | E122: 66 | F122: 71.55 | G122: 71.5 | H122: 65.4 | I122: 4982 | J122: 349215.55 | K122: 2020-04-08 | L122: 198 | M122: INE363A01022
A123: ASIANPAINT | B123: EQ | C123: 1623.8 | D123: 1687.8 | E123: 1600 | F123: 1608.95 | G123: 1608 | H123: 1623.8 | I123: 2382216 | J123: 3911658954 | K123: 2020-04-08 | L123: 101146 | M123: INE021A01026
A124: ASIANTILES | B124: EQ | C124: 156 | D124: 162.9 | E124: 155 | F124: 157.6 | G124: 156.5 | H124: 157.65 | I124: 19917 | J124: 3151924.4 | K124: 2020-04-08 | L124: 431 | M124: INE022I01019
A125: ASPINWALL | B125: EQ | C125: 93 | D125: 98.7 | E125: 83.55 | F125: 93 | G125: 93 | H125: 90 | I125: 413 | J125: 38837.15 | K125: 2020-04-08 | L125: 20 | M125: INE991I01015
A126: ASTEC | B126: EQ | C126: 450.65 | D126: 465.05 | E126: 440 | F126: 460.05 | G126: 460.3 | H126: 443.9 | I126: 5283 | J126: 2392645.5 | K126: 2020-04-08 | L126: 494 | M126: INE563J01010
A127: ASTERDM | B127: EQ | C127: 96 | D127: 103.5 | E127: 93.8 | F127: 99.25 | G127: 99 | H127: 94.55 | I127: 996205 | J127: 98978623.7 | K127: 2020-04-08 | L127: 4570 | M127: INE914M01019
A128: ASTRAL | B128: EQ | C128: 962 | D128: 986 | E128: 952 | F128: 955.45 | G128: 954 | H128: 973.85 | I128: 59212 | J128: 57381672.65 | K128: 2020-04-08 | L128: 7623 | M128: INE006I01046
A129: ASTRAMICRO | B129: EQ | C129: 56.9 | D129: 62.55 | E129: 55.85 | F129: 61.7 | G129: 62.55 | H129: 56.9 | I129: 253097 | J129: 15146656.55 | K129: 2020-04-08 | L129: 1961 | M129: INE386C01029
A130: ASTRAZEN | B130: EQ | C130: 2700 | D130: 2830 | E130: 2544 | F130: 2561.6 | G130: 2549 | H130: 2693.65 | I130: 38510 | J130: 104113109 | K130: 2020-04-08 | L130: 6647 | M130: INE203A01020
A131: ASTRON | B131: EQ | C131: 26.15 | D131: 29.9 | E131: 25.3 | F131: 27.5 | G131: 27.8 | H131: 27.65 | I131: 61618 | J131: 1693449.45 | K131: 2020-04-08 | L131: 1743 | M131: INE646X01014
A132: ATFL | B132: EQ | C132: 479.65 | D132: 499 | E132: 475 | F132: 481.55 | G132: 475 | H132: 479.65 | I132: 6104 | J132: 2975754.9 | K132: 2020-04-08 | L132: 411 | M132: INE209A01019
A133: ATLANTA | B133: EQ | C133: 3 | D133: 3.15 | E133: 3 | F133: 3.15 | G133: 3.15 | H133: 3 | I133: 8624 | J133: 26936.35 | K133: 2020-04-08 | L133: 28 | M133: INE285H01022
A134: ATLASCYCLE | B134: BE | C134: 30 | D134: 31.5 | E134: 29.5 | F134: 30.7 | G134: 30.7 | H134: 30 | I134: 2000 | J134: 60118.65 | K134: 2020-04-08 | L134: 42 | M134: INE446A01025
A135: ATNINTER | B135: BE | C135: 0.1 | D135: 0.1 | E135: 0.1 | F135: 0.1 | G135: 0.1 | H135: 0.1 | I135: 12716 | J135: 1271.6 | K135: 2020-04-08 | L135: 5 | M135: INE803A01027
A136: ATUL | B136: EQ | C136: 3930 | D136: 4005 | E136: 3908.35 | F136: 3951.85 | G136: 3954.95 | H136: 3927.1 | I136: 76768 | J136: 304824820.4 | K136: 2020-04-08 | L136: 11635 | M136: INE100A01010
A137: ATULAUTO | B137: EQ | C137: 151.35 | D137: 154.05 | E137: 146.8 | F137: 153.45 | G137: 153.95 | H137: 146.75 | I137: 13699 | J137: 2093863.3 | K137: 2020-04-08 | L137: 810 | M137: INE951D01028
A138: AUBANK | B138: EQ | C138: 461.2 | D138: 490 | E138: 457 | F138: 480.3 | G138: 473 | H138: 478.4 | I138: 1791057 | J138: 837589012.6 | K138: 2020-04-08 | L138: 59410 | M138: INE949L01017
A139: AURIONPRO | B139: EQ | C139: 41.75 | D139: 43.7 | E139: 40 | F139: 42.9 | G139: 42.9 | H139: 40.95 | I139: 8828 | J139: 376649.05 | K139: 2020-04-08 | L139: 213 | M139: INE132H01018
A140: AUROPHARMA | B140: EQ | C140: 432.5 | D140: 476.3 | E140: 426.3 | F140: 438.15 | G140: 438.9 | H140: 445.7 | I140: 13186213 | J140: 5925576015 | K140: 2020-04-08 | L140: 205238 | M140: INE406A01037
A141: AUSOMENT | B141: EQ | C141: 26.1 | D141: 26.1 | E141: 26.1 | F141: 26.1 | G141: 26.1 | H141: 25 | I141: 100 | J141: 2610 | K141: 2020-04-08 | L141: 1 | M141: INE218C01016
A142: AUTOAXLES | B142: EQ | C142: 413 | D142: 423.5 | E142: 398.05 | F142: 413.45 | G142: 416 | H142: 399.3 | I142: 5448 | J142: 2244823.45 | K142: 2020-04-08 | L142: 638 | M142: INE449A01011
A143: AUTOIND | B143: EQ | C143: 11.3 | D143: 11.35 | E143: 11.1 | F143: 11.35 | G143: 11.35 | H143: 10.85 | I143: 9358 | J143: 105383.05 | K143: 2020-04-08 | L143: 68 | M143: INE718H01014
A144: AUTOLITIND | B144: EQ | C144: 13.2 | D144: 14.4 | E144: 13.2 | F144: 13.8 | G144: 13.9 | H144: 13.75 | I144: 4699 | J144: 65525.8 | K144: 2020-04-08 | L144: 68 | M144: INE448A01013
A145: AVADHSUGAR | B145: EQ | C145: 143.55 | D145: 143.55 | E145: 143.55 | F145: 143.55 | G145: 143.55 | H145: 136.75 | I145: 13174 | J145: 1891127.7 | K145: 2020-04-08 | L145: 157 | M145: INE349W01017
A146: AVANTIFEED | B146: EQ | C146: 311 | D146: 341.55 | E146: 310.5 | F146: 341.35 | G146: 341.55 | H146: 310.5 | I146: 748404 | J146: 246839085.1 | K146: 2020-04-08 | L146: 23272 | M146: INE871C01038
A147: AVTNPL | B147: EQ | C147: 25.45 | D147: 27.8 | E147: 24.25 | F147: 27.25 | G147: 27 | H147: 25.05 | I147: 213540 | J147: 5643644.4 | K147: 2020-04-08 | L147: 1601 | M147: INE488D01021
A148: AXISBANK | B148: EQ | C148: 383.75 | D148: 427.7 | E148: 373.5 | F148: 391.35 | G148: 391.4 | H148: 388.85 | I148: 64930772 | J148: 2.575974593e+10 | K148: 2020-04-08 | L148: 769506 | M148: INE238A01034
A149: AXISCADES | B149: EQ | C149: 30.9 | D149: 31.5 | E149: 28.65 | F149: 31.4 | G149: 31.5 | H149: 30 | I149: 39670 | J149: 1232336.75 | K149: 2020-04-08 | L149: 621 | M149: INE555B01013
A150: AXISGOLD | B150: EQ | C150: 3969.9 | D150: 3989 | E150: 3925 | F150: 3973.3 | G150: 3983 | H150: 3919.55 | I150: 701 | J150: 2769851.6 | K150: 2020-04-08 | L150: 206 | M150: INF846K01347
A151: AXISNIFTY | B151: EQ | C151: 1000.01 | D151: 1000.01 | E151: 1000.01 | F151: 1000.01 | G151: 1000.01 | H151: 1007 | I151: 2 | J151: 2000.02 | K151: 2020-04-08 | L151: 1 | M151: INF846K01ZL0
A152: AYMSYNTEX | B152: EQ | C152: 15.5 | D152: 16.8 | E152: 15.5 | F152: 16.5 | G152: 16.5 | H152: 16.1 | I152: 2637 | J152: 43548.55 | K152: 2020-04-08 | L152: 26 | M152: INE193B01039
A153: BAFNAPH | B153: EQ | C153: 16.05 | D153: 16.05 | E153: 16.05 | F153: 16.05 | G153: 16.05 | H153: 15.3 | I153: 272 | J153: 4365.6 | K153: 2020-04-08 | L153: 8 | M153: INE878I01022
A154: BAGFILMS | B154: BE | C154: 1.75 | D154: 1.8 | E154: 1.75 | F154: 1.8 | G154: 1.8 | H154: 1.75 | I154: 3861 | J154: 6912.3 | K154: 2020-04-08 | L154: 20 | M154: INE116D01028
A155: BAJAJ-AUTO | B155: EQ | C155: 2180 | D155: 2383.45 | E155: 2168.55 | F155: 2241.7 | G155: 2260 | H155: 2280.05 | I155: 840875 | J155: 1933266167 | K155: 2020-04-08 | L155: 59866 | M155: INE917I01010
A156: BAJAJCON | B156: EQ | C156: 136 | D156: 148.65 | E156: 135.1 | F156: 137.95 | G156: 138 | H156: 138.15 | I156: 1031633 | J156: 145711259.1 | K156: 2020-04-08 | L156: 26102 | M156: INE933K01021
A157: BAJAJELEC | B157: EQ | C157: 277.3 | D157: 294.5 | E157: 277.3 | F157: 287.8 | G157: 289 | H157: 277.3 | I157: 58251 | J157: 16797537.55 | K157: 2020-04-08 | L157: 3821 | M157: INE193E01025
A158: BAJAJFINSV | B158: EQ | C158: 4575 | D158: 4950 | E158: 4537.8 | F158: 4608.5 | G158: 4604 | H158: 4724.9 | I158: 1113057 | J158: 5259493342 | K158: 2020-04-08 | L158: 158158 | M158: INE918I01018
A159: BAJAJHIND | B159: EQ | C159: 3.05 | D159: 3.05 | E159: 3.05 | F159: 3.05 | G159: 3.05 | H159: 2.95 | I159: 80900 | J159: 246745 | K159: 2020-04-08 | L159: 110 | M159: INE306A01021
A160: BAJAJHLDNG | B160: EQ | C160: 2027.95 | D160: 2073.85 | E160: 1925 | F160: 2024.75 | G160: 2025 | H160: 1978.9 | I160: 25453 | J160: 51363834.45 | K160: 2020-04-08 | L160: 6198 | M160: INE118A01012
A161: BAJFINANCE | B161: EQ | C161: 2184 | D161: 2374 | E161: 2144.15 | F161: 2332.9 | G161: 2329 | H161: 2253.35 | I161: 9109346 | J161: 2.088826331e+10 | K161: 2020-04-08 | L161: 516967 | M161: INE296A01024
A162: BALAJITELE | B162: EQ | C162: 43 | D162: 45 | E162: 40.8 | F162: 41.9 | G162: 42.15 | H162: 43.75 | I162: 194912 | J162: 8414452.4 | K162: 2020-04-08 | L162: 1677 | M162: INE794B01026
A163: BALAMINES | B163: EQ | C163: 277 | D163: 296 | E163: 260.4 | F163: 283.65 | G163: 284.45 | H163: 271.2 | I163: 70594 | J163: 20058887.5 | K163: 2020-04-08 | L163: 2337 | M163: INE050E01027
A164: BALAXI | B164: BE | C164: 82.7 | D164: 82.7 | E164: 75.05 | F164: 79.9 | G164: 79.9 | H164: 79 | I164: 1047 | J164: 78761.9 | K164: 2020-04-08 | L164: 24 | M164: INE618N01014
A165: BALKRISHNA | B165: EQ | C165: 8.6 | D165: 8.8 | E165: 8.35 | F165: 8.8 | G165: 8.8 | H165: 8.4 | I165: 7860 | J165: 67624.35 | K165: 2020-04-08 | L165: 49 | M165: INE875R01011
A166: BALKRISIND | B166: EQ | C166: 822 | D166: 862 | E166: 815 | F166: 821.35 | G166: 818.3 | H166: 823.55 | I166: 444079 | J166: 371870250.3 | K166: 2020-04-08 | L166: 24462 | M166: INE787D01026
A167: BALLARPUR | B167: EQ | C167: 0.4 | D167: 0.4 | E167: 0.3 | F167: 0.35 | G167: 0.35 | H167: 0.35 | I167: 9769871 | J167: 3419941.15 | K167: 2020-04-08 | L167: 514 | M167: INE294A01037
A168: BALMLAWRIE | B168: EQ | C168: 84 | D168: 87.9 | E168: 81 | F168: 84.75 | G168: 85.65 | H168: 85.5 | I168: 202053 | J168: 17357055.25 | K168: 2020-04-08 | L168: 3105 | M168: INE164A01016
A169: BALPHARMA | B169: EQ | C169: 38.9 | D169: 41.7 | E169: 38.9 | F169: 41.7 | G169: 41.7 | H169: 37.95 | I169: 40933 | J169: 1688199.5 | K169: 2020-04-08 | L169: 518 | M169: INE083D01012
A170: BALRAMCHIN | B170: EQ | C170: 123.85 | D170: 126.4 | E170: 123 | F170: 126.4 | G170: 126.4 | H170: 120.4 | I170: 642515 | J170: 80884980.2 | K170: 2020-04-08 | L170: 7125 | M170: INE119A01028
A171: BANARBEADS | B171: EQ | C171: 30.25 | D171: 32.5 | E171: 29.6 | F171: 29.75 | G171: 29.75 | H171: 31.5 | I171: 160 | J171: 4873.85 | K171: 2020-04-08 | L171: 26 | M171: INE655B01011
A172: BANARISUG | B172: EQ | C172: 900 | D172: 925 | E172: 880 | F172: 886.1 | G172: 880 | H172: 893.1 | I172: 410 | J172: 368979.1 | K172: 2020-04-08 | L172: 94 | M172: INE459A01010
A173: BANCOINDIA | B173: EQ | C173: 65.45 | D173: 67.5 | E173: 64.1 | F173: 65.95 | G173: 66 | H173: 65.45 | I173: 40062 | J173: 2654130.6 | K173: 2020-04-08 | L173: 1013 | M173: INE213C01025
A174: BANDHANBNK | B174: EQ | C174: 167.95 | D174: 209.05 | E174: 167.5 | F174: 193.75 | G174: 195.25 | H174: 167.25 | I174: 30692919 | J174: 5833285762 | K174: 2020-04-08 | L174: 332020 | M174: INE545U01014
A175: BANG | B175: EQ | C175: 12.05 | D175: 13.1 | E175: 11.9 | F175: 13.1 | G175: 13.1 | H175: 12.5 | I175: 1590 | J175: 20489 | K175: 2020-04-08 | L175: 31 | M175: INE863I01016
A176: BANKBARODA | B176: EQ | C176: 48 | D176: 51.5 | E176: 47.3 | F176: 48.35 | G176: 48.45 | H176: 48.15 | I176: 27159204 | J176: 1340103716 | K176: 2020-04-08 | L176: 77070 | M176: INE028A01039
A177: BANKBEES | B177: EQ | C177: 190 | D177: 205.4 | E177: 186.06 | F177: 191.28 | G177: 191.4 | H177: 192.12 | I177: 676832 | J177: 131368353.2 | K177: 2020-04-08 | L177: 10023 | M177: INF204KB15I9
A178: BANKINDIA | B178: EQ | C178: 32.7 | D178: 34.75 | E178: 32.5 | F178: 33.35 | G178: 33.25 | H178: 32.95 | I178: 1236627 | J178: 41574499.75 | K178: 2020-04-08 | L178: 6257 | M178: INE084A01016
A179: BANSWRAS | B179: EQ | C179: 77.4 | D179: 77.4 | E179: 70.2 | F179: 71.15 | G179: 70.2 | H179: 73.75 | I179: 22922 | J179: 1667255.55 | K179: 2020-04-08 | L179: 137 | M179: INE629D01012
A180: BASF | B180: EQ | C180: 1154 | D180: 1154 | E180: 1105 | F180: 1119.95 | G180: 1120.5 | H180: 1138.25 | I180: 26139 | J180: 29425244.35 | K180: 2020-04-08 | L180: 2640 | M180: INE373A01013
A181: BASML | B181: EQ | C181: 74.05 | D181: 84 | E181: 74.05 | F181: 80 | G181: 80 | H181: 78.7 | I181: 1648 | J181: 135366.45 | K181: 2020-04-08 | L181: 154 | M181: INE186H01014
A182: BATAINDIA | B182: EQ | C182: 1246.5 | D182: 1339 | E182: 1228 | F182: 1240.05 | G182: 1238.95 | H182: 1246.4 | I182: 1346088 | J182: 1726485633 | K182: 2020-04-08 | L182: 66274 | M182: INE176A01028
A183: BAYERCROP | B183: EQ | C183: 3500 | D183: 3946.6 | E183: 3499.3 | F183: 3818.15 | G183: 3772.15 | H183: 3510 | I183: 32833 | J183: 125437264 | K183: 2020-04-08 | L183: 6737 | M183: INE462A01022
A184: BBL | B184: EQ | C184: 590 | D184: 621.25 | E184: 590 | F184: 613.05 | G184: 621.25 | H184: 589.55 | I184: 9335 | J184: 5684085.45 | K184: 2020-04-08 | L184: 804 | M184: INE464A01028
A185: BBTC | B185: EQ | C185: 810 | D185: 854.3 | E185: 774 | F185: 784.2 | G185: 787.95 | H185: 788.4 | I185: 76612 | J185: 62014517.65 | K185: 2020-04-08 | L185: 5281 | M185: INE050A01025
A186: BCG | B186: EQ | C186: 3.6 | D186: 3.65 | E186: 3.55 | F186: 3.65 | G186: 3.65 | H186: 3.5 | I186: 305718 | J186: 1113234.95 | K186: 2020-04-08 | L186: 149 | M186: INE425B01027
A187: BCP | B187: EQ | C187: 10.75 | D187: 10.75 | E187: 10.5 | F187: 10.75 | G187: 10.75 | H187: 10.25 | I187: 8192 | J187: 87934.6 | K187: 2020-04-08 | L187: 28 | M187: INE905P01028
A188: BDL | B188: EQ | C188: 191 | D188: 229 | E188: 188.2 | F188: 218.2 | G188: 216.4 | H188: 191.4 | I188: 448405 | J188: 97968192.25 | K188: 2020-04-08 | L188: 13672 | M188: INE171Z01018
A189: BEARDSELL | B189: EQ | C189: 6.7 | D189: 7.3 | E189: 6.7 | F189: 7.3 | G189: 7.3 | H189: 7.05 | I189: 1250 | J189: 8417 | K189: 2020-04-08 | L189: 4 | M189: INE520H01022
A190: BEDMUTHA | B190: EQ | C190: 12.8 | D190: 13.05 | E190: 12.45 | F190: 12.45 | G190: 12.45 | H190: 13.1 | I190: 19584 | J190: 245429.15 | K190: 2020-04-08 | L190: 32 | M190: INE844K01012
A191: BEL | B191: EQ | C191: 69 | D191: 71.3 | E191: 65.1 | F191: 66.4 | G191: 66.5 | H191: 69 | I191: 16699885 | J191: 1138705070 | K191: 2020-04-08 | L191: 69587 | M191: INE263A01024
A192: BEML | B192: EQ | C192: 492 | D192: 523.5 | E192: 492 | F192: 503.6 | G192: 503 | H192: 475.95 | I192: 890527 | J192: 458689246.6 | K192: 2020-04-08 | L192: 23670 | M192: INE258A01016
A193: BEPL | B193: EQ | C193: 31 | D193: 32.75 | E193: 30.3 | F193: 31.25 | G193: 31.6 | H193: 30.25 | I193: 333595 | J193: 10578641.1 | K193: 2020-04-08 | L193: 3321 | M193: INE922A01025
A194: BERGEPAINT | B194: EQ | C194: 479.9 | D194: 487.65 | E194: 460 | F194: 463.5 | G194: 462 | H194: 479.2 | I194: 1729062 | J194: 817908730.6 | K194: 2020-04-08 | L194: 32950 | M194: INE463A01038
A195: BFINVEST | B195: EQ | C195: 258 | D195: 268.8 | E195: 244.6 | F195: 246.3 | G195: 248.95 | H195: 257.45 | I195: 4938 | J195: 1236639.95 | K195: 2020-04-08 | L195: 244 | M195: INE878K01010
A196: BFUTILITIE | B196: EQ | C196: 158.35 | D196: 158.35 | E196: 151.05 | F196: 154.05 | G196: 153.7 | H196: 150.85 | I196: 138134 | J196: 21700813.75 | K196: 2020-04-08 | L196: 1649 | M196: INE243D01012
A197: BGRENERGY | B197: EQ | C197: 22.1 | D197: 22.85 | E197: 20.95 | F197: 21.1 | G197: 21.15 | H197: 22.2 | I197: 172282 | J197: 3763089.75 | K197: 2020-04-08 | L197: 1108 | M197: INE661I01014
A198: BHAGERIA | B198: EQ | C198: 85 | D198: 91.05 | E198: 80.65 | F198: 81.6 | G198: 82.3 | H198: 84.2 | I198: 34795 | J198: 2944870.7 | K198: 2020-04-08 | L198: 925 | M198: INE354C01027
A199: BHAGYANGR | B199: EQ | C199: 14.05 | D199: 15.2 | E199: 14 | F199: 14.4 | G199: 14.4 | H199: 14.4 | I199: 1338 | J199: 19622.25 | K199: 2020-04-08 | L199: 50 | M199: INE458B01036
A200: BHAGYAPROP | B200: EQ | C200: 18 | D200: 20 | E200: 18 | F200: 20 | G200: 20 | H200: 19 | I200: 999 | J200: 19011 | K200: 2020-04-08 | L200: 5 | M200: INE363W01018
... 1470 more rows

Sheet Sheet1 (hidden)

Sheet Sheet3 (hidden)

Sheet Sheet4 (hidden)

Sheet Sheet5 (hidden)
